Workbook

Sheet Sign Off
B2: Sign Off's
B4: Accounting
C6: Name | D6: Title | E6: Date
B7: Preparer | C7: Belen Villalba | D7: Temp Analyst | E7: 2019-12-27
B8: Reviewer | C8: William Adams | D8: Financial Analysis Manager | E8: 2020-01-14
B9: Approver | C9: N/A | D9: N/A | E9: N/A
B11: Audit Services
C13: Name | D13: Title | E13: Date
B14: Preparer
B16: Energy Delivery
C18: Name | D18: Title | E18: Date | L18: 66666
B19: Final Reviewer | L19: =+L18*12 -> 799992

Sheet A - Contractor Summary
B2: Contractor Summary
B4: Test Plan: (A) Using the drop down list, select the vendor. (B) Ensure address agrees to invoice(s). (C) Enter the distance between vendor address to Plant City, FL. (D) Determine if vendor is part of the SEE (see tab A.1 for listing). (E) Determine if other agreements exist. (F) Using the drop down list, select the Incident Base that the vendor was initially assigned. (G) If the contractor includes multiple crews with different timelines, utilize the '+' symbol at the top of columns 'H' and 'K' (if necessary) to unhide the vendor summary. (H) Click the button to populate the second (and third, if necessary) set of tabs for documentation of those expenses. (I) Complete steps (A) through (F).
F14: G | I14: G
C15: Vendor #5 | F15: Vendor #2 | I15: Vendor #3
G17: H | J17: H
B19: Contractor/Company | C19: Chain Electric Company | D19: A | G19: A | J19: A
B20: SAP Vendor#
B21: Service Type | C21: Distribution
B23: Address | C23: 1308 WestPine Street | D23: B | G23: B | J23: B
B24: City | C24: Hattiesburg | F24: Clinton
B25: State/Providence | C25: MS | F25: MS
B26: Zip | C26: 39403
B27: Country | C27: US | F27: US
B29: Distance from FL (in miles) | C29: 279 | D29: C | F29: 381 | G29: C | J29: C
B30: Travel Days (500 m/per day)
B32: Member of the SEE | D32: D | G32: D | J32: D
B33: Other Agreement/Contract (Y/N) | D33: E | G33: E | J33: E
B34: Incident Base | D34: F | G34: F | J34: F
B36: Date Secured | C36: 2018-10-10 | F36: 2018-10-11
B37: Start Travel | C37: 2018-10-11 | F37: 2018-10-11
B38: Date Arrived | C38: 2018-10-11 | F38: 2018-10-11
B39: Date Released | C39: 2018-10-30 | F39: 2018-10-31
B40: Time Released
B41: Released To | C41: Home
B42: Arrived Home/Utility* | C42: 2018-10-30 | F42: 2018-10-31
F47: C.1 - Rate Sheets (2) | I47: C.1 - Rate Sheets (3)
F48: C.2 - Timesheets - Labor (2) | I48: C.2 - Timesheets - Labor (3)
F49: C.4 - Timesheets - Equipmen (2) | I49: C.4 - Timesheets - Equipmen (3)
F50: D - Lodging (2) | I50: D - Lodging (3)
F51: E - Fuel (2) | I51: E - Fuel (3)
F52: F - Meals (2) | I52: F - Meals (3)
F53: G - Per Diem (2) | I53: G - Per Diem (3)
F54: H - Mileage (2) | I54: H - Mileage (3)
F55: I - Other (2) | I55: I - Other (3)
B59: *Estimates reasonable arrival time
B61: Tickmark Explanation:

Sheet A.1 SEE Members
A1: RMAG | B1: RESPONDING COMPANY | C1: COMPANY NAME
A2: SEE
A3: SEE
A4: SEE
A5: SEE
A6: SEE
A7: SEE
A8: SEE
A9: SEE
A10: SEE
A11: SEE
A12: SEE
A13: SEE
A14: SEE
A15: SEE
A16: SEE
A17: SEE
A18: SEE
A19: SEE
A24: SEE
A25: SEE
A26: SEE
A27: SEE
A28: SEE
A29: SEE
A31: SEE
A32: SEE
A33: SEE
A34: SEE
A35: SEE
A40: SEE
A41: SEE
A42: SEE
A43: SEE
A47: SEE
A55: SEE
A56: SEE
A57: SEE
A61: SEE
A64: SEE
A65: SEE

Sheet B - Summary Expenses
B2: Summary of Expenses
B4: Test Plan: (A) Calculate Total Amount Invoiced for each expense category. (B) Using SAP t-code FBL1N, list Vendor Invoices Paid. (C) Ensure there are no differences between the Total Expense Amount and the Total Paid Amount. (D) Ensure there are no difference between Total Invoiced Amount and Total Expense Amount. (E) If applicable, identify difference due to Foreign currency exchange rates.
C9: A
C10: Total Invoiced | D10: Total Calculated | E10: Allowable | F10: Reviewed - Allowed | G10: Reviewed - Not Allowable | H10: Not Allowable
B11: Labor Expense Total | C11: 1065054.69 | D11: =+'C.2 - Timesheets - Labor'!AW181 -> 1065054.69 | E11: ='C.2 - Timesheets - Labor'!AX181 -> 1065054.69 | F11: ='C.2 - Timesheets - Labor'!BA181 -> 0 | G11: ='C.2 - Timesheets - Labor'!BB181 -> 0 | H11: =D11-(E11+F11+G11) -> 0
B12: Equipment Expense Total | C12: 622667.1 | D12: =+'C.4 - Timesheets - Equipment'!R213 -> 622667.1 | E12: ='C.4 - Timesheets - Equipment'!S213 -> 622667.1 | F12: ='C.4 - Timesheets - Equipment'!U213 -> 0 | G12: ='C.4 - Timesheets - Equipment'!V213 -> 0 | H12: =D12-(E12+F12+G12) -> 0
B13: Lodging Expense Total | F13: ='D - Lodging'!V16 -> 0 | G13: ='D - Lodging'!W16 -> 0 | H13: =D13-(E13+F13+G13) -> 0
B14: Fuel/Transport Expense Total | C14: 513.68 | D14: =+'E - Fuel'!J27 -> 513.68 | E14: ='E - Fuel'!Q27 -> 0 | F14: ='E - Fuel'!S27 -> 513.68 | G14: ='E - Fuel'!T27 -> 0 | H14: 0
B15: Meal Expense Total | F15: ='F - Meals'!T16 -> 0 | G15: ='F - Meals'!U16 -> 0 | H15: 0
B16: Per Diem Expense Total | C16: 3727.88 | D16: =+'G - Per Diem'!I59 -> 3727.88 | E16: ='G - Per Diem'!N59 -> 0 | F16: ='G - Per Diem'!P59 -> 3727.88 | G16: ='G - Per Diem'!Q59 -> 0 | H16: 0
B17: Mileage Expense Total | F17: ='H - Mileage'!T36 -> 0 | G17: ='H - Mileage'!U36 -> 0 | H17: 0
B18: Other Expense | F18: ='I - Other'!T16 -> 0 | G18: ='I - Other'!U16 -> 0 | H18: =D18-(E18+F18+G18) -> 0
B20: Total Expense per tabs | C20: =SUM(C11:C18) -> 1691963.35 | D20: =SUM(D11:D18) -> 1691963.35 | E20: =SUM(E11:E18) -> 1687721.79 | F20: =SUM(F11:F18) -> 4241.56 | G20: =SUM(G11:G18) -> 0 | H20: 0
B21: Difference | C21: =IF(D21=0,"","1") ->  | D21: =C20-D20 -> 0 | E21: D
B23: Total Expense | D23: =+C20 -> 1691963.35 | E23: (from Total SAP Summary)
B24: Total Paid | D24: =-D70 -> -1691963.35 | E24: (from FBL1N in SAP)
B25: Difference | C25: =IF(D25=0,"",SUM(C21,1)) ->  | D25: =D24+D23 -> 0 | E25: C
B27: Exchange Rate
B28: Fx Adjusted to USD
B29: Difference | C29: =IF(D29=0,"","3") ->  | E29: E
B31: B
B33: Document No | C33: Doc Date | D33: Amount | E33: Reference
B34: 123674 | C34: 2018-10-25 | D34: 59965.015 | E34: 676435
B35: 123731 | C35: 2018-10-25 | D35: 156615.54 | E35: 676436
B36: 123736 | C36: 2018-10-25 | D36: 41871.315 | E36: 676437
B37: 123738 | C37: 2018-10-25 | D37: 66703.6 | E37: 676438
B38: 123744 | C38: 2018-10-25 | D38: 43560 | E38: 676439
B39: 123746 | C39: 2018-10-25 | D39: 65618.52 | E39: 676440
B40: 123791 | C40: 2018-10-26 | D40: 30987.46 | E40: 676446
B41: 123795 | C41: 2018-10-26 | D41: 52841.52 | E41: 676447
B42: 124282 | C42: 2018-10-30 | D42: 38007.52 | E42: 676448
B43: 124538 | C43: 2018-10-31 | D43: 159024.04 | E43: 676452
B44: 124577 | C44: 2018-10-31 | D44: 66553.6 | E44: 676453
B45: 124586 | C45: 2018-10-31 | D45: 60248.36 | E45: 676454
B46: 125344 | C46: 2018-11-06 | D46: 65810.6 | E46: 676455
B47: 124408J | C47: 2018-11-09 | D47: 63809.2 | E47: 676477
B48: 124422J | C48: 2018-11-09 | D48: 62126.16 | E48: 676478
B49: 124554J | C49: 2018-11-09 | D49: 39808.79 | E49: 676479
B50: 124594J | C50: 2018-11-09 | D50: 45391.41 | E50: 676480
B51: 125429J | C51: 2018-11-07 | D51: 18214.22 | E51: 676456
B52: 125434J | C52: 2018-11-07 | D52: 35360.78 | E52: 676457
B53: 125439J | C53: 2018-11-07 | D53: 36180.22 | E53: 676458
B54: 125443J | C54: 2018-11-07 | D54: 30349.5 | E54: 676459
B55: 125452J | C55: 2018-11-07 | D55: 59606.76 | E55: 676460
B56: 125456J | C56: 2018-11-07 | D56: 68969.04 | E56: 676461
B57: 125465J | C57: 2018-11-07 | D57: 30432 | E57: 676462
B58: 125476J | C58: 2018-11-07 | D58: 57205.92 | E58: 676463
B59: 125485J | C59: 2018-11-07 | D59: 19456.88 | E59: 676464
B60: 125504J | C60: 2018-11-07 | D60: 18950.76 | E60: 676465
B61: 125511J | C61: 2018-11-07 | D61: 9664.88 | E61: 676466
B62: 125513J | C62: 2018-11-07 | D62: 70265.06 | E62: 676469
B63: 125530J | C63: 2018-11-07 | D63: 31157.88 | E63: 676467
B64: 125536J | C64: 2018-11-07 | D64: 26981.28 | E64: 676468
B65: 125601J | C65: 2018-11-09 | D65: 24491 | E65: 676481
B66: 125602J | C66: 2018-11-09 | D66: 25119.32 | E66: 676482
B67: 126673J | C67: 2018-11-15 | D67: 5426.4 | E67: 676483
B68: 126674J | C68: 2018-11-15 | D68: 5188.8 | E68: 676484
D70: =SUM(D34:D69) -> 1691963.35
B72: Tickmark Explanation:
B73: =IFERROR(C21,"") -> 
B75: =IFERROR(C25,"") -> 

Sheet C.1 - Rate Sheets
B2: Labor Charges - Rate Sheet
B4: Test Plan: (A) Using the vendor rate sheet, ensure that a rate was provided for all Positions and Equipment types.
B6: Labor Types:
B7: ST | C7: Straight Time
B8: OT | C8: Over Time
B9: DT | C9: Double Time
B10: MOB/DMOB | C10: Mobilization/Demobilization Time
B13: Labor per Man Hour | H13: Labor per Equipment Hour
B14: A | H14: A
B15: POSITION | C15: ST | D15: OT | E15: DT | F15: MOB/DMOB | H15: Type | I15: $/HOUR
B16: General Foreman | C16: 95.69 | D16: 117.68 | E16: 139.67 | H16: Pickup | I16: 21 | J16: 1
B17: Mechanic | C17: 68.04 | D17: 83.12 | E17: 98.2 | H17: Mechanic's Service Truck | I17: 32.34
B18: Truck Driver | C18: 60.5 | D18: 73.7 | E18: 86.89 | H18: Haul Truck w/ Lowboy | I18: 100
B19: Equipment Operator | C19: 60.5 | D19: 73.7 | E19: 86.89 | H19: Track Machine w/ Bucket | I19: 100
B20: Groundman | C20: 42.91 | D20: 51.71 | E20: 60.5 | H20: Track Machine w/ Digger | I20: 100
B21: Foreman | C21: 83.12 | D21: 101.97 | E21: 120.82 | H21: Dozer | I21: 57.75
B22: Apprentice Lineman | C22: 68.04 | D22: 83.12 | E22: 98.2 | H22: 1-Engine Airboat w/ Operator | I22: 120
B23: Lineman | C23: 78.09 | D23: 95.69 | E23: 113.28 | H23: 55 Bucket MH | I23: 40
B24: Safety Supervisor | C24: 99.12 | D24: 117.68 | E24: 139.67 | H24: Digger Truck | I24: 42
H25: Pole Trailer | I25: 9.24
H26: Puller (Rope Rig) | I26: 28.88
H27: Tensioner | I27: 23.1
H28: UTV w/ Trailer | I28: 17.33
B54: Tickmark Explanation:
B55: 1

Sheet C.2 - Timesheets - Labor
B2: Labor Charges - Time Card
B4: Test Plan: | C4: Obtain the time cards. (A) Using the Asset by Company tab (C.3), populate the crew members names and positions (if provided). Find additional information regarding individual crew member from related invoice. (B) Enter hours worked from time card(s). (C) Confirm that the dates per the time cards fall between dates provided per 'A - Contractor Summary' tab. (D) Confirm the labor type charged agrees to the rate sheet. (E) Identify any labor charges to be reviewed (manually enter amounts based on reasonability of time period labor was charged, discrepancies between timecards and invoice, etc. (F) For charges which required further review, document review (include why it was determined to be allowed/disallowed via a tickmark).
B10: Rx | C10: Recalculated.
B11: a | C11: Provided from tab 'C.1 - Rate Sheets'.
B12: b | C12: Check figure should equal $0. Cell will appear yellow if discrepancies are noted.
C14: A | H14: Rx | J14: C | K14: a | O14: B | AN14: Rx | AS14: Rx | AX14: Rx | AZ14: E | BA14: F
B15: # | C15: Name | D15: Position | E15: Company | F15: Crew# | G15: Invoice# | H15: Start Date | I15: End Date | J15: Dates Worked Reasonable? | K15: Rates | O15: 10/10/18-10/14/18 | T15: 10/15/18-10/21/18 | Y15: 10/22/18-10/28/18 | AD15: 10/29/18-11/4/18 | AN15: Total Labor Hours | AS15: Total Labor $ | AX15: Allowable Charges | AY15: Labor Type Appropriate? | AZ15: To Be Reviewed | BA15: Reviewed - Allowable Charge | BB15: Reviewed - Unallowable Charge | BC15: Tickmarks
AN16: Total ST | AO16: OT | AP16: DT | AQ16: MOB/DMOB | AR16: Total Hours | AS16: Total ST $ | AT16: Total OT $ | AU16: Total DT $ | AV16: Total MOB/DMOB $ | AW16: Total Labor $
AI17: Tuesday
K18: ST | L18: OT | M18: DT | N18: MOB/DMOB | O18: ST | P18: OT | Q18: DT | R18: MOB/DMOB | S18: Total | T18: ST | U18: OT | V18: DT | W18: MOB/DMOB | X18: Total | Y18: ST | Z18: OT | AA18: DT | AB18: MOB/DMOB | AC18: Total | AD18: ST | AE18: OT | AF18: DT | AG18: MOB/DMOB | AH18: Total | AI18: ST | AJ18: OT | AK18: DT | AL18: MOB/DMOB | AM18: Total
B19: 1 | C19: Matt Miley | D19: General Foreman | E19: Vendor No.5 | F19: 019 | G19: 123674 | H19: 2018-10-10 | I19: 2018-10-14 | J19: =IF(AND(H19>='A - Contractor Summary'!$C$36,I19<='A - Contractor Summary'!$C$42),"Yes","No") -> Yes | K19: =VLOOKUP($D19,'C.1 - Rate Sheets'!B:F,2,FALSE) -> 95.69 | L19: =VLOOKUP($D19,'C.1 - Rate Sheets'!B:F,3,FALSE) -> 117.68 | M19: =VLOOKUP($D19,'C.1 - Rate Sheets'!B:F,4,FALSE) -> 139.67 | N19: =VLOOKUP($D19,'C.1 - Rate Sheets'!B:F,5,FALSE) -> 0 | O19: 10.5 | P19: 45 | Q19: 16 | S19: =SUM(O19:R19) -> 71.5 | X19: =SUM(T19:W19) -> 0 | AC19: =SUM(Y19:AB19) -> 0 | AH19: =SUM(AD19:AG19) -> 0 | AM19: =SUM(AI19:AL19) -> 0 | AN19: =SUM(O19,T19,Y19,AD19) -> 10.5 | AO19: =SUM(P19,U19,Z19,AE19) -> 45 | AP19: 16 | AQ19: 0 | AR19: =SUM(AN19:AQ19) -> 71.5 | AS19: =AN19*K19 -> 1004.745 | AT19: 5295.6 | AU19: 2234.72 | AV19: 0 | AW19: =SUM(AS19:AV19) -> 8535.065 | AX19: =AW19-AZ19 -> 8535.065 | AY19: Yes | AZ19: 0 | BA19: 0 | BB19: 0
B20: 2 | C20: Rob McDaniel | D20: Mechanic | E20: Vendor No.5 | F20: 019 | G20: 123674 | H20: 2018-10-12 | I20: 2018-10-14 | J20: =IF(AND(H20>='A - Contractor Summary'!$C$36,I20<='A - Contractor Summary'!$C$42),"Yes","No") -> Yes | K20: =VLOOKUP($D20,'C.1 - Rate Sheets'!B:F,2,FALSE) -> 68.04 | L20: =VLOOKUP($D20,'C.1 - Rate Sheets'!B:F,3,FALSE) -> 83.12 | M20: =VLOOKUP($D20,'C.1 - Rate Sheets'!B:F,4,FALSE) -> 98.2 | N20: =VLOOKUP($D20,'C.1 - Rate Sheets'!B:F,5,FALSE) -> 0 | P20: 32 | Q20: 16 | S20: 48 | X20: =SUM(T20:W20) -> 0 | AC20: =SUM(Y20:AB20) -> 0 | AH20: =SUM(AD20:AG20) -> 0 | AM20: =SUM(AI20:AL20) -> 0 | AN20: =SUM(O20,T20,Y20,AD20) -> 0 | AO20: =SUM(P20,U20,Z20,AE20) -> 32 | AP20: =SUM(Q20,V20,AA20,AF20) -> 16 | AQ20: =SUM(R20,W20,AB20,AG20) -> 0 | AR20: =SUM(AN20:AQ20) -> 48 | AS20: 0 | AT20: 2659.84 | AU20: 1571.2 | AV20: 0 | AW20: =SUM(AS20:AV20) -> 4231.04 | AX20: 4231.04 | AY20: Yes | AZ20: 0 | BA20: 0 | BB20: 0
B21: 3 | C21: Dan Davis | D21: Truck Driver | E21: Vendor No.5 | F21: 019 | G21: 123674 | H21: 2018-10-12 | I21: 2018-10-14 | J21: =IF(AND(H21>='A - Contractor Summary'!$C$36,I21<='A - Contractor Summary'!$C$42),"Yes","No") -> Yes | K21: =VLOOKUP($D21,'C.1 - Rate Sheets'!B:F,2,FALSE) -> 60.5 | L21: =VLOOKUP($D21,'C.1 - Rate Sheets'!B:F,3,FALSE) -> 73.7 | M21: =VLOOKUP($D21,'C.1 - Rate Sheets'!B:F,4,FALSE) -> 86.89 | N21: =VLOOKUP($D21,'C.1 - Rate Sheets'!B:F,5,FALSE) -> 0 | P21: 20.5 | Q21: 16 | S21: 36.5 | X21: 0 | AC21: 0 | AH21: 0 | AM21: 0 | AN21: 0 | AO21: 20.5 | AP21: 16 | AQ21: 0 | AR21: 36.5 | AS21: =AN21*K21 -> 0 | AT21: =AO21*L21 -> 1510.85 | AU21: =AP21*M21 -> 1390.24 | AV21: =AQ21*N21 -> 0 | AW21: =SUM(AS21:AV21) -> 2901.09 | AX21: 2901.09 | AY21: Yes | AZ21: 0 | BA21: 0 | BB21: 0
B22: 4 | C22: Noris Hollinghead | D22: Truck Driver | E22: Vendor No.5 | F22: 019 | G22: 123674 | H22: 2018-10-12 | I22: 2018-10-14 | J22: =IF(AND(H22>='A - Contractor Summary'!$C$36,I22<='A - Contractor Summary'!$C$42),"Yes","No") -> Yes | K22: =VLOOKUP($D22,'C.1 - Rate Sheets'!B:F,2,FALSE) -> 60.5 | L22: =VLOOKUP($D22,'C.1 - Rate Sheets'!B:F,3,FALSE) -> 73.7 | M22: =VLOOKUP($D22,'C.1 - Rate Sheets'!B:F,4,FALSE) -> 86.89 | N22: =VLOOKUP($D22,'C.1 - Rate Sheets'!B:F,5,FALSE) -> 0 | P22: 20.5 | Q22: 16 | S22: 36.5 | X22: 0 | AC22: 0 | AH22: 0 | AM22: 0 | AN22: 0 | AO22: 20.5 | AP22: 16 | AQ22: 0 | AR22: 36.5 | AS22: 0 | AT22: 1510.85 | AU22: 1390.24 | AV22: 0 | AW22: 2901.09 | AX22: 2901.09 | AY22: Yes | AZ22: 0 | BA22: 0 | BB22: 0
B23: 5 | C23: Fred Langston | D23: Truck Driver | E23: Vendor No.5 | F23: 019 | G23: 123674 | H23: 2018-10-12 | I23: 2018-10-14 | J23: =IF(AND(H23>='A - Contractor Summary'!$C$36,I23<='A - Contractor Summary'!$C$42),"Yes","No") -> Yes | K23: =VLOOKUP($D23,'C.1 - Rate Sheets'!B:F,2,FALSE) -> 60.5 | L23: =VLOOKUP($D23,'C.1 - Rate Sheets'!B:F,3,FALSE) -> 73.7 | M23: =VLOOKUP($D23,'C.1 - Rate Sheets'!B:F,4,FALSE) -> 86.89 | N23: =VLOOKUP($D23,'C.1 - Rate Sheets'!B:F,5,FALSE) -> 0 | P23: 18.5 | Q23: 16 | S23: 34.5 | X23: 0 | AC23: 0 | AH23: 0 | AM23: 0 | AN23: 0 | AO23: 18.5 | AP23: 16 | AQ23: 0 | AR23: 34.5 | AS23: 0 | AT23: 1363.45 | AU23: 1390.24 | AV23: 0 | AW23: 2753.69 | AX23: 2753.69 | AY23: Yes | AZ23: 0 | BA23: 0 | BB23: 0
B24: 6 | C24: James Rachal | D24: Equipment Operator | E24: Vendor No.5 | F24: 019 | G24: 123674 | H24: 2018-10-13 | I24: 2018-10-14 | J24: =IF(AND(H24>='A - Contractor Summary'!$C$36,I24<='A - Contractor Summary'!$C$42),"Yes","No") -> Yes | K24: =VLOOKUP($D24,'C.1 - Rate Sheets'!B:F,2,FALSE) -> 60.5 | L24: =VLOOKUP($D24,'C.1 - Rate Sheets'!B:F,3,FALSE) -> 73.7 | M24: =VLOOKUP($D24,'C.1 - Rate Sheets'!B:F,4,FALSE) -> 86.89 | N24: =VLOOKUP($D24,'C.1 - Rate Sheets'!B:F,5,FALSE) -> 0 | P24: 16 | Q24: 16 | S24: 32 | X24: 0 | AC24: 0 | AH24: 0 | AM24: 0 | AN24: 0 | AO24: 16 | AP24: 16 | AQ24: 0 | AR24: 32 | AS24: 0 | AT24: 1179.2 | AU24: 1390.24 | AV24: 0 | AW24: 2569.44 | AX24: 2569.44 | AY24: Yes | AZ24: 0 | BA24: 0 | BB24: 0
B25: 7 | C25: Patricia Rachal | D25: Groundman | E25: Vendor No.5 | F25: 019 | G25: 123674 | H25: 2018-10-13 | I25: 2018-10-14 | J25: =IF(AND(H25>='A - Contractor Summary'!$C$36,I25<='A - Contractor Summary'!$C$42),"Yes","No") -> Yes | K25: =VLOOKUP($D25,'C.1 - Rate Sheets'!B:F,2,FALSE) -> 42.91 | L25: =VLOOKUP($D25,'C.1 - Rate Sheets'!B:F,3,FALSE) -> 51.71 | M25: =VLOOKUP($D25,'C.1 - Rate Sheets'!B:F,4,FALSE) -> 60.5 | N25: =VLOOKUP($D25,'C.1 - Rate Sheets'!B:F,5,FALSE) -> 0 | P25: 16 | Q25: 16 | S25: 32 | X25: 0 | AC25: 0 | AH25: 0 | AM25: 0 | AN25: 0 | AO25: 16 | AP25: 16 | AQ25: 0 | AR25: 32 | AS25: 0 | AT25: 827.36 | AU25: 968 | AV25: 0 | AW25: 1795.36 | AX25: 1795.36 | AY25: Yes | AZ25: 0 | BA25: 0 | BB25: 0
B26: 8 | C26: Matt Miley | D26: General Foreman | E26: Vendor No.5 | F26: 019 | G26: 123731 | H26: 2018-10-15 | I26: 2018-10-21 | J26: =IF(AND(H26>='A - Contractor Summary'!$C$36,I26<='A - Contractor Summary'!$C$42),"Yes","No") -> Yes | K26: =VLOOKUP($D26,'C.1 - Rate Sheets'!B:F,2,FALSE) -> 95.69 | L26: =VLOOKUP($D26,'C.1 - Rate Sheets'!B:F,3,FALSE) -> 117.68 | M26: =VLOOKUP($D26,'C.1 - Rate Sheets'!B:F,4,FALSE) -> 139.67 | N26: =VLOOKUP($D26,'C.1 - Rate Sheets'!B:F,5,FALSE) -> 0 | S26: 0 | T26: 40 | U26: 56 | V26: 16 | X26: 112 | AC26: 0 | AH26: 0 | AM26: 0 | AN26: 40 | AO26: 56 | AP26: 16 | AQ26: 0 | AR26: 112 | AS26: 3827.6 | AT26: 6590.08 | AU26: 2234.72 | AV26: 0 | AW26: 12652.4 | AX26: 12652.4 | AY26: Yes | AZ26: 0 | BA26: 0 | BB26: 0
B27: 9 | C27: Rob McDaniel | D27: Mechanic | E27: Vendor No.5 | F27: 019 | G27: 123731 | H27: 2018-10-15 | I27: 2018-10-21 | J27: =IF(AND(H27>='A - Contractor Summary'!$C$36,I27<='A - Contractor Summary'!$C$42),"Yes","No") -> Yes | K27: =VLOOKUP($D27,'C.1 - Rate Sheets'!B:F,2,FALSE) -> 68.04 | L27: =VLOOKUP($D27,'C.1 - Rate Sheets'!B:F,3,FALSE) -> 83.12 | M27: =VLOOKUP($D27,'C.1 - Rate Sheets'!B:F,4,FALSE) -> 98.2 | N27: =VLOOKUP($D27,'C.1 - Rate Sheets'!B:F,5,FALSE) -> 0 | S27: 0 | T27: 40 | U27: 56 | V27: 16 | X27: 112 | AC27: 0 | AH27: 0 | AM27: 0 | AN27: 40 | AO27: 56 | AP27: 16 | AQ27: 0 | AR27: 112 | AS27: 2721.6 | AT27: 4654.72 | AU27: 1571.2 | AV27: 0 | AW27: 8947.52 | AX27: 8947.52 | AY27: Yes | AZ27: 0 | BA27: 0 | BB27: 0
B28: 10 | C28: Dan Davis | D28: Truck Driver | E28: Vendor No.5 | F28: 019 | G28: 123731 | H28: 2018-10-15 | I28: 2018-10-21 | J28: =IF(AND(H28>='A - Contractor Summary'!$C$36,I28<='A - Contractor Summary'!$C$42),"Yes","No") -> Yes | K28: =VLOOKUP($D28,'C.1 - Rate Sheets'!B:F,2,FALSE) -> 60.5 | L28: =VLOOKUP($D28,'C.1 - Rate Sheets'!B:F,3,FALSE) -> 73.7 | M28: =VLOOKUP($D28,'C.1 - Rate Sheets'!B:F,4,FALSE) -> 86.89 | N28: =VLOOKUP($D28,'C.1 - Rate Sheets'!B:F,5,FALSE) -> 0 | S28: 0 | T28: 40 | U28: 56 | V28: 16 | X28: 112 | AC28: 0 | AH28: 0 | AM28: 0 | AN28: =SUM(O28,T28,Y28,AD28) -> 40 | AO28: =SUM(P28,U28,Z28,AE28) -> 56 | AP28: =SUM(Q28,V28,AA28,AF28) -> 16 | AQ28: =SUM(R28,W28,AB28,AG28) -> 0 | AR28: =SUM(AN28:AQ28) -> 112 | AS28: 2420 | AT28: 4127.2 | AU28: 1390.24 | AV28: 0 | AW28: 7937.44 | AX28: 7937.44 | AY28: Yes | AZ28: 0 | BA28: 0 | BB28: 0
B29: 11 | C29: Noris Hollinghead | D29: Truck Driver | E29: Vendor No.5 | F29: 019 | G29: 123731 | H29: 2018-10-15 | I29: 2018-10-21 | J29: =IF(AND(H29>='A - Contractor Summary'!$C$36,I29<='A - Contractor Summary'!$C$42),"Yes","No") -> Yes | K29: =VLOOKUP($D29,'C.1 - Rate Sheets'!B:F,2,FALSE) -> 60.5 | L29: =VLOOKUP($D29,'C.1 - Rate Sheets'!B:F,3,FALSE) -> 73.7 | M29: =VLOOKUP($D29,'C.1 - Rate Sheets'!B:F,4,FALSE) -> 86.89 | N29: =VLOOKUP($D29,'C.1 - Rate Sheets'!B:F,5,FALSE) -> 0 | S29: 0 | T29: 40 | U29: 56 | V29: 16 | X29: 112 | AC29: 0 | AH29: 0 | AM29: 0 | AN29: 40 | AO29: 56 | AP29: 16 | AQ29: 0 | AR29: 112 | AS29: 2420 | AT29: 4127.2 | AU29: 1390.24 | AV29: 0 | AW29: 7937.44 | AX29: 7937.44 | AY29: Yes | AZ29: 0 | BA29: 0 | BB29: 0
B30: 12 | C30: Fred Langston | D30: Truck Driver | E30: Vendor No.5 | F30: 019 | G30: 123731 | H30: 2018-10-15 | I30: 2018-10-21 | J30: =IF(AND(H30>='A - Contractor Summary'!$C$36,I30<='A - Contractor Summary'!$C$42),"Yes","No") -> Yes | K30: =VLOOKUP($D30,'C.1 - Rate Sheets'!B:F,2,FALSE) -> 60.5 | L30: =VLOOKUP($D30,'C.1 - Rate Sheets'!B:F,3,FALSE) -> 73.7 | M30: =VLOOKUP($D30,'C.1 - Rate Sheets'!B:F,4,FALSE) -> 86.89 | N30: =VLOOKUP($D30,'C.1 - Rate Sheets'!B:F,5,FALSE) -> 0 | S30: 0 | T30: 40 | U30: 56 | V30: 16 | X30: 112 | AC30: 0 | AH30: 0 | AM30: 0 | AN30: 40 | AO30: 56 | AP30: 16 | AQ30: 0 | AR30: 112 | AS30: 2420 | AT30: 4127.2 | AU30: 1390.24 | AV30: 0 | AW30: 7937.44 | AX30: 7937.44 | AY30: Yes | AZ30: 0 | BA30: 0 | BB30: 0
B31: 13 | C31: James Rachal | D31: Equipment Operator | E31: Vendor No.5 | F31: 019 | G31: 123731 | H31: 2018-10-15 | I31: 2018-10-21 | J31: =IF(AND(H31>='A - Contractor Summary'!$C$36,I31<='A - Contractor Summary'!$C$42),"Yes","No") -> Yes | K31: =VLOOKUP($D31,'C.1 - Rate Sheets'!B:F,2,FALSE) -> 60.5 | L31: =VLOOKUP($D31,'C.1 - Rate Sheets'!B:F,3,FALSE) -> 73.7 | M31: =VLOOKUP($D31,'C.1 - Rate Sheets'!B:F,4,FALSE) -> 86.89 | N31: =VLOOKUP($D31,'C.1 - Rate Sheets'!B:F,5,FALSE) -> 0 | S31: 0 | T31: 40 | U31: 56 | V31: 16 | X31: 112 | AC31: 0 | AH31: 0 | AM31: 0 | AN31: 40 | AO31: 56 | AP31: 16 | AQ31: 0 | AR31: 112 | AS31: 2420 | AT31: 4127.2 | AU31: 1390.24 | AV31: 0 | AW31: 7937.44 | AX31: 7937.44 | AY31: Yes | AZ31: 0 | BA31: 0 | BB31: 0
B32: 14 | C32: Patricia Rachal | D32: Groundman | E32: Vendor No.5 | F32: 019 | G32: 123731 | H32: 2018-10-15 | I32: 2018-10-21 | J32: =IF(AND(H32>='A - Contractor Summary'!$C$36,I32<='A - Contractor Summary'!$C$42),"Yes","No") -> Yes | K32: =VLOOKUP($D32,'C.1 - Rate Sheets'!B:F,2,FALSE) -> 42.91 | L32: =VLOOKUP($D32,'C.1 - Rate Sheets'!B:F,3,FALSE) -> 51.71 | M32: =VLOOKUP($D32,'C.1 - Rate Sheets'!B:F,4,FALSE) -> 60.5 | N32: =VLOOKUP($D32,'C.1 - Rate Sheets'!B:F,5,FALSE) -> 0 | S32: 0 | T32: 40 | U32: 56 | V32: 16 | X32: 112 | AC32: 0 | AH32: 0 | AM32: 0 | AN32: 40 | AO32: 56 | AP32: 16 | AQ32: 0 | AR32: 112 | AS32: 1716.4 | AT32: 2895.76 | AU32: 968 | AV32: 0 | AW32: 5580.16 | AX32: 5580.16 | AY32: Yes | AZ32: 0 | BA32: 0 | BB32: 0
B33: 15 | C33: Lewis Cuevas | D33: Foreman | E33: Vendor No.5 | F33: 110 | G33: 123736 | H33: 2018-10-10 | I33: 2018-10-14 | J33: =IF(AND(H33>='A - Contractor Summary'!$C$36,I33<='A - Contractor Summary'!$C$42),"Yes","No") -> Yes | K33: =VLOOKUP($D33,'C.1 - Rate Sheets'!B:F,2,FALSE) -> 83.12 | L33: =VLOOKUP($D33,'C.1 - Rate Sheets'!B:F,3,FALSE) -> 101.97 | M33: =VLOOKUP($D33,'C.1 - Rate Sheets'!B:F,4,FALSE) -> 120.82 | N33: =VLOOKUP($D33,'C.1 - Rate Sheets'!B:F,5,FALSE) -> 0 | O33: 12.5 | P33: 43 | Q33: 16 | S33: 71.5 | X33: 0 | AC33: 0 | AH33: 0 | AM33: 0 | AN33: 12.5 | AO33: 43 | AP33: 16 | AQ33: 0 | AR33: 71.5 | AS33: 1039 | AT33: 4384.71 | AU33: 1933.12 | AV33: 0 | AW33: 7356.83 | AX33: 7356.83 | AY33: Yes | AZ33: 0 | BA33: 0 | BB33: 0
B34: 16 | C34: Brodey Harrell | D34: Apprentice Lineman | E34: Vendor No.5 | F34: 110 | G34: 123736 | H34: 2018-10-10 | I34: 2018-10-14 | J34: =IF(AND(H34>='A - Contractor Summary'!$C$36,I34<='A - Contractor Summary'!$C$42),"Yes","No") -> Yes | K34: =VLOOKUP($D34,'C.1 - Rate Sheets'!B:F,2,FALSE) -> 68.04 | L34: =VLOOKUP($D34,'C.1 - Rate Sheets'!B:F,3,FALSE) -> 83.12 | M34: =VLOOKUP($D34,'C.1 - Rate Sheets'!B:F,4,FALSE) -> 98.2 | N34: =VLOOKUP($D34,'C.1 - Rate Sheets'!B:F,5,FALSE) -> 0 | O34: 12.5 | P34: 43 | Q34: 16 | S34: 71.5 | X34: 0 | AC34: 0 | AH34: 0 | AM34: 0 | AN34: 12.5 | AO34: 43 | AP34: 16 | AQ34: 0 | AR34: 71.5 | AS34: 850.5 | AT34: 3574.16 | AU34: 1571.2 | AV34: 0 | AW34: 5995.86 | AX34: 5995.86 | AY34: Yes | AZ34: 0 | BA34: 0 | BB34: 0
B35: 17 | C35: Joseph Smith | D35: Lineman | E35: Vendor No.5 | F35: 110 | G35: 123736 | H35: 2018-10-10 | I35: 2018-10-14 | J35: =IF(AND(H35>='A - Contractor Summary'!$C$36,I35<='A - Contractor Summary'!$C$42),"Yes","No") -> Yes | K35: =VLOOKUP($D35,'C.1 - Rate Sheets'!B:F,2,FALSE) -> 78.09 | L35: =VLOOKUP($D35,'C.1 - Rate Sheets'!B:F,3,FALSE) -> 95.69 | M35: =VLOOKUP($D35,'C.1 - Rate Sheets'!B:F,4,FALSE) -> 113.28 | N35: =VLOOKUP($D35,'C.1 - Rate Sheets'!B:F,5,FALSE) -> 0 | O35: 22.5 | P35: 33 | Q35: 16 | S35: 71.5 | X35: 0 | AC35: 0 | AH35: 0 | AM35: 0 | AN35: 22.5 | AO35: 33 | AP35: 16 | AQ35: 0 | AR35: 71.5 | AS35: 1757.025 | AT35: 3157.77 | AU35: 1812.48 | AV35: 0 | AW35: 6727.275 | AX35: 6727.275 | AY35: Yes | AZ35: 0 | BA35: 0 | BB35: 0
B36: 18 | C36: Chad McGehee | D36: Groundman | E36: Vendor No.5 | F36: 110 | G36: 123736 | H36: 2018-10-10 | I36: 2018-10-14 | J36: =IF(AND(H36>='A - Contractor Summary'!$C$36,I36<='A - Contractor Summary'!$C$42),"Yes","No") -> Yes | K36: =VLOOKUP($D36,'C.1 - Rate Sheets'!B:F,2,FALSE) -> 42.91 | L36: =VLOOKUP($D36,'C.1 - Rate Sheets'!B:F,3,FALSE) -> 51.71 | M36: =VLOOKUP($D36,'C.1 - Rate Sheets'!B:F,4,FALSE) -> 60.5 | N36: =VLOOKUP($D36,'C.1 - Rate Sheets'!B:F,5,FALSE) -> 0 | O36: 12.5 | P36: 43 | Q36: 16 | S36: 71.5 | X36: 0 | AC36: 0 | AH36: 0 | AM36: 0 | AN36: 12.5 | AO36: 43 | AP36: 16 | AQ36: 0 | AR36: 71.5 | AS36: 536.375 | AT36: 2223.53 | AU36: 968 | AV36: 0 | AW36: 3727.905 | AX36: 3727.905 | AY36: Yes | AZ36: 0 | BA36: 0 | BB36: 0
B37: 19 | C37: Taylor Wells | D37: Lineman | E37: Vendor No.5 | F37: 110 | G37: 123736 | H37: 2018-10-10 | I37: 2018-10-14 | J37: =IF(AND(H37>='A - Contractor Summary'!$C$36,I37<='A - Contractor Summary'!$C$42),"Yes","No") -> Yes | K37: =VLOOKUP($D37,'C.1 - Rate Sheets'!B:F,2,FALSE) -> 78.09 | L37: =VLOOKUP($D37,'C.1 - Rate Sheets'!B:F,3,FALSE) -> 95.69 | M37: =VLOOKUP($D37,'C.1 - Rate Sheets'!B:F,4,FALSE) -> 113.28 | N37: =VLOOKUP($D37,'C.1 - Rate Sheets'!B:F,5,FALSE) -> 0 | O37: 12.5 | P37: 43 | Q37: 16 | S37: 71.5 | X37: 0 | AC37: 0 | AH37: 0 | AM37: 0 | AN37: 12.5 | AO37: 43 | AP37: 16 | AQ37: 0 | AR37: 71.5 | AS37: 976.125 | AT37: 4114.67 | AU37: 1812.48 | AV37: 0 | AW37: 6903.275 | AX37: 6903.275 | AY37: Yes | AZ37: 0 | BA37: 0 | BB37: 0
B38: 20 | C38: Lewis Cuevas | D38: Foreman | E38: Vendor No.5 | F38: 110 | G38: 123738 | H38: 2018-10-15 | I38: 2018-10-21 | J38: =IF(AND(H38>='A - Contractor Summary'!$C$36,I38<='A - Contractor Summary'!$C$42),"Yes","No") -> Yes | K38: =VLOOKUP($D38,'C.1 - Rate Sheets'!B:F,2,FALSE) -> 83.12 | L38: =VLOOKUP($D38,'C.1 - Rate Sheets'!B:F,3,FALSE) -> 101.97 | M38: =VLOOKUP($D38,'C.1 - Rate Sheets'!B:F,4,FALSE) -> 120.82 | N38: =VLOOKUP($D38,'C.1 - Rate Sheets'!B:F,5,FALSE) -> 0 | S38: 0 | T38: 40 | U38: 56 | V38: 16 | X38: 112 | AC38: 0 | AH38: 0 | AM38: =SUM(AI38:AL38) -> 0 | AN38: 40 | AO38: 56 | AP38: 16 | AQ38: 0 | AR38: 112 | AS38: 3324.8 | AT38: 5710.32 | AU38: 1933.12 | AV38: 0 | AW38: 10968.24 | AX38: 10968.24 | AY38: Yes | AZ38: 0 | BA38: 0 | BB38: 0
B39: 21 | C39: Brodey Harrell | D39: Apprentice Lineman | E39: Vendor No.5 | F39: 110 | G39: 123738 | H39: 2018-10-15 | I39: 2018-10-21 | J39: =IF(AND(H39>='A - Contractor Summary'!$C$36,I39<='A - Contractor Summary'!$C$42),"Yes","No") -> Yes | K39: =VLOOKUP($D39,'C.1 - Rate Sheets'!B:F,2,FALSE) -> 68.04 | L39: =VLOOKUP($D39,'C.1 - Rate Sheets'!B:F,3,FALSE) -> 83.12 | M39: =VLOOKUP($D39,'C.1 - Rate Sheets'!B:F,4,FALSE) -> 98.2 | N39: =VLOOKUP($D39,'C.1 - Rate Sheets'!B:F,5,FALSE) -> 0 | S39: 0 | T39: 40 | U39: 56 | V39: 16 | X39: 112 | AC39: 0 | AH39: 0 | AM39: 0 | AN39: 40 | AO39: 56 | AP39: 16 | AQ39: 0 | AR39: 112 | AS39: 2721.6 | AT39: 4654.72 | AU39: 1571.2 | AV39: 0 | AW39: 8947.52 | AX39: 8947.52 | AY39: Yes | AZ39: 0 | BA39: 0 | BB39: 0
B40: 22 | C40: Joseph Smith | D40: Lineman | E40: Vendor No.5 | F40: 110 | G40: 123738 | H40: 2018-10-15 | I40: 2018-10-21 | J40: =IF(AND(H40>='A - Contractor Summary'!$C$36,I40<='A - Contractor Summary'!$C$42),"Yes","No") -> Yes | K40: =VLOOKUP($D40,'C.1 - Rate Sheets'!B:F,2,FALSE) -> 78.09 | L40: =VLOOKUP($D40,'C.1 - Rate Sheets'!B:F,3,FALSE) -> 95.69 | M40: =VLOOKUP($D40,'C.1 - Rate Sheets'!B:F,4,FALSE) -> 113.28 | N40: =VLOOKUP($D40,'C.1 - Rate Sheets'!B:F,5,FALSE) -> 0 | S40: 0 | T40: 40 | U40: 56 | V40: 16 | X40: 112 | AC40: 0 | AH40: 0 | AM40: 0 | AN40: 40 | AO40: 56 | AP40: 16 | AQ40: 0 | AR40: 112 | AS40: 3123.6 | AT40: 5358.64 | AU40: 1812.48 | AV40: 0 | AW40: 10294.72 | AX40: 10294.72 | AY40: Yes | AZ40: 0 | BA40: 0 | BB40: 0
B41: 23 | C41: Chad McGehee | D41: Apprentice Lineman | E41: Vendor No.5 | F41: 110 | G41: 123738 | H41: 2018-10-15 | I41: 2018-10-21 | J41: =IF(AND(H41>='A - Contractor Summary'!$C$36,I41<='A - Contractor Summary'!$C$42),"Yes","No") -> Yes | K41: =VLOOKUP($D41,'C.1 - Rate Sheets'!B:F,2,FALSE) -> 68.04 | L41: =VLOOKUP($D41,'C.1 - Rate Sheets'!B:F,3,FALSE) -> 83.12 | M41: =VLOOKUP($D41,'C.1 - Rate Sheets'!B:F,4,FALSE) -> 98.2 | N41: =VLOOKUP($D41,'C.1 - Rate Sheets'!B:F,5,FALSE) -> 0 | S41: 0 | T41: 40 | U41: 56 | V41: 16 | X41: 112 | AC41: 0 | AH41: 0 | AM41: 0 | AN41: 40 | AO41: 56 | AP41: 16 | AQ41: 0 | AR41: 112 | AS41: 2721.6 | AT41: 4654.72 | AU41: 1571.2 | AV41: 0 | AW41: 8947.52 | AX41: 8947.52 | AY41: Yes | AZ41: 0 | BA41: 0 | BB41: 0
B42: 24 | C42: Taylor Wells | D42: Lineman | E42: Vendor No.5 | F42: 110 | G42: 123738 | H42: 2018-10-15 | I42: 2018-10-21 | J42: =IF(AND(H42>='A - Contractor Summary'!$C$36,I42<='A - Contractor Summary'!$C$42),"Yes","No") -> Yes | K42: =VLOOKUP($D42,'C.1 - Rate Sheets'!B:F,2,FALSE) -> 78.09 | L42: =VLOOKUP($D42,'C.1 - Rate Sheets'!B:F,3,FALSE) -> 95.69 | M42: =VLOOKUP($D42,'C.1 - Rate Sheets'!B:F,4,FALSE) -> 113.28 | N42: =VLOOKUP($D42,'C.1 - Rate Sheets'!B:F,5,FALSE) -> 0 | S42: 0 | T42: 40 | U42: 56 | V42: 16 | X42: 112 | AC42: 0 | AH42: 0 | AM42: 0 | AN42: 40 | AO42: 56 | AP42: 16 | AQ42: 0 | AR42: 112 | AS42: 3123.6 | AT42: 5358.64 | AU42: 1812.48 | AV42: 0 | AW42: 10294.72 | AX42: 10294.72 | AY42: Yes | AZ42: 0 | BA42: 0 | BB42: 0
B43: 25 | C43: Daniel Warren | D43: Foreman | E43: Vendor No.5 | F43: 154 | G43: 123744 | H43: 2018-10-10 | I43: 2018-10-14 | J43: =IF(AND(H43>='A - Contractor Summary'!$C$36,I43<='A - Contractor Summary'!$C$42),"Yes","No") -> Yes | K43: =VLOOKUP($D43,'C.1 - Rate Sheets'!B:F,2,FALSE) -> 83.12 | L43: =VLOOKUP($D43,'C.1 - Rate Sheets'!B:F,3,FALSE) -> 101.97 | M43: =VLOOKUP($D43,'C.1 - Rate Sheets'!B:F,4,FALSE) -> 120.82 | N43: =VLOOKUP($D43,'C.1 - Rate Sheets'!B:F,5,FALSE) -> 0 | O43: 12.5 | P43: 43 | Q43: 16 | S43: 71.5 | X43: 0 | AC43: 0 | AH43: 0 | AM43: 0 | AN43: 12.5 | AO43: 43 | AP43: 16 | AQ43: 0 | AR43: 71.5 | AS43: 1039 | AT43: 4384.71 | AU43: 1933.12 | AV43: 0 | AW43: 7356.83 | AX43: 7356.83 | AY43: Yes | AZ43: 0 | BA43: 0 | BB43: 0
B44: 26 | C44: Jared Sullivan | D44: Lineman | E44: Vendor No.5 | F44: 154 | G44: 123744 | H44: 2018-10-10 | I44: 2018-10-14 | J44: =IF(AND(H44>='A - Contractor Summary'!$C$36,I44<='A - Contractor Summary'!$C$42),"Yes","No") -> Yes | K44: =VLOOKUP($D44,'C.1 - Rate Sheets'!B:F,2,FALSE) -> 78.09 | L44: =VLOOKUP($D44,'C.1 - Rate Sheets'!B:F,3,FALSE) -> 95.69 | M44: =VLOOKUP($D44,'C.1 - Rate Sheets'!B:F,4,FALSE) -> 113.28 | N44: =VLOOKUP($D44,'C.1 - Rate Sheets'!B:F,5,FALSE) -> 0 | O44: 12.5 | P44: 43 | Q44: 16 | S44: 71.5 | X44: 0 | AC44: 0 | AH44: 0 | AM44: 0 | AN44: 12.5 | AO44: 43 | AP44: 16 | AQ44: 0 | AR44: 71.5 | AS44: 976.125 | AT44: 4114.67 | AU44: 1812.48 | AV44: 0 | AW44: 6903.275 | AX44: 6903.275 | AY44: Yes | AZ44: 0 | BA44: 0 | BB44: 0
B45: 27 | C45: Cole Johnson | D45: Lineman | E45: Vendor No.5 | F45: 154 | G45: 123744 | H45: 2018-10-10 | I45: 2018-10-14 | J45: =IF(AND(H45>='A - Contractor Summary'!$C$36,I45<='A - Contractor Summary'!$C$42),"Yes","No") -> Yes | K45: =VLOOKUP($D45,'C.1 - Rate Sheets'!B:F,2,FALSE) -> 78.09 | L45: =VLOOKUP($D45,'C.1 - Rate Sheets'!B:F,3,FALSE) -> 95.69 | M45: =VLOOKUP($D45,'C.1 - Rate Sheets'!B:F,4,FALSE) -> 113.28 | N45: =VLOOKUP($D45,'C.1 - Rate Sheets'!B:F,5,FALSE) -> 0 | O45: 12.5 | P45: 43 | Q45: 16 | S45: 71.5 | X45: 0 | AC45: 0 | AH45: 0 | AM45: 0 | AN45: 12.5 | AO45: 43 | AP45: 16 | AQ45: 0 | AR45: 71.5 | AS45: 976.125 | AT45: 4114.67 | AU45: 1812.48 | AV45: 0 | AW45: 6903.275 | AX45: 6903.275 | AY45: Yes | AZ45: 0 | BA45: 0 | BB45: 0
B46: 28 | C46: Alexander Peters | D46: Apprentice Lineman | E46: Vendor No.5 | F46: 154 | G46: 123744 | H46: 2018-10-10 | I46: 2018-10-14 | J46: =IF(AND(H46>='A - Contractor Summary'!$C$36,I46<='A - Contractor Summary'!$C$42),"Yes","No") -> Yes | K46: =VLOOKUP($D46,'C.1 - Rate Sheets'!B:F,2,FALSE) -> 68.04 | L46: =VLOOKUP($D46,'C.1 - Rate Sheets'!B:F,3,FALSE) -> 83.12 | M46: =VLOOKUP($D46,'C.1 - Rate Sheets'!B:F,4,FALSE) -> 98.2 | N46: =VLOOKUP($D46,'C.1 - Rate Sheets'!B:F,5,FALSE) -> 0 | O46: 12.5 | P46: 43 | Q46: 16 | S46: 71.5 | X46: 0 | AC46: 0 | AH46: 0 | AM46: 0 | AN46: 12.5 | AO46: 43 | AP46: 16 | AQ46: 0 | AR46: 71.5 | AS46: 850.5 | AT46: 3574.16 | AU46: 1571.2 | AV46: 0 | AW46: 5995.86 | AX46: 5995.86 | AY46: Yes | AZ46: 0 | BA46: 0 | BB46: 0
B47: 29 | C47: Eric Lee | D47: Equipment Operator | E47: Vendor No.5 | F47: 154 | G47: 123744 | H47: 2018-10-10 | I47: 2018-10-14 | J47: =IF(AND(H47>='A - Contractor Summary'!$C$36,I47<='A - Contractor Summary'!$C$42),"Yes","No") -> Yes | K47: =VLOOKUP($D47,'C.1 - Rate Sheets'!B:F,2,FALSE) -> 60.5 | L47: =VLOOKUP($D47,'C.1 - Rate Sheets'!B:F,3,FALSE) -> 73.7 | M47: =VLOOKUP($D47,'C.1 - Rate Sheets'!B:F,4,FALSE) -> 86.89 | N47: =VLOOKUP($D47,'C.1 - Rate Sheets'!B:F,5,FALSE) -> 0 | O47: 12.5 | P47: 43 | Q47: 16 | S47: 71.5 | X47: 0 | AC47: 0 | AH47: 0 | AM47: 0 | AN47: 12.5 | AO47: 43 | AP47: 16 | AQ47: 0 | AR47: 71.5 | AS47: 756.25 | AT47: 3169.1 | AU47: 1390.24 | AV47: 0 | AW47: 5315.59 | AX47: 5315.59 | AY47: Yes | AZ47: 0 | BA47: 0 | BB47: 0
B48: 30 | C48: Daniel Warren | D48: Foreman | E48: Vendor No.5 | F48: 154 | G48: 123746 | H48: 2018-10-15 | I48: 2018-10-21 | J48: =IF(AND(H48>='A - Contractor Summary'!$C$36,I48<='A - Contractor Summary'!$C$42),"Yes","No") -> Yes | K48: =VLOOKUP($D48,'C.1 - Rate Sheets'!B:F,2,FALSE) -> 83.12 | L48: =VLOOKUP($D48,'C.1 - Rate Sheets'!B:F,3,FALSE) -> 101.97 | M48: =VLOOKUP($D48,'C.1 - Rate Sheets'!B:F,4,FALSE) -> 120.82 | N48: =VLOOKUP($D48,'C.1 - Rate Sheets'!B:F,5,FALSE) -> 0 | S48: 0 | T48: 40 | U48: 56 | V48: 16 | X48: 112 | AC48: 0 | AH48: 0 | AM48: 0 | AN48: 40 | AO48: 56 | AP48: 16 | AQ48: 0 | AR48: 112 | AS48: 3324.8 | AT48: 5710.32 | AU48: 1933.12 | AV48: 0 | AW48: 10968.24 | AX48: 10968.24 | AY48: Yes | AZ48: 0 | BA48: 0 | BB48: 0
B49: 31 | C49: Jared Sullivan | D49: Lineman | E49: Vendor No.5 | F49: 154 | G49: 123746 | H49: 2018-10-15 | I49: 2018-10-21 | J49: =IF(AND(H49>='A - Contractor Summary'!$C$36,I49<='A - Contractor Summary'!$C$42),"Yes","No") -> Yes | K49: =VLOOKUP($D49,'C.1 - Rate Sheets'!B:F,2,FALSE) -> 78.09 | L49: =VLOOKUP($D49,'C.1 - Rate Sheets'!B:F,3,FALSE) -> 95.69 | M49: =VLOOKUP($D49,'C.1 - Rate Sheets'!B:F,4,FALSE) -> 113.28 | N49: =VLOOKUP($D49,'C.1 - Rate Sheets'!B:F,5,FALSE) -> 0 | S49: 0 | T49: 40 | U49: 56 | V49: 16 | X49: 112 | AC49: 0 | AH49: 0 | AM49: 0 | AN49: 40 | AO49: 56 | AP49: 16 | AQ49: 0 | AR49: 112 | AS49: 3123.6 | AT49: 5358.64 | AU49: 1812.48 | AV49: 0 | AW49: 10294.72 | AX49: 10294.72 | AY49: Yes | AZ49: 0 | BA49: 0 | BB49: 0
B50: 32 | C50: Cole Johnson | D50: Lineman | E50: Vendor No.5 | F50: 154 | G50: 123746 | H50: 2018-10-15 | I50: 2018-10-21 | J50: =IF(AND(H50>='A - Contractor Summary'!$C$36,I50<='A - Contractor Summary'!$C$42),"Yes","No") -> Yes | K50: =VLOOKUP($D50,'C.1 - Rate Sheets'!B:F,2,FALSE) -> 78.09 | L50: =VLOOKUP($D50,'C.1 - Rate Sheets'!B:F,3,FALSE) -> 95.69 | M50: =VLOOKUP($D50,'C.1 - Rate Sheets'!B:F,4,FALSE) -> 113.28 | N50: =VLOOKUP($D50,'C.1 - Rate Sheets'!B:F,5,FALSE) -> 0 | S50: 0 | T50: 40 | U50: 56 | V50: 16 | X50: 112 | AC50: 0 | AH50: 0 | AM50: 0 | AN50: 40 | AO50: 56 | AP50: 16 | AQ50: 0 | AR50: 112 | AS50: 3123.6 | AT50: 5358.64 | AU50: 1812.48 | AV50: 0 | AW50: 10294.72 | AX50: 10294.72 | AY50: Yes | AZ50: 0 | BA50: 0 | BB50: 0
B51: 33 | C51: Alexander Peters | D51: Apprentice Lineman | E51: Vendor No.5 | F51: 154 | G51: 123746 | H51: 2018-10-15 | I51: 2018-10-21 | J51: =IF(AND(H51>='A - Contractor Summary'!$C$36,I51<='A - Contractor Summary'!$C$42),"Yes","No") -> Yes | K51: =VLOOKUP($D51,'C.1 - Rate Sheets'!B:F,2,FALSE) -> 68.04 | L51: =VLOOKUP($D51,'C.1 - Rate Sheets'!B:F,3,FALSE) -> 83.12 | M51: =VLOOKUP($D51,'C.1 - Rate Sheets'!B:F,4,FALSE) -> 98.2 | N51: =VLOOKUP($D51,'C.1 - Rate Sheets'!B:F,5,FALSE) -> 0 | S51: 0 | T51: 40 | U51: 56 | V51: 16 | X51: 112 | AC51: 0 | AH51: 0 | AM51: 0 | AN51: 40 | AO51: 56 | AP51: 16 | AQ51: 0 | AR51: 112 | AS51: 2721.6 | AT51: 4654.72 | AU51: 1571.2 | AV51: 0 | AW51: 8947.52 | AX51: 8947.52 | AY51: Yes | AZ51: 0 | BA51: 0 | BB51: 0
B52: 34 | C52: Eric Lee | D52: Equipment Operator | E52: Vendor No.5 | F52: 154 | G52: 123746 | H52: 2018-10-15 | I52: 2018-10-21 | J52: =IF(AND(H52>='A - Contractor Summary'!$C$36,I52<='A - Contractor Summary'!$C$42),"Yes","No") -> Yes | K52: =VLOOKUP($D52,'C.1 - Rate Sheets'!B:F,2,FALSE) -> 60.5 | L52: =VLOOKUP($D52,'C.1 - Rate Sheets'!B:F,3,FALSE) -> 73.7 | M52: =VLOOKUP($D52,'C.1 - Rate Sheets'!B:F,4,FALSE) -> 86.89 | N52: =VLOOKUP($D52,'C.1 - Rate Sheets'!B:F,5,FALSE) -> 0 | S52: 0 | T52: 40 | U52: 56 | V52: 16 | X52: 112 | AC52: 0 | AH52: 0 | AM52: 0 | AN52: 40 | AO52: 56 | AP52: 16 | AQ52: 0 | AR52: 112 | AS52: 2420 | AT52: 4127.2 | AU52: 1390.24 | AV52: 0 | AW52: 7937.44 | AX52: 7937.44 | AY52: Yes | AZ52: 0 | BA52: 0 | BB52: 0
B53: 35 | C53: James Hartfield | D53: Foreman | E53: Vendor No.5 | F53: 168 | G53: 123791 | H53: 2018-10-11 | I53: 2018-10-14 | J53: =IF(AND(H53>='A - Contractor Summary'!$C$36,I53<='A - Contractor Summary'!$C$42),"Yes","No") -> Yes | K53: =VLOOKUP($D53,'C.1 - Rate Sheets'!B:F,2,FALSE) -> 83.12 | L53: =VLOOKUP($D53,'C.1 - Rate Sheets'!B:F,3,FALSE) -> 101.97 | M53: =VLOOKUP($D53,'C.1 - Rate Sheets'!B:F,4,FALSE) -> 120.82 | N53: =VLOOKUP($D53,'C.1 - Rate Sheets'!B:F,5,FALSE) -> 0 | O53: 15 | P53: 34 | Q53: 16 | S53: 65 | X53: 0 | AC53: 0 | AH53: 0 | AM53: 0 | AN53: 15 | AO53: 34 | AP53: 16 | AQ53: 0 | AR53: 65 | AS53: 1246.8 | AT53: 3466.98 | AU53: 1933.12 | AV53: 0 | AW53: 6646.9 | AX53: 6646.9 | AY53: Yes | AZ53: 0 | BA53: 0 | BB53: 0
B54: 36 | C54: Shane Verret | D54: Apprentice Lineman | E54: Vendor No.5 | F54: 168 | G54: 123791 | H54: 2018-10-11 | I54: 2018-10-14 | J54: =IF(AND(H54>='A - Contractor Summary'!$C$36,I54<='A - Contractor Summary'!$C$42),"Yes","No") -> Yes | K54: =VLOOKUP($D54,'C.1 - Rate Sheets'!B:F,2,FALSE) -> 68.04 | L54: =VLOOKUP($D54,'C.1 - Rate Sheets'!B:F,3,FALSE) -> 83.12 | M54: =VLOOKUP($D54,'C.1 - Rate Sheets'!B:F,4,FALSE) -> 98.2 | N54: =VLOOKUP($D54,'C.1 - Rate Sheets'!B:F,5,FALSE) -> 0 | O54: 15 | P54: 34 | Q54: 16 | S54: 65 | X54: 0 | AC54: 0 | AH54: 0 | AM54: 0 | AN54: 15 | AO54: 34 | AP54: 16 | AQ54: 0 | AR54: 65 | AS54: 1020.6 | AT54: 2826.08 | AU54: 1571.2 | AV54: 0 | AW54: 5417.88 | AX54: 5417.88 | AY54: Yes | AZ54: 0 | BA54: 0 | BB54: 0
B55: 37 | C55: David Hartfield | D55: Equipment Operator | E55: Vendor No.5 | F55: 168 | G55: 123791 | H55: 2018-10-11 | I55: 2018-10-14 | J55: =IF(AND(H55>='A - Contractor Summary'!$C$36,I55<='A - Contractor Summary'!$C$42),"Yes","No") -> Yes | K55: =VLOOKUP($D55,'C.1 - Rate Sheets'!B:F,2,FALSE) -> 60.5 | L55: =VLOOKUP($D55,'C.1 - Rate Sheets'!B:F,3,FALSE) -> 73.7 | M55: =VLOOKUP($D55,'C.1 - Rate Sheets'!B:F,4,FALSE) -> 86.89 | N55: =VLOOKUP($D55,'C.1 - Rate Sheets'!B:F,5,FALSE) -> 0 | O55: 15 | P55: 34 | Q55: 16 | S55: 65 | X55: 0 | AC55: 0 | AH55: 0 | AM55: 0 | AN55: 15 | AO55: 34 | AP55: 16 | AQ55: 0 | AR55: 65 | AS55: 907.5 | AT55: 2505.8 | AU55: 1390.24 | AV55: 0 | AW55: 4803.54 | AX55: 4803.54 | AY55: Yes | AZ55: 0 | BA55: 0 | BB55: 0
B56: 38 | C56: Korey Cuevas | D56: Equipment Operator | E56: Vendor No.5 | F56: 168 | G56: 123791 | H56: 2018-10-11 | I56: 2018-10-14 | J56: =IF(AND(H56>='A - Contractor Summary'!$C$36,I56<='A - Contractor Summary'!$C$42),"Yes","No") -> Yes | K56: =VLOOKUP($D56,'C.1 - Rate Sheets'!B:F,2,FALSE) -> 60.5 | L56: =VLOOKUP($D56,'C.1 - Rate Sheets'!B:F,3,FALSE) -> 73.7 | M56: =VLOOKUP($D56,'C.1 - Rate Sheets'!B:F,4,FALSE) -> 86.89 | N56: =VLOOKUP($D56,'C.1 - Rate Sheets'!B:F,5,FALSE) -> 0 | O56: 15 | P56: 34 | Q56: 16 | S56: 65 | X56: 0 | AC56: 0 | AH56: 0 | AM56: 0 | AN56: 15 | AO56: 34 | AP56: 16 | AQ56: 0 | AR56: 65 | AS56: 907.5 | AT56: 2505.8 | AU56: 1390.24 | AV56: 0 | AW56: 4803.54 | AX56: 4803.54 | AY56: Yes | AZ56: 0 | BA56: 0 | BB56: 0
B57: 39 | C57: James Hartfield | D57: Foreman | E57: Vendor No.5 | F57: 168 | G57: 123795 | H57: 2018-10-15 | I57: 2018-10-21 | J57: =IF(AND(H57>='A - Contractor Summary'!$C$36,I57<='A - Contractor Summary'!$C$42),"Yes","No") -> Yes | K57: =VLOOKUP($D57,'C.1 - Rate Sheets'!B:F,2,FALSE) -> 83.12 | L57: =VLOOKUP($D57,'C.1 - Rate Sheets'!B:F,3,FALSE) -> 101.97 | M57: =VLOOKUP($D57,'C.1 - Rate Sheets'!B:F,4,FALSE) -> 120.82 | N57: =VLOOKUP($D57,'C.1 - Rate Sheets'!B:F,5,FALSE) -> 0 | S57: 0 | T57: 40 | U57: 56 | V57: 16 | X57: 112 | AC57: 0 | AH57: 0 | AM57: 0 | AN57: 40 | AO57: 56 | AP57: 16 | AQ57: 0 | AR57: 112 | AS57: 3324.8 | AT57: 5710.32 | AU57: 1933.12 | AV57: 0 | AW57: 10968.24 | AX57: 10968.24 | AY57: Yes | AZ57: 0 | BA57: 0 | BB57: 0
B58: 40 | C58: Shane Verret | D58: Apprentice Lineman | E58: Vendor No.5 | F58: 168 | G58: 123795 | H58: 2018-10-15 | I58: 2018-10-21 | J58: =IF(AND(H58>='A - Contractor Summary'!$C$36,I58<='A - Contractor Summary'!$C$42),"Yes","No") -> Yes | K58: =VLOOKUP($D58,'C.1 - Rate Sheets'!B:F,2,FALSE) -> 68.04 | L58: =VLOOKUP($D58,'C.1 - Rate Sheets'!B:F,3,FALSE) -> 83.12 | M58: =VLOOKUP($D58,'C.1 - Rate Sheets'!B:F,4,FALSE) -> 98.2 | N58: =VLOOKUP($D58,'C.1 - Rate Sheets'!B:F,5,FALSE) -> 0 | S58: 0 | T58: 40 | U58: 56 | V58: 16 | X58: 112 | AC58: 0 | AH58: 0 | AM58: 0 | AN58: 40 | AO58: 56 | AP58: 16 | AQ58: 0 | AR58: 112 | AS58: 2721.6 | AT58: 4654.72 | AU58: 1571.2 | AV58: 0 | AW58: 8947.52 | AX58: 8947.52 | AY58: No | AZ58: 0 | BA58: 0 | BB58: 0
B59: 41 | C59: David Hartfield | D59: Equipment Operator | E59: Vendor No.5 | F59: 168 | G59: 123795 | H59: 2018-10-15 | I59: 2018-10-21 | J59: =IF(AND(H59>='A - Contractor Summary'!$C$36,I59<='A - Contractor Summary'!$C$42),"Yes","No") -> Yes | K59: =VLOOKUP($D59,'C.1 - Rate Sheets'!B:F,2,FALSE) -> 60.5 | L59: =VLOOKUP($D59,'C.1 - Rate Sheets'!B:F,3,FALSE) -> 73.7 | M59: =VLOOKUP($D59,'C.1 - Rate Sheets'!B:F,4,FALSE) -> 86.89 | N59: =VLOOKUP($D59,'C.1 - Rate Sheets'!B:F,5,FALSE) -> 0 | S59: 0 | T59: 40 | U59: 56 | V59: 16 | X59: 112 | AC59: 0 | AH59: 0 | AM59: 0 | AN59: 40 | AO59: 56 | AP59: 16 | AQ59: 0 | AR59: 112 | AS59: 2420 | AT59: 4127.2 | AU59: 1390.24 | AV59: 0 | AW59: 7937.44 | AX59: 7937.44 | AY59: Yes | AZ59: 0 | BA59: 0 | BB59: 0
B60: 42 | C60: Korey Cuevas | D60: Equipment Operator | E60: Vendor No.5 | F60: 168 | G60: 123795 | H60: 2018-10-15 | I60: 2018-10-21 | J60: =IF(AND(H60>='A - Contractor Summary'!$C$36,I60<='A - Contractor Summary'!$C$42),"Yes","No") -> Yes | K60: =VLOOKUP($D60,'C.1 - Rate Sheets'!B:F,2,FALSE) -> 60.5 | L60: =VLOOKUP($D60,'C.1 - Rate Sheets'!B:F,3,FALSE) -> 73.7 | M60: =VLOOKUP($D60,'C.1 - Rate Sheets'!B:F,4,FALSE) -> 86.89 | N60: =VLOOKUP($D60,'C.1 - Rate Sheets'!B:F,5,FALSE) -> 0 | S60: 0 | T60: 40 | U60: 56 | V60: 16 | X60: 112 | AC60: 0 | AH60: 0 | AM60: 0 | AN60: 40 | AO60: 56 | AP60: 16 | AQ60: 0 | AR60: 112 | AS60: 2420 | AT60: 4127.2 | AU60: 1390.24 | AV60: 0 | AW60: 7937.44 | AX60: 7937.44 | AY60: Yes | AZ60: 0 | BA60: 0 | BB60: 0
B61: 43 | C61: James Hartfield | D61: Foreman | E61: Vendor No.5 | F61: 168 | G61: 124282 | H61: 2018-10-22 | I61: 2018-10-26 | J61: =IF(AND(H61>='A - Contractor Summary'!$C$36,I61<='A - Contractor Summary'!$C$42),"Yes","No") -> Yes | K61: =VLOOKUP($D61,'C.1 - Rate Sheets'!B:F,2,FALSE) -> 83.12 | L61: =VLOOKUP($D61,'C.1 - Rate Sheets'!B:F,3,FALSE) -> 101.97 | M61: =VLOOKUP($D61,'C.1 - Rate Sheets'!B:F,4,FALSE) -> 120.82 | N61: =VLOOKUP($D61,'C.1 - Rate Sheets'!B:F,5,FALSE) -> 0 | S61: 0 | X61: 0 | Y61: 40 | Z61: 32 | AC61: 72 | AH61: 0 | AM61: 0 | AN61: 40 | AO61: 32 | AP61: 0 | AQ61: 0 | AR61: 72 | AS61: 3324.8 | AT61: 3263.04 | AU61: 0 | AV61: 0 | AW61: 6587.84 | AX61: 6587.84 | AY61: Yes | AZ61: 0 | BA61: 0 | BB61: 0
B62: 44 | C62: Shane Verret | D62: Apprentice Lineman | E62: Vendor No.5 | F62: 168 | G62: 124282 | H62: 2018-10-22 | I62: 2018-10-26 | J62: =IF(AND(H62>='A - Contractor Summary'!$C$36,I62<='A - Contractor Summary'!$C$42),"Yes","No") -> Yes | K62: =VLOOKUP($D62,'C.1 - Rate Sheets'!B:F,2,FALSE) -> 68.04 | L62: =VLOOKUP($D62,'C.1 - Rate Sheets'!B:F,3,FALSE) -> 83.12 | M62: =VLOOKUP($D62,'C.1 - Rate Sheets'!B:F,4,FALSE) -> 98.2 | N62: =VLOOKUP($D62,'C.1 - Rate Sheets'!B:F,5,FALSE) -> 0 | S62: 0 | X62: 0 | Y62: 40 | Z62: 32 | AC62: 72 | AH62: 0 | AM62: 0 | AN62: 40 | AO62: 32 | AP62: 0 | AQ62: 0 | AR62: 72 | AS62: 2721.6 | AT62: 2659.84 | AU62: 0 | AV62: 0 | AW62: 5381.44 | AX62: 5381.44 | AY62: Yes | AZ62: 0 | BA62: 0 | BB62: 0
B63: 45 | C63: Jared Sullivan | D63: Lineman | E63: Vendor No.5 | F63: 168 | G63: 124282 | H63: 2018-10-22 | I63: 2018-10-26 | J63: =IF(AND(H63>='A - Contractor Summary'!$C$36,I63<='A - Contractor Summary'!$C$42),"Yes","No") -> Yes | K63: =VLOOKUP($D63,'C.1 - Rate Sheets'!B:F,2,FALSE) -> 78.09 | L63: =VLOOKUP($D63,'C.1 - Rate Sheets'!B:F,3,FALSE) -> 95.69 | M63: =VLOOKUP($D63,'C.1 - Rate Sheets'!B:F,4,FALSE) -> 113.28 | N63: =VLOOKUP($D63,'C.1 - Rate Sheets'!B:F,5,FALSE) -> 0 | S63: 0 | X63: 0 | Y63: 40 | Z63: 24 | AC63: 64 | AH63: 0 | AM63: 0 | AN63: 40 | AO63: 24 | AP63: 0 | AQ63: 0 | AR63: 64 | AS63: 3123.6 | AT63: 2296.56 | AU63: 0 | AV63: 0 | AW63: 5420.16 | AX63: 5420.16 | AY63: Yes | AZ63: 0 | BA63: 0 | BB63: 0
B64: 46 | C64: David Hartfield | D64: Equipment Operator | E64: Vendor No.5 | F64: 168 | G64: 124282 | H64: 2018-10-22 | I64: 2018-10-26 | J64: =IF(AND(H64>='A - Contractor Summary'!$C$36,I64<='A - Contractor Summary'!$C$42),"Yes","No") -> Yes | K64: =VLOOKUP($D64,'C.1 - Rate Sheets'!B:F,2,FALSE) -> 60.5 | L64: =VLOOKUP($D64,'C.1 - Rate Sheets'!B:F,3,FALSE) -> 73.7 | M64: =VLOOKUP($D64,'C.1 - Rate Sheets'!B:F,4,FALSE) -> 86.89 | N64: =VLOOKUP($D64,'C.1 - Rate Sheets'!B:F,5,FALSE) -> 0 | S64: 0 | X64: 0 | Y64: 40 | Z64: 32 | AC64: 72 | AH64: 0 | AM64: 0 | AN64: 40 | AO64: 32 | AP64: 0 | AQ64: 0 | AR64: 72 | AS64: 2420 | AT64: 2358.4 | AU64: 0 | AV64: 0 | AW64: 4778.4 | AX64: 4778.4 | AY64: Yes | AZ64: 0 | BA64: 0 | BB64: 0
B65: 47 | C65: Korey Cuevas | D65: Equipment Operator | E65: Vendor No.5 | F65: 168 | G65: 124282 | H65: 2018-10-22 | I65: 2018-10-26 | J65: =IF(AND(H65>='A - Contractor Summary'!$C$36,I65<='A - Contractor Summary'!$C$42),"Yes","No") -> Yes | K65: =VLOOKUP($D65,'C.1 - Rate Sheets'!B:F,2,FALSE) -> 60.5 | L65: =VLOOKUP($D65,'C.1 - Rate Sheets'!B:F,3,FALSE) -> 73.7 | M65: =VLOOKUP($D65,'C.1 - Rate Sheets'!B:F,4,FALSE) -> 86.89 | N65: =VLOOKUP($D65,'C.1 - Rate Sheets'!B:F,5,FALSE) -> 0 | S65: 0 | X65: 0 | Y65: 40 | Z65: 32 | AC65: 72 | AH65: 0 | AM65: 0 | AN65: 40 | AO65: 32 | AP65: 0 | AQ65: 0 | AR65: 72 | AS65: 2420 | AT65: 2358.4 | AU65: 0 | AV65: 0 | AW65: 4778.4 | AX65: 4778.4 | AY65: Yes | AZ65: 0 | BA65: 0 | BB65: 0
B66: 48 | C66: Matt Miley | D66: General Foreman | E66: Vendor No.5 | F66: 019 | G66: 124538 | H66: 2018-10-22 | I66: 2018-10-28 | J66: =IF(AND(H66>='A - Contractor Summary'!$C$36,I66<='A - Contractor Summary'!$C$42),"Yes","No") -> Yes | K66: =VLOOKUP($D66,'C.1 - Rate Sheets'!B:F,2,FALSE) -> 95.69 | L66: =VLOOKUP($D66,'C.1 - Rate Sheets'!B:F,3,FALSE) -> 117.68 | M66: =VLOOKUP($D66,'C.1 - Rate Sheets'!B:F,4,FALSE) -> 139.67 | N66: =VLOOKUP($D66,'C.1 - Rate Sheets'!B:F,5,FALSE) -> 0 | S66: 0 | X66: 0 | Y66: 40 | Z66: 56 | AA66: 16 | AC66: 112 | AH66: 0 | AM66: 0 | AN66: 40 | AO66: 56 | AP66: 16 | AQ66: 0 | AR66: 112 | AS66: =AN66*K66 -> 3827.6 | AT66: =AO66*L66 -> 6590.08 | AU66: =AP66*M66 -> 2234.72 | AV66: =AQ66*N66 -> 0 | AW66: =SUM(AS66:AV66) -> 12652.4 | AX66: =AW66-AZ66 -> 12652.4 | AY66: Yes | AZ66: 0 | BA66: 0 | BB66: 0
B67: 49 | C67: Jason May | D67: Safety Supervisor | E67: Vendor No.5 | F67: 019 | G67: 124538 | H67: 2018-10-25 | I67: 2018-10-28 | J67: =IF(AND(H67>='A - Contractor Summary'!$C$36,I67<='A - Contractor Summary'!$C$42),"Yes","No") -> Yes | K67: =VLOOKUP($D67,'C.1 - Rate Sheets'!B:F,2,FALSE) -> 99.12 | L67: =VLOOKUP($D67,'C.1 - Rate Sheets'!B:F,3,FALSE) -> 117.68 | M67: =VLOOKUP($D67,'C.1 - Rate Sheets'!B:F,4,FALSE) -> 139.67 | N67: =VLOOKUP($D67,'C.1 - Rate Sheets'!B:F,5,FALSE) -> 0 | S67: 0 | X67: 0 | Y67: 4 | Z67: 44 | AA67: 16 | AC67: 64 | AH67: 0 | AM67: 0 | AN67: 4 | AO67: 44 | AP67: 16 | AQ67: 0 | AR67: 64 | AS67: 396.48 | AT67: 5177.92 | AU67: 2234.72 | AV67: 0 | AW67: 7809.12 | AX67: 7809.12 | AY67: Yes | AZ67: 0 | BA67: 0 | BB67: 0
B68: 50 | C68: Rob McDaniel | D68: Mechanic | E68: Vendor No.5 | F68: 019 | G68: 124538 | H68: 2018-10-22 | I68: 2018-10-28 | J68: =IF(AND(H68>='A - Contractor Summary'!$C$36,I68<='A - Contractor Summary'!$C$42),"Yes","No") -> Yes | K68: =VLOOKUP($D68,'C.1 - Rate Sheets'!B:F,2,FALSE) -> 68.04 | L68: =VLOOKUP($D68,'C.1 - Rate Sheets'!B:F,3,FALSE) -> 83.12 | M68: =VLOOKUP($D68,'C.1 - Rate Sheets'!B:F,4,FALSE) -> 98.2 | N68: =VLOOKUP($D68,'C.1 - Rate Sheets'!B:F,5,FALSE) -> 0 | S68: 0 | X68: 0 | Y68: 40 | Z68: 56 | AA68: 16 | AC68: 112 | AN68: =SUM(O68,T68,Y68,AD68) -> 40 | AO68: =SUM(P68,U68,Z68,AE68) -> 56 | AP68: =SUM(Q68,V68,AA68,AF68) -> 16 | AQ68: =SUM(R68,W68,AB68,AG68) -> 0 | AR68: =SUM(AN68:AQ68) -> 112 | AS68: 2721.6 | AT68: 4654.72 | AU68: 1571.2 | AV68: 0 | AW68: 8947.52 | AX68: 8947.52 | AY68: Yes | AZ68: 0 | BA68: 0 | BB68: 0
B69: 51 | C69: Dan Davis | D69: Truck Driver | E69: Vendor No.5 | F69: 019 | G69: 124538 | H69: 2018-10-22 | I69: 2018-10-28 | J69: =IF(AND(H69>='A - Contractor Summary'!$C$36,I69<='A - Contractor Summary'!$C$42),"Yes","No") -> Yes | K69: =VLOOKUP($D69,'C.1 - Rate Sheets'!B:F,2,FALSE) -> 60.5 | L69: =VLOOKUP($D69,'C.1 - Rate Sheets'!B:F,3,FALSE) -> 73.7 | M69: =VLOOKUP($D69,'C.1 - Rate Sheets'!B:F,4,FALSE) -> 86.89 | N69: =VLOOKUP($D69,'C.1 - Rate Sheets'!B:F,5,FALSE) -> 0 | S69: 0 | X69: 0 | Y69: 40 | Z69: 56 | AA69: 16 | AC69: 112 | AN69: 40 | AO69: 56 | AP69: 16 | AQ69: 0 | AR69: 112 | AS69: 2420 | AT69: 4127.2 | AU69: 1390.24 | AV69: 0 | AW69: 7937.44 | AX69: 7937.44 | AY69: Yes | AZ69: 0 | BA69: 0 | BB69: 0
B70: 52 | C70: Noris Hollinghead | D70: Truck Driver | E70: Vendor No.5 | F70: 019 | G70: 124538 | H70: 2018-10-22 | I70: 2018-10-28 | J70: =IF(AND(H70>='A - Contractor Summary'!$C$36,I70<='A - Contractor Summary'!$C$42),"Yes","No") -> Yes | K70: =VLOOKUP($D70,'C.1 - Rate Sheets'!B:F,2,FALSE) -> 60.5 | L70: =VLOOKUP($D70,'C.1 - Rate Sheets'!B:F,3,FALSE) -> 73.7 | M70: =VLOOKUP($D70,'C.1 - Rate Sheets'!B:F,4,FALSE) -> 86.89 | N70: =VLOOKUP($D70,'C.1 - Rate Sheets'!B:F,5,FALSE) -> 0 | S70: 0 | X70: 0 | Y70: 40 | Z70: 56 | AA70: 16 | AC70: 112 | AN70: 40 | AO70: 56 | AP70: 16 | AQ70: 0 | AR70: 112 | AS70: 2420 | AT70: 4127.2 | AU70: 1390.24 | AV70: 0 | AW70: 7937.44 | AX70: 7937.44 | AY70: Yes | AZ70: 0 | BA70: 0 | BB70: 0
B71: 53 | C71: Fred Langston | D71: Truck Driver | E71: Vendor No.5 | F71: 019 | G71: 124538 | H71: 2018-10-22 | I71: 2018-10-28 | J71: =IF(AND(H71>='A - Contractor Summary'!$C$36,I71<='A - Contractor Summary'!$C$42),"Yes","No") -> Yes | K71: =VLOOKUP($D71,'C.1 - Rate Sheets'!B:F,2,FALSE) -> 60.5 | L71: =VLOOKUP($D71,'C.1 - Rate Sheets'!B:F,3,FALSE) -> 73.7 | M71: =VLOOKUP($D71,'C.1 - Rate Sheets'!B:F,4,FALSE) -> 86.89 | N71: =VLOOKUP($D71,'C.1 - Rate Sheets'!B:F,5,FALSE) -> 0 | S71: 0 | X71: 0 | Y71: 40 | Z71: 56 | AA71: 16 | AC71: 112 | AN71: 40 | AO71: 56 | AP71: 16 | AQ71: 0 | AR71: 112 | AS71: 2420 | AT71: 4127.2 | AU71: 1390.24 | AV71: 0 | AW71: 7937.44 | AX71: 7937.44 | AY71: Yes | AZ71: 0 | BA71: 0 | BB71: 0
B72: 54 | C72: James Rachal | D72: Equipment Operator | E72: Vendor No.5 | F72: 019 | G72: 124538 | H72: 2018-10-22 | I72: 2018-10-28 | J72: =IF(AND(H72>='A - Contractor Summary'!$C$36,I72<='A - Contractor Summary'!$C$42),"Yes","No") -> Yes | K72: =VLOOKUP($D72,'C.1 - Rate Sheets'!B:F,2,FALSE) -> 60.5 | L72: =VLOOKUP($D72,'C.1 - Rate Sheets'!B:F,3,FALSE) -> 73.7 | M72: =VLOOKUP($D72,'C.1 - Rate Sheets'!B:F,4,FALSE) -> 86.89 | N72: =VLOOKUP($D72,'C.1 - Rate Sheets'!B:F,5,FALSE) -> 0 | S72: 0 | X72: 0 | Y72: 40 | Z72: 56 | AA72: 16 | AC72: 112 | AN72: 40 | AO72: 56 | AP72: 16 | AQ72: 0 | AR72: 112 | AS72: 2420 | AT72: 4127.2 | AU72: 1390.24 | AV72: 0 | AW72: 7937.44 | AX72: 7937.44 | AY72: Yes | AZ72: 0 | BA72: 0 | BB72: 0
B73: 55 | C73: Patricia Rachal | D73: Groundman | E73: Vendor No.5 | F73: 019 | G73: 124538 | H73: 2018-10-22 | I73: 2018-10-28 | J73: =IF(AND(H73>='A - Contractor Summary'!$C$36,I73<='A - Contractor Summary'!$C$42),"Yes","No") -> Yes | K73: =VLOOKUP($D73,'C.1 - Rate Sheets'!B:F,2,FALSE) -> 42.91 | L73: =VLOOKUP($D73,'C.1 - Rate Sheets'!B:F,3,FALSE) -> 51.71 | M73: =VLOOKUP($D73,'C.1 - Rate Sheets'!B:F,4,FALSE) -> 60.5 | N73: =VLOOKUP($D73,'C.1 - Rate Sheets'!B:F,5,FALSE) -> 0 | S73: 0 | X73: 0 | Y73: 40 | Z73: 56 | AA73: 16 | AC73: 112 | AN73: 40 | AO73: 56 | AP73: 16 | AQ73: 0 | AR73: 112 | AS73: 1716.4 | AT73: 2895.76 | AU73: 968 | AV73: 0 | AW73: 5580.16 | AX73: 5580.16 | AY73: Yes | AZ73: 0 | BA73: 0 | BB73: 0
B74: 56 | C74: Lewis Cuevas | D74: Foreman | E74: Vendor No.5 | F74: 110 | G74: 124577 | H74: 2018-10-22 | I74: 2018-10-28 | J74: =IF(AND(H74>='A - Contractor Summary'!$C$36,I74<='A - Contractor Summary'!$C$42),"Yes","No") -> Yes | K74: =VLOOKUP($D74,'C.1 - Rate Sheets'!B:F,2,FALSE) -> 83.12 | L74: =VLOOKUP($D74,'C.1 - Rate Sheets'!B:F,3,FALSE) -> 101.97 | M74: =VLOOKUP($D74,'C.1 - Rate Sheets'!B:F,4,FALSE) -> 120.82 | N74: =VLOOKUP($D74,'C.1 - Rate Sheets'!B:F,5,FALSE) -> 0 | S74: 0 | X74: 0 | Y74: 40 | Z74: 56 | AA74: 16 | AC74: 112 | AN74: 40 | AO74: 56 | AP74: 16 | AQ74: 0 | AR74: 112 | AS74: 3324.8 | AT74: 5710.32 | AU74: 1933.12 | AV74: 0 | AW74: 10968.24 | AX74: 10968.24 | AY74: Yes | AZ74: 0 | BA74: 0 | BB74: 0
B75: 57 | C75: Brodey Harrell | D75: Apprentice Lineman | E75: Vendor No.5 | F75: 110 | G75: 124577 | H75: 2018-10-22 | I75: 2018-10-28 | J75: =IF(AND(H75>='A - Contractor Summary'!$C$36,I75<='A - Contractor Summary'!$C$42),"Yes","No") -> Yes | K75: =VLOOKUP($D75,'C.1 - Rate Sheets'!B:F,2,FALSE) -> 68.04 | L75: =VLOOKUP($D75,'C.1 - Rate Sheets'!B:F,3,FALSE) -> 83.12 | M75: =VLOOKUP($D75,'C.1 - Rate Sheets'!B:F,4,FALSE) -> 98.2 | N75: =VLOOKUP($D75,'C.1 - Rate Sheets'!B:F,5,FALSE) -> 0 | S75: 0 | X75: 0 | Y75: 40 | Z75: 56 | AA75: 16 | AC75: 112 | AN75: 40 | AO75: 56 | AP75: 16 | AQ75: 0 | AR75: 112 | AS75: 2721.6 | AT75: 4654.72 | AU75: 1571.2 | AV75: 0 | AW75: 8947.52 | AX75: 8947.52 | AY75: Yes | AZ75: 0 | BA75: 0 | BB75: 0
B76: 58 | C76: Joseph Smith | D76: Lineman | E76: Vendor No.5 | F76: 110 | G76: 124577 | H76: 2018-10-22 | I76: 2018-10-28 | J76: =IF(AND(H76>='A - Contractor Summary'!$C$36,I76<='A - Contractor Summary'!$C$42),"Yes","No") -> Yes | K76: =VLOOKUP($D76,'C.1 - Rate Sheets'!B:F,2,FALSE) -> 78.09 | L76: =VLOOKUP($D76,'C.1 - Rate Sheets'!B:F,3,FALSE) -> 95.69 | M76: =VLOOKUP($D76,'C.1 - Rate Sheets'!B:F,4,FALSE) -> 113.28 | N76: =VLOOKUP($D76,'C.1 - Rate Sheets'!B:F,5,FALSE) -> 0 | S76: 0 | X76: 0 | Y76: 40 | Z76: 56 | AA76: 16 | AC76: 112 | AN76: 40 | AO76: 56 | AP76: 16 | AQ76: 0 | AR76: 112 | AS76: 3123.6 | AT76: 5358.64 | AU76: 1812.48 | AV76: 0 | AW76: 10294.72 | AX76: 10294.72 | AY76: Yes | AZ76: 0 | BA76: 0 | BB76: 0
B77: 59 | C77: Chad McGehee | D77: Apprentice Lineman | E77: Vendor No.5 | F77: 110 | G77: 124577 | H77: 2018-10-22 | I77: 2018-10-28 | J77: =IF(AND(H77>='A - Contractor Summary'!$C$36,I77<='A - Contractor Summary'!$C$42),"Yes","No") -> Yes | K77: =VLOOKUP($D77,'C.1 - Rate Sheets'!B:F,2,FALSE) -> 68.04 | L77: =VLOOKUP($D77,'C.1 - Rate Sheets'!B:F,3,FALSE) -> 83.12 | M77: =VLOOKUP($D77,'C.1 - Rate Sheets'!B:F,4,FALSE) -> 98.2 | N77: =VLOOKUP($D77,'C.1 - Rate Sheets'!B:F,5,FALSE) -> 0 | S77: 0 | X77: 0 | Y77: 40 | Z77: 56 | AA77: 16 | AC77: 112 | AN77: 40 | AO77: 56 | AP77: 16 | AQ77: 0 | AR77: 112 | AS77: 2721.6 | AT77: 4654.72 | AU77: 1571.2 | AV77: 0 | AW77: 8947.52 | AX77: 8947.52 | AY77: Yes | AZ77: 0 | BA77: 0 | BB77: 0
B78: 60 | C78: Taylor Wells | D78: Lineman | E78: Vendor No.5 | F78: 110 | G78: 124577 | H78: 2018-10-22 | I78: 2018-10-28 | J78: =IF(AND(H78>='A - Contractor Summary'!$C$36,I78<='A - Contractor Summary'!$C$42),"Yes","No") -> Yes | K78: =VLOOKUP($D78,'C.1 - Rate Sheets'!B:F,2,FALSE) -> 78.09 | L78: =VLOOKUP($D78,'C.1 - Rate Sheets'!B:F,3,FALSE) -> 95.69 | M78: =VLOOKUP($D78,'C.1 - Rate Sheets'!B:F,4,FALSE) -> 113.28 | N78: =VLOOKUP($D78,'C.1 - Rate Sheets'!B:F,5,FALSE) -> 0 | S78: 0 | X78: 0 | Y78: 40 | Z78: 56 | AA78: 16 | AC78: 112 | AN78: 40 | AO78: 56 | AP78: 16 | AQ78: 0 | AR78: 112 | AS78: 3123.6 | AT78: 5358.64 | AU78: 1812.48 | AV78: 0 | AW78: 10294.72 | AX78: 10294.72 | AY78: Yes | AZ78: 0 | BA78: 0 | BB78: 0
B79: 61 | C79: Daniel Warren | D79: Foreman | E79: Vendor No.5 | F79: 154 | G79: 124586 | H79: 2018-10-22 | I79: 2018-10-28 | J79: =IF(AND(H79>='A - Contractor Summary'!$C$36,I79<='A - Contractor Summary'!$C$42),"Yes","No") -> Yes | K79: =VLOOKUP($D79,'C.1 - Rate Sheets'!B:F,2,FALSE) -> 83.12 | L79: =VLOOKUP($D79,'C.1 - Rate Sheets'!B:F,3,FALSE) -> 101.97 | M79: =VLOOKUP($D79,'C.1 - Rate Sheets'!B:F,4,FALSE) -> 120.82 | N79: =VLOOKUP($D79,'C.1 - Rate Sheets'!B:F,5,FALSE) -> 0 | S79: 0 | X79: 0 | Y79: 40 | Z79: 56 | AA79: 16 | AC79: 112 | AN79: 40 | AO79: 56 | AP79: 16 | AQ79: 0 | AR79: 112 | AS79: 3324.8 | AT79: 5710.32 | AU79: 1933.12 | AV79: 0 | AW79: 10968.24 | AX79: 10968.24 | AY79: Yes | AZ79: 0 | BA79: 0 | BB79: 0
B80: 62 | C80: Jared Sullivan | D80: Lineman | E80: Vendor No.5 | F80: 154 | G80: 124586 | H80: 2018-10-22 | I80: 2018-10-28 | J80: =IF(AND(H80>='A - Contractor Summary'!$C$36,I80<='A - Contractor Summary'!$C$42),"Yes","No") -> Yes | K80: =VLOOKUP($D80,'C.1 - Rate Sheets'!B:F,2,FALSE) -> 78.09 | L80: =VLOOKUP($D80,'C.1 - Rate Sheets'!B:F,3,FALSE) -> 95.69 | M80: =VLOOKUP($D80,'C.1 - Rate Sheets'!B:F,4,FALSE) -> 113.28 | N80: =VLOOKUP($D80,'C.1 - Rate Sheets'!B:F,5,FALSE) -> 0 | S80: 0 | X80: 0 | Z80: 32 | AA80: 16 | AC80: 48 | AN80: 0 | AO80: 32 | AP80: 16 | AQ80: 0 | AR80: 48 | AS80: 0 | AT80: 3062.08 | AU80: 1812.48 | AV80: 0 | AW80: 4874.56 | AX80: 4874.56 | AY80: Yes | AZ80: 0 | BA80: 0 | BB80: 0
B81: 63 | C81: Cole Johnson | D81: Lineman | E81: Vendor No.5 | F81: 154 | G81: 124586 | H81: 2018-10-22 | I81: 2018-10-28 | J81: =IF(AND(H81>='A - Contractor Summary'!$C$36,I81<='A - Contractor Summary'!$C$42),"Yes","No") -> Yes | K81: =VLOOKUP($D81,'C.1 - Rate Sheets'!B:F,2,FALSE) -> 78.09 | L81: =VLOOKUP($D81,'C.1 - Rate Sheets'!B:F,3,FALSE) -> 95.69 | M81: =VLOOKUP($D81,'C.1 - Rate Sheets'!B:F,4,FALSE) -> 113.28 | N81: =VLOOKUP($D81,'C.1 - Rate Sheets'!B:F,5,FALSE) -> 0 | S81: 0 | X81: 0 | Y81: 40 | Z81: 56 | AA81: 16 | AC81: 112 | AN81: 40 | AO81: 56 | AP81: 16 | AQ81: 0 | AR81: 112 | AS81: 3123.6 | AT81: 5358.64 | AU81: 1812.48 | AV81: 0 | AW81: 10294.72 | AX81: 10294.72 | AY81: Yes | AZ81: 0 | BA81: 0 | BB81: 0
B82: 64 | C82: Alexander Peters | D82: Apprentice Lineman | E82: Vendor No.5 | F82: 154 | G82: 124586 | H82: 2018-10-22 | I82: 2018-10-28 | J82: =IF(AND(H82>='A - Contractor Summary'!$C$36,I82<='A - Contractor Summary'!$C$42),"Yes","No") -> Yes | K82: =VLOOKUP($D82,'C.1 - Rate Sheets'!B:F,2,FALSE) -> 68.04 | L82: =VLOOKUP($D82,'C.1 - Rate Sheets'!B:F,3,FALSE) -> 83.12 | M82: =VLOOKUP($D82,'C.1 - Rate Sheets'!B:F,4,FALSE) -> 98.2 | N82: =VLOOKUP($D82,'C.1 - Rate Sheets'!B:F,5,FALSE) -> 0 | S82: 0 | X82: 0 | Y82: 40 | Z82: 56 | AA82: 16 | AC82: 112 | AN82: 40 | AO82: 56 | AP82: 16 | AQ82: 0 | AR82: 112 | AS82: 2721.6 | AT82: 4654.72 | AU82: 1571.2 | AV82: 0 | AW82: 8947.52 | AX82: 8947.52 | AY82: Yes | AZ82: 0 | BA82: 0 | BB82: 0
B83: 65 | C83: Eric Lee | D83: Equipment Operator | E83: Vendor No.5 | F83: 154 | G83: 124586 | H83: 2018-10-22 | I83: 2018-10-28 | J83: =IF(AND(H83>='A - Contractor Summary'!$C$36,I83<='A - Contractor Summary'!$C$42),"Yes","No") -> Yes | K83: =VLOOKUP($D83,'C.1 - Rate Sheets'!B:F,2,FALSE) -> 60.5 | L83: =VLOOKUP($D83,'C.1 - Rate Sheets'!B:F,3,FALSE) -> 73.7 | M83: =VLOOKUP($D83,'C.1 - Rate Sheets'!B:F,4,FALSE) -> 86.89 | N83: =VLOOKUP($D83,'C.1 - Rate Sheets'!B:F,5,FALSE) -> 0 | S83: 0 | X83: 0 | Y83: 40 | Z83: 56 | AA83: 16 | AC83: 112 | AN83: 40 | AO83: 56 | AP83: 16 | AQ83: 0 | AR83: 112 | AS83: 2420 | AT83: 4127.2 | AU83: 1390.24 | AV83: 0 | AW83: 7937.44 | AX83: 7937.44 | AY83: Yes | AZ83: 0 | BA83: 0 | BB83: 0
B84: 66 | C84: Matt Miley | D84: General Foreman | E84: Vendor No.5 | F84: 019 | G84: 125344 | H84: 2018-10-29 | I84: 2018-10-31 | J84: =IF(AND(H84>='A - Contractor Summary'!$C$36,I84<='A - Contractor Summary'!$C$42),"Yes","No") -> No | K84: =VLOOKUP($D84,'C.1 - Rate Sheets'!B:F,2,FALSE) -> 95.69 | L84: =VLOOKUP($D84,'C.1 - Rate Sheets'!B:F,3,FALSE) -> 117.68 | M84: =VLOOKUP($D84,'C.1 - Rate Sheets'!B:F,4,FALSE) -> 139.67 | N84: =VLOOKUP($D84,'C.1 - Rate Sheets'!B:F,5,FALSE) -> 0 | S84: 0 | X84: 0 | AC84: 0 | AD84: 40 | AE84: 8 | AH84: =SUM(AD84:AG84) -> 48 | AN84: 40 | AO84: 8 | AP84: 0 | AQ84: 0 | AR84: 48 | AS84: 3827.6 | AT84: 941.44 | AU84: 0 | AV84: 0 | AW84: 4769.04 | AX84: 4769.04 | AY84: Yes | AZ84: 0 | BA84: 0 | BB84: 0
B85: 67 | C85: Curtis Raine | D85: Mechanic | E85: Vendor No.5 | F85: 019 | G85: 125344 | H85: 2018-10-29 | I85: 2018-10-31 | J85: =IF(AND(H85>='A - Contractor Summary'!$C$36,I85<='A - Contractor Summary'!$C$42),"Yes","No") -> No | K85: =VLOOKUP($D85,'C.1 - Rate Sheets'!B:F,2,FALSE) -> 68.04 | L85: =VLOOKUP($D85,'C.1 - Rate Sheets'!B:F,3,FALSE) -> 83.12 | M85: =VLOOKUP($D85,'C.1 - Rate Sheets'!B:F,4,FALSE) -> 98.2 | N85: =VLOOKUP($D85,'C.1 - Rate Sheets'!B:F,5,FALSE) -> 0 | S85: 0 | X85: 0 | AC85: 0 | AD85: 40 | AE85: 8 | AH85: =SUM(AD85:AG85) -> 48 | AN85: 40 | AO85: 8 | AP85: 0 | AQ85: 0 | AR85: 48 | AS85: 2721.6 | AT85: 664.96 | AU85: 0 | AV85: 0 | AW85: 3386.56 | AX85: 3386.56 | AY85: Yes | AZ85: 0 | BA85: 0 | BB85: 0
B86: 68 | C86: Dan Davis | D86: Truck Driver | E86: Vendor No.5 | F86: 019 | G86: 125344 | H86: 2018-10-29 | I86: 2018-10-31 | J86: =IF(AND(H86>='A - Contractor Summary'!$C$36,I86<='A - Contractor Summary'!$C$42),"Yes","No") -> No | K86: =VLOOKUP($D86,'C.1 - Rate Sheets'!B:F,2,FALSE) -> 60.5 | L86: =VLOOKUP($D86,'C.1 - Rate Sheets'!B:F,3,FALSE) -> 73.7 | M86: =VLOOKUP($D86,'C.1 - Rate Sheets'!B:F,4,FALSE) -> 86.89 | N86: =VLOOKUP($D86,'C.1 - Rate Sheets'!B:F,5,FALSE) -> 0 | S86: 0 | X86: 0 | AC86: 0 | AD86: 40 | AE86: 8 | AH86: 48 | AN86: 40 | AO86: 8 | AP86: 0 | AQ86: 0 | AR86: 48 | AS86: 2420 | AT86: 589.6 | AU86: 0 | AV86: 0 | AW86: 3009.6 | AX86: 3009.6 | AY86: Yes | AZ86: 0 | BA86: 0 | BB86: 0
B87: 69 | C87: Noris Hollinghead | D87: Truck Driver | E87: Vendor No.5 | F87: 019 | G87: 125344 | H87: 2018-10-29 | I87: 2018-10-31 | J87: =IF(AND(H87>='A - Contractor Summary'!$C$36,I87<='A - Contractor Summary'!$C$42),"Yes","No") -> No | K87: =VLOOKUP($D87,'C.1 - Rate Sheets'!B:F,2,FALSE) -> 60.5 | L87: =VLOOKUP($D87,'C.1 - Rate Sheets'!B:F,3,FALSE) -> 73.7 | M87: =VLOOKUP($D87,'C.1 - Rate Sheets'!B:F,4,FALSE) -> 86.89 | N87: =VLOOKUP($D87,'C.1 - Rate Sheets'!B:F,5,FALSE) -> 0 | S87: 0 | X87: 0 | AC87: 0 | AD87: 40 | AE87: 8 | AH87: 48 | AN87: 40 | AO87: 8 | AP87: 0 | AQ87: 0 | AR87: 48 | AS87: 2420 | AT87: 589.6 | AU87: 0 | AV87: 0 | AW87: 3009.6 | AX87: 3009.6 | AY87: Yes | AZ87: 0 | BA87: 0 | BB87: 0
B88: 70 | C88: Fred Langston | D88: Truck Driver | E88: Vendor No.5 | F88: 019 | G88: 125344 | H88: 2018-10-29 | I88: 2018-11-01 | J88: =IF(AND(H88>='A - Contractor Summary'!$C$36,I88<='A - Contractor Summary'!$C$42),"Yes","No") -> No | K88: =VLOOKUP($D88,'C.1 - Rate Sheets'!B:F,2,FALSE) -> 60.5 | L88: =VLOOKUP($D88,'C.1 - Rate Sheets'!B:F,3,FALSE) -> 73.7 | M88: =VLOOKUP($D88,'C.1 - Rate Sheets'!B:F,4,FALSE) -> 86.89 | N88: =VLOOKUP($D88,'C.1 - Rate Sheets'!B:F,5,FALSE) -> 0 | S88: 0 | X88: 0 | AC88: 0 | AD88: 40 | AE88: 24 | AH88: 64 | AN88: 40 | AO88: 24 | AP88: 0 | AQ88: 0 | AR88: 64 | AS88: 2420 | AT88: 1768.8 | AU88: 0 | AV88: 0 | AW88: 4188.8 | AX88: 4188.8 | AY88: Yes | AZ88: 0 | BA88: 0 | BB88: 0
B89: 71 | C89: James Rachal | D89: Equipment Operator | E89: Vendor No.5 | F89: 019 | G89: 125344 | H89: 2018-10-29 | I89: 2018-10-31 | J89: =IF(AND(H89>='A - Contractor Summary'!$C$36,I89<='A - Contractor Summary'!$C$42),"Yes","No") -> No | K89: =VLOOKUP($D89,'C.1 - Rate Sheets'!B:F,2,FALSE) -> 60.5 | L89: =VLOOKUP($D89,'C.1 - Rate Sheets'!B:F,3,FALSE) -> 73.7 | M89: =VLOOKUP($D89,'C.1 - Rate Sheets'!B:F,4,FALSE) -> 86.89 | N89: =VLOOKUP($D89,'C.1 - Rate Sheets'!B:F,5,FALSE) -> 0 | S89: 0 | X89: 0 | AC89: 0 | AD89: 40 | AE89: 8 | AH89: 48 | AN89: 40 | AO89: 8 | AP89: 0 | AQ89: 0 | AR89: 48 | AS89: 2420 | AT89: 589.6 | AU89: 0 | AV89: 0 | AW89: 3009.6 | AX89: 3009.6 | AY89: Yes | AZ89: 0 | BA89: 0 | BB89: 0
B90: 72 | C90: Patricia Rachal | D90: Groundman | E90: Vendor No.5 | F90: 019 | G90: 125344 | H90: 2018-10-29 | I90: 2018-10-31 | J90: =IF(AND(H90>='A - Contractor Summary'!$C$36,I90<='A - Contractor Summary'!$C$42),"Yes","No") -> No | K90: =VLOOKUP($D90,'C.1 - Rate Sheets'!B:F,2,FALSE) -> 42.91 | L90: =VLOOKUP($D90,'C.1 - Rate Sheets'!B:F,3,FALSE) -> 51.71 | M90: =VLOOKUP($D90,'C.1 - Rate Sheets'!B:F,4,FALSE) -> 60.5 | N90: =VLOOKUP($D90,'C.1 - Rate Sheets'!B:F,5,FALSE) -> 0 | S90: 0 | X90: 0 | AC90: 0 | AD90: 40 | AE90: 8 | AH90: 48 | AN90: 40 | AO90: 8 | AP90: 0 | AQ90: 0 | AR90: 48 | AS90: 1716.4 | AT90: 413.68 | AU90: 0 | AV90: 0 | AW90: 2130.08 | AX90: 2130.08 | AY90: Yes | AZ90: 0 | BA90: 0 | BB90: 0
B91: 73 | C91: David Harrelson | D91: Foreman | E91: Vendor No.5 | F91: 135 | G91: 124408J | H91: 2018-10-22 | I91: 2018-10-28 | J91: =IF(AND(H91>='A - Contractor Summary'!$C$36,I91<='A - Contractor Summary'!$C$42),"Yes","No") -> Yes | K91: =VLOOKUP($D91,'C.1 - Rate Sheets'!B:F,2,FALSE) -> 83.12 | L91: =VLOOKUP($D91,'C.1 - Rate Sheets'!B:F,3,FALSE) -> 101.97 | M91: =VLOOKUP($D91,'C.1 - Rate Sheets'!B:F,4,FALSE) -> 120.82 | N91: =VLOOKUP($D91,'C.1 - Rate Sheets'!B:F,5,FALSE) -> 0 | S91: 0 | X91: 0 | Y91: 40 | Z91: 56 | AA91: 16 | AC91: 112 | AH91: 0 | AN91: 40 | AO91: 56 | AP91: 16 | AQ91: 0 | AR91: 112 | AS91: 3324.8 | AT91: 5710.32 | AU91: 1933.12 | AV91: 0 | AW91: 10968.24 | AX91: 10968.24 | AY91: Yes | AZ91: 0 | BA91: 0 | BB91: 0
B92: 74 | C92: Tyler Crane | D92: Apprentice Lineman | E92: Vendor No.5 | F92: 135 | G92: 124408J | H92: 2018-10-22 | I92: 2018-10-28 | J92: =IF(AND(H92>='A - Contractor Summary'!$C$36,I92<='A - Contractor Summary'!$C$42),"Yes","No") -> Yes | K92: =VLOOKUP($D92,'C.1 - Rate Sheets'!B:F,2,FALSE) -> 68.04 | L92: =VLOOKUP($D92,'C.1 - Rate Sheets'!B:F,3,FALSE) -> 83.12 | M92: =VLOOKUP($D92,'C.1 - Rate Sheets'!B:F,4,FALSE) -> 98.2 | N92: =VLOOKUP($D92,'C.1 - Rate Sheets'!B:F,5,FALSE) -> 0 | S92: 0 | X92: 0 | Y92: 40 | Z92: 56 | AA92: 16 | AC92: 112 | AH92: 0 | AN92: 40 | AO92: 56 | AP92: 16 | AQ92: 0 | AR92: 112 | AS92: 2721.6 | AT92: 4654.72 | AU92: 1571.2 | AV92: 0 | AW92: 8947.52 | AX92: 8947.52 | AY92: Yes | AZ92: 0 | BA92: 0 | BB92: 0
B93: 75 | C93: James Morgan | D93: Apprentice Lineman | E93: Vendor No.5 | F93: 135 | G93: 124408J | H93: 2018-10-22 | I93: 2018-10-28 | J93: =IF(AND(H93>='A - Contractor Summary'!$C$36,I93<='A - Contractor Summary'!$C$42),"Yes","No") -> Yes | K93: =VLOOKUP($D93,'C.1 - Rate Sheets'!B:F,2,FALSE) -> 68.04 | L93: =VLOOKUP($D93,'C.1 - Rate Sheets'!B:F,3,FALSE) -> 83.12 | M93: =VLOOKUP($D93,'C.1 - Rate Sheets'!B:F,4,FALSE) -> 98.2 | N93: =VLOOKUP($D93,'C.1 - Rate Sheets'!B:F,5,FALSE) -> 0 | S93: 0 | X93: 0 | Y93: 40 | Z93: 56 | AA93: 16 | AC93: 112 | AH93: 0 | AN93: 40 | AO93: 56 | AP93: 16 | AQ93: 0 | AR93: 112 | AS93: 2721.6 | AT93: 4654.72 | AU93: 1571.2 | AV93: 0 | AW93: 8947.52 | AX93: 8947.52 | AY93: Yes | AZ93: 0 | BA93: 0 | BB93: 0
B94: 76 | C94: Kristopher Frederickson | D94: Apprentice Lineman | E94: Vendor No.5 | F94: 135 | G94: 124408J | H94: 2018-10-22 | I94: 2018-10-28 | J94: =IF(AND(H94>='A - Contractor Summary'!$C$36,I94<='A - Contractor Summary'!$C$42),"Yes","No") -> Yes | K94: =VLOOKUP($D94,'C.1 - Rate Sheets'!B:F,2,FALSE) -> 68.04 | L94: =VLOOKUP($D94,'C.1 - Rate Sheets'!B:F,3,FALSE) -> 83.12 | M94: =VLOOKUP($D94,'C.1 - Rate Sheets'!B:F,4,FALSE) -> 98.2 | N94: =VLOOKUP($D94,'C.1 - Rate Sheets'!B:F,5,FALSE) -> 0 | S94: 0 | X94: 0 | Y94: 40 | Z94: 56 | AA94: 16 | AC94: 112 | AH94: 0 | AN94: 40 | AO94: 56 | AP94: 16 | AQ94: 0 | AR94: 112 | AS94: 2721.6 | AT94: 4654.72 | AU94: 1571.2 | AV94: 0 | AW94: 8947.52 | AX94: 8947.52 | AY94: Yes | AZ94: 0 | BA94: 0 | BB94: 0
B95: 77 | C95: Jace Dunne | D95: Apprentice Lineman | E95: Vendor No.5 | F95: 135 | G95: 124408J | H95: 2018-10-22 | I95: 2018-10-28 | J95: =IF(AND(H95>='A - Contractor Summary'!$C$36,I95<='A - Contractor Summary'!$C$42),"Yes","No") -> Yes | K95: =VLOOKUP($D95,'C.1 - Rate Sheets'!B:F,2,FALSE) -> 68.04 | L95: =VLOOKUP($D95,'C.1 - Rate Sheets'!B:F,3,FALSE) -> 83.12 | M95: =VLOOKUP($D95,'C.1 - Rate Sheets'!B:F,4,FALSE) -> 98.2 | N95: =VLOOKUP($D95,'C.1 - Rate Sheets'!B:F,5,FALSE) -> 0 | S95: 0 | X95: 0 | Y95: 40 | Z95: 56 | AA95: 16 | AC95: 112 | AH95: 0 | AN95: 40 | AO95: 56 | AP95: 16 | AQ95: 0 | AR95: 112 | AS95: 2721.6 | AT95: 4654.72 | AU95: 1571.2 | AV95: 0 | AW95: 8947.52 | AX95: 8947.52 | AY95: Yes | AZ95: 0 | BA95: 0 | BB95: 0
B96: 78 | C96: Keith Giuilbeaux | D96: Foreman | E96: Vendor No.5 | F96: 123 | G96: 124422J | H96: 2018-10-22 | I96: 2018-10-28 | J96: =IF(AND(H96>='A - Contractor Summary'!$C$36,I96<='A - Contractor Summary'!$C$42),"Yes","No") -> Yes | K96: =VLOOKUP($D96,'C.1 - Rate Sheets'!B:F,2,FALSE) -> 83.12 | L96: =VLOOKUP($D96,'C.1 - Rate Sheets'!B:F,3,FALSE) -> 101.97 | M96: =VLOOKUP($D96,'C.1 - Rate Sheets'!B:F,4,FALSE) -> 120.82 | N96: =VLOOKUP($D96,'C.1 - Rate Sheets'!B:F,5,FALSE) -> 0 | S96: 0 | X96: 0 | Y96: 40 | Z96: 56 | AA96: 16 | AC96: 112 | AH96: 0 | AN96: 40 | AO96: 56 | AP96: 16 | AQ96: 0 | AR96: 112 | AS96: 3324.8 | AT96: 5710.32 | AU96: 1933.12 | AV96: 0 | AW96: 10968.24 | AX96: 10968.24 | AY96: Yes | AZ96: 0 | BA96: 0 | BB96: 0
B97: 79 | C97: Shawn McElroy | D97: Lineman | E97: Vendor No.5 | F97: 123 | G97: 124422J | H97: 2018-10-22 | I97: 2018-10-28 | J97: =IF(AND(H97>='A - Contractor Summary'!$C$36,I97<='A - Contractor Summary'!$C$42),"Yes","No") -> Yes | K97: =VLOOKUP($D97,'C.1 - Rate Sheets'!B:F,2,FALSE) -> 78.09 | L97: =VLOOKUP($D97,'C.1 - Rate Sheets'!B:F,3,FALSE) -> 95.69 | M97: =VLOOKUP($D97,'C.1 - Rate Sheets'!B:F,4,FALSE) -> 113.28 | N97: =VLOOKUP($D97,'C.1 - Rate Sheets'!B:F,5,FALSE) -> 0 | S97: 0 | X97: 0 | Y97: 40 | Z97: 56 | AA97: 16 | AC97: 112 | AH97: 0 | AN97: 40 | AO97: 56 | AP97: 16 | AQ97: 0 | AR97: 112 | AS97: 3123.6 | AT97: 5358.64 | AU97: 1812.48 | AV97: 0 | AW97: 10294.72 | AX97: 10294.72 | AY97: Yes | AZ97: 0 | BA97: 0 | BB97: 0
B98: 80 | C98: Dwayne Babin | D98: Lineman | E98: Vendor No.5 | F98: 123 | G98: 124422J | H98: 2018-10-22 | I98: 2018-10-28 | J98: =IF(AND(H98>='A - Contractor Summary'!$C$36,I98<='A - Contractor Summary'!$C$42),"Yes","No") -> Yes | K98: =VLOOKUP($D98,'C.1 - Rate Sheets'!B:F,2,FALSE) -> 78.09 | L98: =VLOOKUP($D98,'C.1 - Rate Sheets'!B:F,3,FALSE) -> 95.69 | M98: =VLOOKUP($D98,'C.1 - Rate Sheets'!B:F,4,FALSE) -> 113.28 | N98: =VLOOKUP($D98,'C.1 - Rate Sheets'!B:F,5,FALSE) -> 0 | S98: 0 | X98: 0 | Y98: 40 | Z98: 56 | AA98: 16 | AC98: 112 | AH98: 0 | AN98: 40 | AO98: 56 | AP98: 16 | AQ98: 0 | AR98: 112 | AS98: 3123.6 | AT98: 5358.64 | AU98: 1812.48 | AV98: 0 | AW98: 10294.72 | AX98: 10294.72 | AY98: Yes | AZ98: 0 | BA98: 0 | BB98: 0
B99: 81 | C99: Cedric Smith | D99: Equipment Operator | E99: Vendor No.5 | F99: 123 | G99: 124422J | H99: 2018-10-22 | I99: 2018-10-28 | J99: =IF(AND(H99>='A - Contractor Summary'!$C$36,I99<='A - Contractor Summary'!$C$42),"Yes","No") -> Yes | K99: =VLOOKUP($D99,'C.1 - Rate Sheets'!B:F,2,FALSE) -> 60.5 | L99: =VLOOKUP($D99,'C.1 - Rate Sheets'!B:F,3,FALSE) -> 73.7 | M99: =VLOOKUP($D99,'C.1 - Rate Sheets'!B:F,4,FALSE) -> 86.89 | N99: =VLOOKUP($D99,'C.1 - Rate Sheets'!B:F,5,FALSE) -> 0 | S99: 0 | X99: 0 | Y99: 40 | Z99: 56 | AA99: 16 | AC99: 112 | AH99: 0 | AN99: 40 | AO99: 56 | AP99: 16 | AQ99: 0 | AR99: 112 | AS99: 2420 | AT99: 4127.2 | AU99: 1390.24 | AV99: 0 | AW99: 7937.44 | AX99: 7937.44 | AY99: Yes | AZ99: 0 | BA99: 0 | BB99: 0
B100: 82 | C100: Trevon Lewis | D100: Groundman | E100: Vendor No.5 | F100: 123 | G100: 124422J | H100: 2018-10-22 | I100: 2018-10-28 | J100: =IF(AND(H100>='A - Contractor Summary'!$C$36,I100<='A - Contractor Summary'!$C$42),"Yes","No") -> Yes | K100: =VLOOKUP($D100,'C.1 - Rate Sheets'!B:F,2,FALSE) -> 42.91 | L100: =VLOOKUP($D100,'C.1 - Rate Sheets'!B:F,3,FALSE) -> 51.71 | M100: =VLOOKUP($D100,'C.1 - Rate Sheets'!B:F,4,FALSE) -> 60.5 | N100: =VLOOKUP($D100,'C.1 - Rate Sheets'!B:F,5,FALSE) -> 0 | S100: 0 | X100: 0 | Y100: 40 | Z100: 56 | AA100: 16 | AC100: 112 | AH100: 0 | AN100: 40 | AO100: 56 | AP100: 16 | AQ100: 0 | AR100: 112 | AS100: 1716.4 | AT100: 2895.76 | AU100: 968 | AV100: 0 | AW100: 5580.16 | AX100: 5580.16 | AY100: Yes | AZ100: 0 | BA100: 0 | BB100: 0
B101: 83 | C101: David Harrelson | D101: Foreman | E101: Vendor No.5 | F101: 135 | G101: 124554J | H101: 2018-10-17 | I101: 2018-10-21 | J101: =IF(AND(H101>='A - Contractor Summary'!$C$36,I101<='A - Contractor Summary'!$C$42),"Yes","No") -> Yes | K101: =VLOOKUP($D101,'C.1 - Rate Sheets'!B:F,2,FALSE) -> 83.12 | L101: =VLOOKUP($D101,'C.1 - Rate Sheets'!B:F,3,FALSE) -> 101.97 | M101: =VLOOKUP($D101,'C.1 - Rate Sheets'!B:F,4,FALSE) -> 120.82 | N101: =VLOOKUP($D101,'C.1 - Rate Sheets'!B:F,5,FALSE) -> 0 | S101: 0 | T101: 25 | U101: 39 | V101: 16 | X101: 80 | AC101: 0 | AH101: 0 | AN101: 25 | AO101: 39 | AP101: 16 | AQ101: 0 | AR101: 80 | AS101: 2078 | AT101: 3976.83 | AU101: 1933.12 | AV101: 0 | AW101: 7987.95 | AX101: 7987.95 | AY101: Yes | AZ101: 0 | BA101: 0 | BB101: 0
B102: 84 | C102: Tyler Crane | D102: Apprentice Lineman | E102: Vendor No.5 | F102: 135 | G102: 124554J | H102: 2018-10-17 | I102: 2018-10-21 | J102: =IF(AND(H102>='A - Contractor Summary'!$C$36,I102<='A - Contractor Summary'!$C$42),"Yes","No") -> Yes | K102: =VLOOKUP($D102,'C.1 - Rate Sheets'!B:F,2,FALSE) -> 68.04 | L102: =VLOOKUP($D102,'C.1 - Rate Sheets'!B:F,3,FALSE) -> 83.12 | M102: =VLOOKUP($D102,'C.1 - Rate Sheets'!B:F,4,FALSE) -> 98.2 | N102: =VLOOKUP($D102,'C.1 - Rate Sheets'!B:F,5,FALSE) -> 0 | S102: 0 | T102: 25 | U102: 39 | V102: 16 | X102: 80 | AC102: 0 | AH102: 0 | AN102: 25 | AO102: 39 | AP102: 16 | AQ102: 0 | AR102: 80 | AS102: 1701 | AT102: 3241.68 | AU102: 1571.2 | AV102: 0 | AW102: 6513.88 | AX102: 6513.88 | AY102: Yes | AZ102: 0 | BA102: 0 | BB102: 0
B103: 85 | C103: James Morgan | D103: Apprentice Lineman | E103: Vendor No.5 | F103: 135 | G103: 124554J | H103: 2018-10-17 | I103: 2018-10-21 | J103: =IF(AND(H103>='A - Contractor Summary'!$C$36,I103<='A - Contractor Summary'!$C$42),"Yes","No") -> Yes | K103: =VLOOKUP($D103,'C.1 - Rate Sheets'!B:F,2,FALSE) -> 68.04 | L103: =VLOOKUP($D103,'C.1 - Rate Sheets'!B:F,3,FALSE) -> 83.12 | M103: =VLOOKUP($D103,'C.1 - Rate Sheets'!B:F,4,FALSE) -> 98.2 | N103: =VLOOKUP($D103,'C.1 - Rate Sheets'!B:F,5,FALSE) -> 0 | S103: 0 | T103: 25 | U103: 39 | V103: 16 | X103: 80 | AC103: 0 | AH103: 0 | AN103: 25 | AO103: 39 | AP103: 16 | AQ103: 0 | AR103: 80 | AS103: 1701 | AT103: 3241.68 | AU103: 1571.2 | AV103: 0 | AW103: 6513.88 | AX103: 6513.88 | AY103: Yes | AZ103: 0 | BA103: 0 | BB103: 0
B104: 86 | C104: Jace Dunne | D104: Apprentice Lineman | E104: Vendor No.5 | F104: 135 | G104: 124554J | H104: 2018-10-17 | I104: 2018-10-21 | J104: =IF(AND(H104>='A - Contractor Summary'!$C$36,I104<='A - Contractor Summary'!$C$42),"Yes","No") -> Yes | K104: =VLOOKUP($D104,'C.1 - Rate Sheets'!B:F,2,FALSE) -> 68.04 | L104: =VLOOKUP($D104,'C.1 - Rate Sheets'!B:F,3,FALSE) -> 83.12 | M104: =VLOOKUP($D104,'C.1 - Rate Sheets'!B:F,4,FALSE) -> 98.2 | N104: =VLOOKUP($D104,'C.1 - Rate Sheets'!B:F,5,FALSE) -> 0 | S104: 0 | T104: 25 | U104: 39 | V104: 16 | X104: 80 | AC104: 0 | AH104: 0 | AN104: 25 | AO104: 39 | AP104: 16 | AQ104: 0 | AR104: 80 | AS104: 1701 | AT104: 3241.68 | AU104: 1571.2 | AV104: 0 | AW104: 6513.88 | AX104: 6513.88 | AY104: Yes | AZ104: 0 | BA104: 0 | BB104: 0
B105: 87 | C105: Keith Giuilbeaux | D105: Foreman | E105: Vendor No.5 | F105: 123 | G105: 124594J | H105: 2018-10-17 | I105: 2018-10-21 | J105: =IF(AND(H105>='A - Contractor Summary'!$C$36,I105<='A - Contractor Summary'!$C$42),"Yes","No") -> Yes | K105: =VLOOKUP($D105,'C.1 - Rate Sheets'!B:F,2,FALSE) -> 83.12 | L105: =VLOOKUP($D105,'C.1 - Rate Sheets'!B:F,3,FALSE) -> 101.97 | M105: =VLOOKUP($D105,'C.1 - Rate Sheets'!B:F,4,FALSE) -> 120.82 | N105: =VLOOKUP($D105,'C.1 - Rate Sheets'!B:F,5,FALSE) -> 0 | S105: 0 | T105: 19 | U105: 45 | V105: 16 | X105: 80 | AC105: 0 | AH105: 0 | AN105: 19 | AO105: 45 | AP105: 16 | AQ105: 0 | AR105: 80 | AS105: 1579.28 | AT105: 4588.65 | AU105: 1933.12 | AV105: 0 | AW105: 8101.05 | AX105: 8101.05 | AY105: Yes | AZ105: 0 | BA105: 0 | BB105: 0
B106: 88 | C106: Shawn McElroy | D106: Lineman | E106: Vendor No.5 | F106: 123 | G106: 124594J | H106: 2018-10-17 | I106: 2018-10-21 | J106: =IF(AND(H106>='A - Contractor Summary'!$C$36,I106<='A - Contractor Summary'!$C$42),"Yes","No") -> Yes | K106: =VLOOKUP($D106,'C.1 - Rate Sheets'!B:F,2,FALSE) -> 78.09 | L106: =VLOOKUP($D106,'C.1 - Rate Sheets'!B:F,3,FALSE) -> 95.69 | M106: =VLOOKUP($D106,'C.1 - Rate Sheets'!B:F,4,FALSE) -> 113.28 | N106: =VLOOKUP($D106,'C.1 - Rate Sheets'!B:F,5,FALSE) -> 0 | S106: 0 | T106: 19 | U106: 45 | V106: 16 | X106: 80 | AC106: 0 | AH106: 0 | AN106: 19 | AO106: 45 | AP106: 16 | AQ106: 0 | AR106: 80 | AS106: 1483.71 | AT106: 4306.05 | AU106: 1812.48 | AV106: 0 | AW106: 7602.24 | AX106: 7602.24 | AY106: Yes | AZ106: 0 | BA106: 0 | BB106: 0
B107: 89 | C107: Dwayne Babin | D107: Lineman | E107: Vendor No.5 | F107: 123 | G107: 124594J | H107: 2018-10-17 | I107: 2018-10-21 | J107: =IF(AND(H107>='A - Contractor Summary'!$C$36,I107<='A - Contractor Summary'!$C$42),"Yes","No") -> Yes | K107: =VLOOKUP($D107,'C.1 - Rate Sheets'!B:F,2,FALSE) -> 78.09 | L107: =VLOOKUP($D107,'C.1 - Rate Sheets'!B:F,3,FALSE) -> 95.69 | M107: =VLOOKUP($D107,'C.1 - Rate Sheets'!B:F,4,FALSE) -> 113.28 | N107: =VLOOKUP($D107,'C.1 - Rate Sheets'!B:F,5,FALSE) -> 0 | S107: 0 | T107: 19 | U107: 45 | V107: 16 | X107: 80 | AC107: 0 | AH107: 0 | AN107: 19 | AO107: 45 | AP107: 16 | AQ107: 0 | AR107: 80 | AS107: 1483.71 | AT107: 4306.05 | AU107: 1812.48 | AV107: 0 | AW107: 7602.24 | AX107: 7602.24 | AY107: Yes | AZ107: 0 | BA107: 0 | BB107: 0
B108: 90 | C108: Cedric Smith | D108: Equipment Operator | E108: Vendor No.5 | F108: 123 | G108: 124594J | H108: 2018-10-17 | I108: 2018-10-21 | J108: =IF(AND(H108>='A - Contractor Summary'!$C$36,I108<='A - Contractor Summary'!$C$42),"Yes","No") -> Yes | K108: =VLOOKUP($D108,'C.1 - Rate Sheets'!B:F,2,FALSE) -> 60.5 | L108: =VLOOKUP($D108,'C.1 - Rate Sheets'!B:F,3,FALSE) -> 73.7 | M108: =VLOOKUP($D108,'C.1 - Rate Sheets'!B:F,4,FALSE) -> 86.89 | N108: =VLOOKUP($D108,'C.1 - Rate Sheets'!B:F,5,FALSE) -> 0 | S108: 0 | T108: 19 | U108: 45 | V108: 16 | X108: 80 | AC108: 0 | AH108: 0 | AN108: 19 | AO108: 45 | AP108: 16 | AQ108: 0 | AR108: 80 | AS108: 1149.5 | AT108: 3316.5 | AU108: 1390.24 | AV108: 0 | AW108: 5856.24 | AX108: 5856.24 | AY108: Yes | AZ108: 0 | BA108: 0 | BB108: 0
B109: 91 | C109: Trevon Lewis | D109: Groundman | E109: Vendor No.5 | F109: 123 | G109: 124594J | H109: 2018-10-17 | I109: 2018-10-21 | J109: =IF(AND(H109>='A - Contractor Summary'!$C$36,I109<='A - Contractor Summary'!$C$42),"Yes","No") -> Yes | K109: =VLOOKUP($D109,'C.1 - Rate Sheets'!B:F,2,FALSE) -> 42.91 | L109: =VLOOKUP($D109,'C.1 - Rate Sheets'!B:F,3,FALSE) -> 51.71 | M109: =VLOOKUP($D109,'C.1 - Rate Sheets'!B:F,4,FALSE) -> 60.5 | N109: =VLOOKUP($D109,'C.1 - Rate Sheets'!B:F,5,FALSE) -> 0 | S109: 0 | T109: 40 | U109: 24 | V109: 16 | X109: 80 | AC109: 0 | AH109: 0 | AN109: 40 | AO109: 24 | AP109: 16 | AQ109: 0 | AR109: 80 | AS109: 1716.4 | AT109: 1241.04 | AU109: 968 | AV109: 0 | AW109: 3925.44 | AX109: 3925.44 | AY109: Yes | AZ109: 0 | BA109: 0 | BB109: 0
B110: 92 | C110: Keith Cockerham | D110: General Foreman | E110: Vendor No.5 | F110: 005 | G110: 125429J | H110: 2018-10-11 | I110: 2018-10-14 | J110: =IF(AND(H110>='A - Contractor Summary'!$C$36,I110<='A - Contractor Summary'!$C$42),"Yes","No") -> Yes | K110: =VLOOKUP($D110,'C.1 - Rate Sheets'!B:F,2,FALSE) -> 95.69 | L110: =VLOOKUP($D110,'C.1 - Rate Sheets'!B:F,3,FALSE) -> 117.68 | M110: =VLOOKUP($D110,'C.1 - Rate Sheets'!B:F,4,FALSE) -> 139.67 | N110: =VLOOKUP($D110,'C.1 - Rate Sheets'!B:F,5,FALSE) -> 0 | O110: 10 | P110: 38 | Q110: 16 | S110: 64 | X110: 0 | AC110: 0 | AH110: 0 | AN110: 10 | AO110: 38 | AP110: 16 | AQ110: 0 | AR110: 64 | AS110: 956.9 | AT110: 4471.84 | AU110: 2234.72 | AV110: 0 | AW110: 7663.46 | AX110: 7663.46 | AY110: Yes | AZ110: 0 | BA110: 0 | BB110: 0
B111: 93 | C111: Carlos Smith | D111: Safety Supervisor | E111: Vendor No.5 | F111: 005 | G111: 125429J | H111: 2018-10-11 | I111: 2018-10-14 | J111: =IF(AND(H111>='A - Contractor Summary'!$C$36,I111<='A - Contractor Summary'!$C$42),"Yes","No") -> Yes | K111: =VLOOKUP($D111,'C.1 - Rate Sheets'!B:F,2,FALSE) -> 99.12 | L111: =VLOOKUP($D111,'C.1 - Rate Sheets'!B:F,3,FALSE) -> 117.68 | M111: =VLOOKUP($D111,'C.1 - Rate Sheets'!B:F,4,FALSE) -> 139.67 | N111: =VLOOKUP($D111,'C.1 - Rate Sheets'!B:F,5,FALSE) -> 0 | O111: 10 | P111: 38 | Q111: 16 | S111: 64 | X111: 0 | AC111: 0 | AH111: 0 | AN111: 10 | AO111: 38 | AP111: 16 | AQ111: 0 | AR111: 64 | AS111: 991.2 | AT111: 4471.84 | AU111: 2234.72 | AV111: 0 | AW111: 7697.76 | AX111: 7697.76 | AY111: Yes | AZ111: 0 | BA111: 0 | BB111: 0
B112: 94 | C112: Terry Rose | D112: Foreman | E112: Vendor No.5 | F112: 151 | G112: 125434J | H112: 2018-10-11 | I112: 2018-10-14 | J112: =IF(AND(H112>='A - Contractor Summary'!$C$36,I112<='A - Contractor Summary'!$C$42),"Yes","No") -> Yes | K112: =VLOOKUP($D112,'C.1 - Rate Sheets'!B:F,2,FALSE) -> 83.12 | L112: =VLOOKUP($D112,'C.1 - Rate Sheets'!B:F,3,FALSE) -> 101.97 | M112: =VLOOKUP($D112,'C.1 - Rate Sheets'!B:F,4,FALSE) -> 120.82 | N112: =VLOOKUP($D112,'C.1 - Rate Sheets'!B:F,5,FALSE) -> 0 | O112: 10 | P112: 38 | Q112: 16 | S112: 64 | X112: 0 | AC112: 0 | AH112: 0 | AN112: 10 | AO112: 38 | AP112: 16 | AQ112: 0 | AR112: 64 | AS112: 831.2 | AT112: 3874.86 | AU112: 1933.12 | AV112: 0 | AW112: 6639.18 | AX112: 6639.18 | AY112: Yes | AZ112: 0 | BA112: 0 | BB112: 0
B113: 95 | C113: Colin Shirey | D113: Apprentice Lineman | E113: Vendor No.5 | F113: 151 | G113: 125434J | H113: 2018-10-11 | I113: 2018-10-14 | J113: =IF(AND(H113>='A - Contractor Summary'!$C$36,I113<='A - Contractor Summary'!$C$42),"Yes","No") -> Yes | K113: =VLOOKUP($D113,'C.1 - Rate Sheets'!B:F,2,FALSE) -> 68.04 | L113: =VLOOKUP($D113,'C.1 - Rate Sheets'!B:F,3,FALSE) -> 83.12 | M113: =VLOOKUP($D113,'C.1 - Rate Sheets'!B:F,4,FALSE) -> 98.2 | N113: =VLOOKUP($D113,'C.1 - Rate Sheets'!B:F,5,FALSE) -> 0 | O113: 10 | P113: 38 | Q113: 16 | S113: 64 | X113: 0 | AC113: 0 | AH113: 0 | AN113: 10 | AO113: 38 | AP113: 16 | AQ113: 0 | AR113: 64 | AS113: 680.4 | AT113: 3158.56 | AU113: 1571.2 | AV113: 0 | AW113: 5410.16 | AX113: 5410.16 | AY113: Yes | AZ113: 0 | BA113: 0 | BB113: 0
B114: 96 | C114: Justin Beach | D114: Apprentice Lineman | E114: Vendor No.5 | F114: 151 | G114: 125434J | H114: 2018-10-11 | I114: 2018-10-14 | J114: =IF(AND(H114>='A - Contractor Summary'!$C$36,I114<='A - Contractor Summary'!$C$42),"Yes","No") -> Yes | K114: =VLOOKUP($D114,'C.1 - Rate Sheets'!B:F,2,FALSE) -> 68.04 | L114: =VLOOKUP($D114,'C.1 - Rate Sheets'!B:F,3,FALSE) -> 83.12 | M114: =VLOOKUP($D114,'C.1 - Rate Sheets'!B:F,4,FALSE) -> 98.2 | N114: =VLOOKUP($D114,'C.1 - Rate Sheets'!B:F,5,FALSE) -> 0 | O114: 10 | P114: 38 | Q114: 16 | S114: 64 | X114: 0 | AC114: 0 | AH114: 0 | AN114: 10 | AO114: 38 | AP114: 16 | AQ114: 0 | AR114: 64 | AS114: 680.4 | AT114: 3158.56 | AU114: 1571.2 | AV114: 0 | AW114: 5410.16 | AX114: 5410.16 | AY114: Yes | AZ114: 0 | BA114: 0 | BB114: 0
B115: 97 | C115: Michael Swain | D115: Equipment Operator | E115: Vendor No.5 | F115: 151 | G115: 125434J | H115: 2018-10-11 | I115: 2018-10-14 | J115: =IF(AND(H115>='A - Contractor Summary'!$C$36,I115<='A - Contractor Summary'!$C$42),"Yes","No") -> Yes | K115: =VLOOKUP($D115,'C.1 - Rate Sheets'!B:F,2,FALSE) -> 60.5 | L115: =VLOOKUP($D115,'C.1 - Rate Sheets'!B:F,3,FALSE) -> 73.7 | M115: =VLOOKUP($D115,'C.1 - Rate Sheets'!B:F,4,FALSE) -> 86.89 | N115: =VLOOKUP($D115,'C.1 - Rate Sheets'!B:F,5,FALSE) -> 0 | O115: 10 | P115: 38 | Q115: 16 | S115: 64 | X115: 0 | AC115: 0 | AH115: 0 | AN115: 10 | AO115: 38 | AP115: 16 | AQ115: 0 | AR115: 64 | AS115: 605 | AT115: 2800.6 | AU115: 1390.24 | AV115: 0 | AW115: 4795.84 | AX115: 4795.84 | AY115: Yes | AZ115: 0 | BA115: 0 | BB115: 0
B116: 98 | C116: Matthew White | D116: Groundman | E116: Vendor No.5 | F116: 151 | G116: 125434J | H116: 2018-10-11 | I116: 2018-10-14 | J116: =IF(AND(H116>='A - Contractor Summary'!$C$36,I116<='A - Contractor Summary'!$C$42),"Yes","No") -> Yes | K116: =VLOOKUP($D116,'C.1 - Rate Sheets'!B:F,2,FALSE) -> 42.91 | L116: =VLOOKUP($D116,'C.1 - Rate Sheets'!B:F,3,FALSE) -> 51.71 | M116: =VLOOKUP($D116,'C.1 - Rate Sheets'!B:F,4,FALSE) -> 60.5 | N116: =VLOOKUP($D116,'C.1 - Rate Sheets'!B:F,5,FALSE) -> 0 | O116: 10 | P116: 38 | Q116: 16 | S116: 64 | X116: 0 | AC116: 0 | AH116: 0 | AN116: 10 | AO116: 38 | AP116: 16 | AQ116: 0 | AR116: 64 | AS116: 429.1 | AT116: 1964.98 | AU116: 968 | AV116: 0 | AW116: 3362.08 | AX116: 3362.08 | AY116: Yes | AZ116: 0 | BA116: 0 | BB116: 0
B117: 99 | C117: Wayne Boyett | D117: Foreman | E117: Vendor No.5 | F117: 165 | G117: 125439J | H117: 2018-10-11 | I117: 2018-10-14 | J117: =IF(AND(H117>='A - Contractor Summary'!$C$36,I117<='A - Contractor Summary'!$C$42),"Yes","No") -> Yes | K117: =VLOOKUP($D117,'C.1 - Rate Sheets'!B:F,2,FALSE) -> 83.12 | L117: =VLOOKUP($D117,'C.1 - Rate Sheets'!B:F,3,FALSE) -> 101.97 | M117: =VLOOKUP($D117,'C.1 - Rate Sheets'!B:F,4,FALSE) -> 120.82 | N117: =VLOOKUP($D117,'C.1 - Rate Sheets'!B:F,5,FALSE) -> 0 | O117: 10 | P117: 38 | Q117: 16 | S117: 64 | X117: 0 | AC117: 0 | AH117: 0 | AN117: 10 | AO117: 38 | AP117: 16 | AQ117: 0 | AR117: 64 | AS117: 831.2 | AT117: 3874.86 | AU117: 1933.12 | AV117: 0 | AW117: 6639.18 | AX117: 6639.18 | AY117: Yes | AZ117: 0 | BA117: 0 | BB117: 0
B118: 100 | C118: Josh Waxley | D118: Lineman | E118: Vendor No.5 | F118: 165 | G118: 125439J | H118: 2018-10-11 | I118: 2018-10-14 | J118: =IF(AND(H118>='A - Contractor Summary'!$C$36,I118<='A - Contractor Summary'!$C$42),"Yes","No") -> Yes | K118: =VLOOKUP($D118,'C.1 - Rate Sheets'!B:F,2,FALSE) -> 78.09 | L118: =VLOOKUP($D118,'C.1 - Rate Sheets'!B:F,3,FALSE) -> 95.69 | M118: =VLOOKUP($D118,'C.1 - Rate Sheets'!B:F,4,FALSE) -> 113.28 | N118: =VLOOKUP($D118,'C.1 - Rate Sheets'!B:F,5,FALSE) -> 0 | O118: 10 | P118: 38 | Q118: 16 | S118: 64 | X118: 0 | AC118: 0 | AH118: 0 | AN118: 10 | AO118: 38 | AP118: 16 | AQ118: 0 | AR118: 64 | AS118: 780.9 | AT118: 3636.22 | AU118: 1812.48 | AV118: 0 | AW118: 6229.6 | AX118: 6229.6 | AY118: Yes | AZ118: 0 | BA118: 0 | BB118: 0
B119: 101 | C119: Michael Snipe | D119: Equipment Operator | E119: Vendor No.5 | F119: 165 | G119: 125439J | H119: 2018-10-11 | I119: 2018-10-14 | J119: =IF(AND(H119>='A - Contractor Summary'!$C$36,I119<='A - Contractor Summary'!$C$42),"Yes","No") -> Yes | K119: =VLOOKUP($D119,'C.1 - Rate Sheets'!B:F,2,FALSE) -> 60.5 | L119: =VLOOKUP($D119,'C.1 - Rate Sheets'!B:F,3,FALSE) -> 73.7 | M119: =VLOOKUP($D119,'C.1 - Rate Sheets'!B:F,4,FALSE) -> 86.89 | N119: =VLOOKUP($D119,'C.1 - Rate Sheets'!B:F,5,FALSE) -> 0 | O119: 10 | P119: 38 | Q119: 16 | S119: 64 | X119: 0 | AC119: 0 | AH119: 0 | AN119: 10 | AO119: 38 | AP119: 16 | AQ119: 0 | AR119: 64 | AS119: 605 | AT119: 2800.6 | AU119: 1390.24 | AV119: 0 | AW119: 4795.84 | AX119: 4795.84 | AY119: Yes | AZ119: 0 | BA119: 0 | BB119: 0
B120: 102 | C120: Johnny McKinney | D120: Apprentice Lineman | E120: Vendor No.5 | F120: 165 | G120: 125439J | H120: 2018-10-11 | I120: 2018-10-14 | J120: =IF(AND(H120>='A - Contractor Summary'!$C$36,I120<='A - Contractor Summary'!$C$42),"Yes","No") -> Yes | K120: =VLOOKUP($D120,'C.1 - Rate Sheets'!B:F,2,FALSE) -> 68.04 | L120: =VLOOKUP($D120,'C.1 - Rate Sheets'!B:F,3,FALSE) -> 83.12 | M120: =VLOOKUP($D120,'C.1 - Rate Sheets'!B:F,4,FALSE) -> 98.2 | N120: =VLOOKUP($D120,'C.1 - Rate Sheets'!B:F,5,FALSE) -> 0 | O120: 10 | P120: 38 | Q120: 16 | S120: 64 | X120: 0 | AC120: 0 | AH120: 0 | AN120: 10 | AO120: 38 | AP120: 16 | AQ120: 0 | AR120: 64 | AS120: 680.4 | AT120: 3158.56 | AU120: 1571.2 | AV120: 0 | AW120: 5410.16 | AX120: 5410.16 | AY120: Yes | AZ120: 0 | BA120: 0 | BB120: 0
B121: 103 | C121: Brian Cockerham | D121: Groundman | E121: Vendor No.5 | F121: 165 | G121: 125439J | H121: 2018-10-11 | I121: 2018-10-14 | J121: =IF(AND(H121>='A - Contractor Summary'!$C$36,I121<='A - Contractor Summary'!$C$42),"Yes","No") -> Yes | K121: =VLOOKUP($D121,'C.1 - Rate Sheets'!B:F,2,FALSE) -> 42.91 | L121: =VLOOKUP($D121,'C.1 - Rate Sheets'!B:F,3,FALSE) -> 51.71 | M121: =VLOOKUP($D121,'C.1 - Rate Sheets'!B:F,4,FALSE) -> 60.5 | N121: =VLOOKUP($D121,'C.1 - Rate Sheets'!B:F,5,FALSE) -> 0 | O121: 10 | P121: 38 | Q121: 16 | S121: 64 | X121: 0 | AC121: 0 | AH121: 0 | AN121: 10 | AO121: 38 | AP121: 16 | AQ121: 0 | AR121: 64 | AS121: 429.1 | AT121: 1964.98 | AU121: 968 | AV121: 0 | AW121: 3362.08 | AX121: 3362.08 | AY121: Yes | AZ121: 0 | BA121: 0 | BB121: 0
B122: 104 | C122: Keith Cockerham | D122: General Foreman | E122: Vendor No.5 | F122: 005 | G122: 125443J | H122: 2018-10-15 | I122: 2018-10-21 | J122: =IF(AND(H122>='A - Contractor Summary'!$C$36,I122<='A - Contractor Summary'!$C$42),"Yes","No") -> Yes | K122: =VLOOKUP($D122,'C.1 - Rate Sheets'!B:F,2,FALSE) -> 95.69 | L122: =VLOOKUP($D122,'C.1 - Rate Sheets'!B:F,3,FALSE) -> 117.68 | M122: =VLOOKUP($D122,'C.1 - Rate Sheets'!B:F,4,FALSE) -> 139.67 | N122: =VLOOKUP($D122,'C.1 - Rate Sheets'!B:F,5,FALSE) -> 0 | S122: 0 | T122: 40 | U122: 56 | V122: 16 | X122: 112 | AC122: 0 | AH122: 0 | AN122: 40 | AO122: 56 | AP122: 16 | AQ122: 0 | AR122: 112 | AS122: 3827.6 | AT122: 6590.08 | AU122: 2234.72 | AV122: 0 | AW122: 12652.4 | AX122: 12652.4 | AY122: Yes | AZ122: 0 | BA122: 0 | BB122: 0
B123: 105 | C123: Carlos Smith | D123: Safety Supervisor | E123: Vendor No.5 | F123: 005 | G123: 125443J | H123: 2018-10-15 | I123: 2018-10-21 | J123: =IF(AND(H123>='A - Contractor Summary'!$C$36,I123<='A - Contractor Summary'!$C$42),"Yes","No") -> Yes | K123: =VLOOKUP($D123,'C.1 - Rate Sheets'!B:F,2,FALSE) -> 99.12 | L123: =VLOOKUP($D123,'C.1 - Rate Sheets'!B:F,3,FALSE) -> 117.68 | M123: =VLOOKUP($D123,'C.1 - Rate Sheets'!B:F,4,FALSE) -> 139.67 | N123: =VLOOKUP($D123,'C.1 - Rate Sheets'!B:F,5,FALSE) -> 0 | S123: 0 | T123: 40 | U123: 56 | V123: 16 | X123: 112 | AC123: 0 | AH123: 0 | AN123: 40 | AO123: 56 | AP123: 16 | AQ123: 0 | AR123: 112 | AS123: 3964.8 | AT123: 6590.08 | AU123: 2234.72 | AV123: 0 | AW123: 12789.6 | AX123: 12789.6 | AY123: Yes | AZ123: 0 | BA123: 0 | BB123: 0
B124: 106 | C124: Terry Rose | D124: Foreman | E124: Vendor No.5 | F124: 151 | G124: 125452J | H124: 2018-10-15 | I124: 2018-10-21 | J124: =IF(AND(H124>='A - Contractor Summary'!$C$36,I124<='A - Contractor Summary'!$C$42),"Yes","No") -> Yes | K124: =VLOOKUP($D124,'C.1 - Rate Sheets'!B:F,2,FALSE) -> 83.12 | L124: =VLOOKUP($D124,'C.1 - Rate Sheets'!B:F,3,FALSE) -> 101.97 | M124: =VLOOKUP($D124,'C.1 - Rate Sheets'!B:F,4,FALSE) -> 120.82 | N124: =VLOOKUP($D124,'C.1 - Rate Sheets'!B:F,5,FALSE) -> 0 | S124: 0 | T124: 40 | U124: 56 | V124: 16 | X124: 112 | AC124: 0 | AH124: 0 | AN124: 40 | AO124: 56 | AP124: 16 | AQ124: 0 | AR124: 112 | AS124: 3324.8 | AT124: 5710.32 | AU124: 1933.12 | AV124: 0 | AW124: 10968.24 | AX124: 10968.24 | AY124: Yes | AZ124: 0 | BA124: 0 | BB124: 0
B125: 107 | C125: Colin Shirey | D125: Apprentice Lineman | E125: Vendor No.5 | F125: 151 | G125: 125452J | H125: 2018-10-15 | I125: 2018-10-21 | J125: =IF(AND(H125>='A - Contractor Summary'!$C$36,I125<='A - Contractor Summary'!$C$42),"Yes","No") -> Yes | K125: =VLOOKUP($D125,'C.1 - Rate Sheets'!B:F,2,FALSE) -> 68.04 | L125: =VLOOKUP($D125,'C.1 - Rate Sheets'!B:F,3,FALSE) -> 83.12 | M125: =VLOOKUP($D125,'C.1 - Rate Sheets'!B:F,4,FALSE) -> 98.2 | N125: =VLOOKUP($D125,'C.1 - Rate Sheets'!B:F,5,FALSE) -> 0 | S125: 0 | T125: 40 | U125: 56 | V125: 16 | X125: 112 | AC125: 0 | AH125: 0 | AN125: 40 | AO125: 56 | AP125: 16 | AQ125: 0 | AR125: 112 | AS125: 2721.6 | AT125: 4654.72 | AU125: 1571.2 | AV125: 0 | AW125: 8947.52 | AX125: 8947.52 | AY125: Yes | AZ125: 0 | BA125: 0 | BB125: 0
B126: 108 | C126: Justin Beach | D126: Apprentice Lineman | E126: Vendor No.5 | F126: 151 | G126: 125452J | H126: 2018-10-15 | I126: 2018-10-21 | J126: =IF(AND(H126>='A - Contractor Summary'!$C$36,I126<='A - Contractor Summary'!$C$42),"Yes","No") -> Yes | K126: =VLOOKUP($D126,'C.1 - Rate Sheets'!B:F,2,FALSE) -> 68.04 | L126: =VLOOKUP($D126,'C.1 - Rate Sheets'!B:F,3,FALSE) -> 83.12 | M126: =VLOOKUP($D126,'C.1 - Rate Sheets'!B:F,4,FALSE) -> 98.2 | N126: =VLOOKUP($D126,'C.1 - Rate Sheets'!B:F,5,FALSE) -> 0 | S126: 0 | T126: 40 | U126: 56 | V126: 16 | X126: 112 | AC126: 0 | AH126: 0 | AN126: 40 | AO126: 56 | AP126: 16 | AQ126: 0 | AR126: 112 | AS126: 2721.6 | AT126: 4654.72 | AU126: 1571.2 | AV126: 0 | AW126: 8947.52 | AX126: 8947.52 | AY126: Yes | AZ126: 0 | BA126: 0 | BB126: 0
B127: 109 | C127: Michael Swain | D127: Equipment Operator | E127: Vendor No.5 | F127: 151 | G127: 125452J | H127: 2018-10-15 | I127: 2018-10-21 | J127: =IF(AND(H127>='A - Contractor Summary'!$C$36,I127<='A - Contractor Summary'!$C$42),"Yes","No") -> Yes | K127: =VLOOKUP($D127,'C.1 - Rate Sheets'!B:F,2,FALSE) -> 60.5 | L127: =VLOOKUP($D127,'C.1 - Rate Sheets'!B:F,3,FALSE) -> 73.7 | M127: =VLOOKUP($D127,'C.1 - Rate Sheets'!B:F,4,FALSE) -> 86.89 | N127: =VLOOKUP($D127,'C.1 - Rate Sheets'!B:F,5,FALSE) -> 0 | S127: 0 | T127: 40 | U127: 56 | V127: 16 | X127: 112 | AC127: 0 | AH127: 0 | AN127: 40 | AO127: 56 | AP127: 16 | AQ127: 0 | AR127: 112 | AS127: 2420 | AT127: 4127.2 | AU127: 1390.24 | AV127: 0 | AW127: 7937.44 | AX127: 7937.44 | AY127: Yes | AZ127: 0 | BA127: 0 | BB127: 0
B128: 110 | C128: Matthew White | D128: Groundman | E128: Vendor No.5 | F128: 151 | G128: 125452J | H128: 2018-10-15 | I128: 2018-10-21 | J128: =IF(AND(H128>='A - Contractor Summary'!$C$36,I128<='A - Contractor Summary'!$C$42),"Yes","No") -> Yes | K128: =VLOOKUP($D128,'C.1 - Rate Sheets'!B:F,2,FALSE) -> 42.91 | L128: =VLOOKUP($D128,'C.1 - Rate Sheets'!B:F,3,FALSE) -> 51.71 | M128: =VLOOKUP($D128,'C.1 - Rate Sheets'!B:F,4,FALSE) -> 60.5 | N128: =VLOOKUP($D128,'C.1 - Rate Sheets'!B:F,5,FALSE) -> 0 | S128: 0 | T128: 40 | U128: 56 | V128: 16 | X128: 112 | AC128: 0 | AH128: 0 | AN128: 40 | AO128: 56 | AP128: 16 | AQ128: 0 | AR128: 112 | AS128: 1716.4 | AT128: 2895.76 | AU128: 968 | AV128: 0 | AW128: 5580.16 | AX128: 5580.16 | AY128: Yes | AZ128: 0 | BA128: 0 | BB128: 0
B129: 111 | C129: Wayne Boyett | D129: Foreman | E129: Vendor No.5 | F129: 165 | G129: 125456J | H129: 2018-10-15 | I129: 2018-10-21 | J129: =IF(AND(H129>='A - Contractor Summary'!$C$36,I129<='A - Contractor Summary'!$C$42),"Yes","No") -> Yes | K129: =VLOOKUP($D129,'C.1 - Rate Sheets'!B:F,2,FALSE) -> 83.12 | L129: =VLOOKUP($D129,'C.1 - Rate Sheets'!B:F,3,FALSE) -> 101.97 | M129: =VLOOKUP($D129,'C.1 - Rate Sheets'!B:F,4,FALSE) -> 120.82 | N129: =VLOOKUP($D129,'C.1 - Rate Sheets'!B:F,5,FALSE) -> 0 | S129: 0 | T129: 40 | U129: 56 | V129: 16 | X129: 112 | AC129: 0 | AH129: 0 | AN129: 40 | AO129: 56 | AP129: 16 | AQ129: 0 | AR129: 112 | AS129: 3324.8 | AT129: 5710.32 | AU129: 1933.12 | AV129: 0 | AW129: 10968.24 | AX129: 10968.24 | AY129: Yes | AZ129: 0 | BA129: 0 | BB129: 0
B130: 112 | C130: Josh Waxley | D130: Lineman | E130: Vendor No.5 | F130: 165 | G130: 125456J | H130: 2018-10-15 | I130: 2018-10-21 | J130: =IF(AND(H130>='A - Contractor Summary'!$C$36,I130<='A - Contractor Summary'!$C$42),"Yes","No") -> Yes | K130: =VLOOKUP($D130,'C.1 - Rate Sheets'!B:F,2,FALSE) -> 78.09 | L130: =VLOOKUP($D130,'C.1 - Rate Sheets'!B:F,3,FALSE) -> 95.69 | M130: =VLOOKUP($D130,'C.1 - Rate Sheets'!B:F,4,FALSE) -> 113.28 | N130: =VLOOKUP($D130,'C.1 - Rate Sheets'!B:F,5,FALSE) -> 0 | S130: 0 | T130: 40 | U130: 56 | V130: 16 | X130: 112 | AC130: 0 | AH130: 0 | AN130: 40 | AO130: 56 | AP130: 16 | AQ130: 0 | AR130: 112 | AS130: =AN130*K130 -> 3123.6 | AT130: =AO130*L130 -> 5358.64 | AU130: =AP130*M130 -> 1812.48 | AV130: =AQ130*N130 -> 0 | AW130: =SUM(AS130:AV130) -> 10294.72 | AX130: =AW130-AZ130 -> 10294.72 | AY130: Yes | AZ130: 0 | BA130: 0 | BB130: 0
B131: 113 | C131: Michael Snipe | D131: Equipment Operator | E131: Vendor No.5 | F131: 165 | G131: 125456J | H131: 2018-10-15 | I131: 2018-10-21 | J131: =IF(AND(H131>='A - Contractor Summary'!$C$36,I131<='A - Contractor Summary'!$C$42),"Yes","No") -> Yes | K131: =VLOOKUP($D131,'C.1 - Rate Sheets'!B:F,2,FALSE) -> 60.5 | L131: =VLOOKUP($D131,'C.1 - Rate Sheets'!B:F,3,FALSE) -> 73.7 | M131: =VLOOKUP($D131,'C.1 - Rate Sheets'!B:F,4,FALSE) -> 86.89 | N131: =VLOOKUP($D131,'C.1 - Rate Sheets'!B:F,5,FALSE) -> 0 | S131: 0 | T131: 40 | U131: 56 | V131: 16 | X131: 112 | AC131: 0 | AH131: 0 | AN131: 40 | AO131: 56 | AP131: 16 | AQ131: 0 | AR131: 112 | AS131: 2420 | AT131: 4127.2 | AU131: 1390.24 | AV131: 0 | AW131: 7937.44 | AX131: 7937.44 | AY131: Yes | AZ131: 0 | BA131: 0 | BB131: 0
B132: 114 | C132: Johnny McKinney | D132: Apprentice Lineman | E132: Vendor No.5 | F132: 165 | G132: 125456J | H132: 2018-10-15 | I132: 2018-10-21 | J132: =IF(AND(H132>='A - Contractor Summary'!$C$36,I132<='A - Contractor Summary'!$C$42),"Yes","No") -> Yes | K132: =VLOOKUP($D132,'C.1 - Rate Sheets'!B:F,2,FALSE) -> 68.04 | L132: =VLOOKUP($D132,'C.1 - Rate Sheets'!B:F,3,FALSE) -> 83.12 | M132: =VLOOKUP($D132,'C.1 - Rate Sheets'!B:F,4,FALSE) -> 98.2 | N132: =VLOOKUP($D132,'C.1 - Rate Sheets'!B:F,5,FALSE) -> 0 | S132: 0 | T132: 40 | U132: 56 | V132: 16 | X132: 112 | AC132: 0 | AH132: 0 | AN132: =SUM(O132,T132,Y132,AD132) -> 40 | AO132: =SUM(P132,U132,Z132,AE132) -> 56 | AP132: =SUM(Q132,V132,AA132,AF132) -> 16 | AQ132: =SUM(R132,W132,AB132,AG132) -> 0 | AR132: =SUM(AN132:AQ132) -> 112 | AS132: 2721.6 | AT132: 4654.72 | AU132: 1571.2 | AV132: 0 | AW132: 8947.52 | AX132: 8947.52 | AY132: Yes | AZ132: 0 | BA132: 0 | BB132: 0
B133: 115 | C133: Brian Cockerham | D133: Groundman | E133: Vendor No.5 | F133: 165 | G133: 125456J | H133: 2018-10-15 | I133: 2018-10-21 | J133: =IF(AND(H133>='A - Contractor Summary'!$C$36,I133<='A - Contractor Summary'!$C$42),"Yes","No") -> Yes | K133: =VLOOKUP($D133,'C.1 - Rate Sheets'!B:F,2,FALSE) -> 42.91 | L133: =VLOOKUP($D133,'C.1 - Rate Sheets'!B:F,3,FALSE) -> 51.71 | M133: =VLOOKUP($D133,'C.1 - Rate Sheets'!B:F,4,FALSE) -> 60.5 | N133: =VLOOKUP($D133,'C.1 - Rate Sheets'!B:F,5,FALSE) -> 0 | S133: 0 | T133: 40 | U133: 56 | V133: 16 | X133: 112 | AC133: 0 | AH133: 0 | AN133: 40 | AO133: 56 | AP133: 16 | AQ133: 0 | AR133: 112 | AS133: 1716.4 | AT133: 2895.76 | AU133: 968 | AV133: 0 | AW133: 5580.16 | AX133: 5580.16 | AY133: Yes | AZ133: 0 | BA133: 0 | BB133: 0
B134: 116 | C134: Keith Cockerham | D134: General Foreman | E134: Vendor No.5 | F134: 005 | G134: 125465J | H134: 2018-10-22 | I134: 2018-10-28 | J134: =IF(AND(H134>='A - Contractor Summary'!$C$36,I134<='A - Contractor Summary'!$C$42),"Yes","No") -> Yes | K134: =VLOOKUP($D134,'C.1 - Rate Sheets'!B:F,2,FALSE) -> 95.69 | L134: =VLOOKUP($D134,'C.1 - Rate Sheets'!B:F,3,FALSE) -> 117.68 | M134: =VLOOKUP($D134,'C.1 - Rate Sheets'!B:F,4,FALSE) -> 139.67 | N134: =VLOOKUP($D134,'C.1 - Rate Sheets'!B:F,5,FALSE) -> 0 | S134: 0 | X134: 0 | Y134: 40 | Z134: 56 | AA134: 16 | AC134: 112 | AH134: 0 | AN134: 40 | AO134: 56 | AP134: 16 | AQ134: 0 | AR134: 112 | AS134: 3827.6 | AT134: 6590.08 | AU134: 2234.72 | AV134: 0 | AW134: 12652.4 | AX134: 12652.4 | AY134: Yes | AZ134: 0 | BA134: 0 | BB134: 0
B135: 117 | C135: Carlos Smith | D135: Safety Supervisor | E135: Vendor No.5 | F135: 005 | G135: 125465J | H135: 2018-10-22 | I135: 2018-10-28 | J135: =IF(AND(H135>='A - Contractor Summary'!$C$36,I135<='A - Contractor Summary'!$C$42),"Yes","No") -> Yes | K135: =VLOOKUP($D135,'C.1 - Rate Sheets'!B:F,2,FALSE) -> 99.12 | L135: =VLOOKUP($D135,'C.1 - Rate Sheets'!B:F,3,FALSE) -> 117.68 | M135: =VLOOKUP($D135,'C.1 - Rate Sheets'!B:F,4,FALSE) -> 139.67 | N135: =VLOOKUP($D135,'C.1 - Rate Sheets'!B:F,5,FALSE) -> 0 | S135: 0 | X135: 0 | Y135: 40 | Z135: 56 | AA135: 16 | AC135: 112 | AH135: 0 | AN135: 40 | AO135: 56 | AP135: 16 | AQ135: 0 | AR135: 112 | AS135: 3964.8 | AT135: 6590.08 | AU135: 2234.72 | AV135: 0 | AW135: 12789.6 | AX135: 12789.6 | AY135: Yes | AZ135: 0 | BA135: 0 | BB135: 0
B136: 118 | C136: Terry Rose | D136: Foreman | E136: Vendor No.5 | F136: 151 | G136: 125476J | H136: 2018-10-22 | I136: 2018-10-28 | J136: =IF(AND(H136>='A - Contractor Summary'!$C$36,I136<='A - Contractor Summary'!$C$42),"Yes","No") -> Yes | K136: =VLOOKUP($D136,'C.1 - Rate Sheets'!B:F,2,FALSE) -> 83.12 | L136: =VLOOKUP($D136,'C.1 - Rate Sheets'!B:F,3,FALSE) -> 101.97 | M136: =VLOOKUP($D136,'C.1 - Rate Sheets'!B:F,4,FALSE) -> 120.82 | N136: =VLOOKUP($D136,'C.1 - Rate Sheets'!B:F,5,FALSE) -> 0 | S136: 0 | X136: 0 | Y136: 40 | Z136: 56 | AA136: 16 | AC136: 112 | AH136: 0 | AN136: 40 | AO136: 56 | AP136: 16 | AQ136: 0 | AR136: 112 | AS136: 3324.8 | AT136: 5710.32 | AU136: 1933.12 | AV136: 0 | AW136: 10968.24 | AX136: 10968.24 | AY136: Yes | AZ136: 0 | BA136: 0 | BB136: 0
B137: 119 | C137: Colin Shirey | D137: Apprentice Lineman | E137: Vendor No.5 | F137: 151 | G137: 125476J | H137: 2018-10-22 | I137: 2018-10-28 | J137: =IF(AND(H137>='A - Contractor Summary'!$C$36,I137<='A - Contractor Summary'!$C$42),"Yes","No") -> Yes | K137: =VLOOKUP($D137,'C.1 - Rate Sheets'!B:F,2,FALSE) -> 68.04 | L137: =VLOOKUP($D137,'C.1 - Rate Sheets'!B:F,3,FALSE) -> 83.12 | M137: =VLOOKUP($D137,'C.1 - Rate Sheets'!B:F,4,FALSE) -> 98.2 | N137: =VLOOKUP($D137,'C.1 - Rate Sheets'!B:F,5,FALSE) -> 0 | S137: 0 | X137: 0 | Y137: 40 | Z137: 56 | AA137: 16 | AC137: 112 | AH137: 0 | AN137: 40 | AO137: 56 | AP137: 16 | AQ137: 0 | AR137: 112 | AS137: 2721.6 | AT137: 4654.72 | AU137: 1571.2 | AV137: 0 | AW137: 8947.52 | AX137: 8947.52 | AY137: Yes | AZ137: 0 | BA137: 0 | BB137: 0
B138: 120 | C138: Justin Beach | D138: Apprentice Lineman | E138: Vendor No.5 | F138: 151 | G138: 125476J | H138: 2018-10-22 | I138: 2018-10-28 | J138: =IF(AND(H138>='A - Contractor Summary'!$C$36,I138<='A - Contractor Summary'!$C$42),"Yes","No") -> Yes | K138: =VLOOKUP($D138,'C.1 - Rate Sheets'!B:F,2,FALSE) -> 68.04 | L138: =VLOOKUP($D138,'C.1 - Rate Sheets'!B:F,3,FALSE) -> 83.12 | M138: =VLOOKUP($D138,'C.1 - Rate Sheets'!B:F,4,FALSE) -> 98.2 | N138: =VLOOKUP($D138,'C.1 - Rate Sheets'!B:F,5,FALSE) -> 0 | S138: 0 | X138: 0 | Y138: 40 | Z138: 56 | AA138: 16 | AC138: 112 | AH138: 0 | AN138: 40 | AO138: 56 | AP138: 16 | AQ138: 0 | AR138: 112 | AS138: 2721.6 | AT138: 4654.72 | AU138: 1571.2 | AV138: 0 | AW138: 8947.52 | AX138: 8947.52 | AY138: Yes | AZ138: 0 | BA138: 0 | BB138: 0
B139: 121 | C139: Michael Swain | D139: Equipment Operator | E139: Vendor No.5 | F139: 151 | G139: 125476J | H139: 2018-10-22 | I139: 2018-10-28 | J139: =IF(AND(H139>='A - Contractor Summary'!$C$36,I139<='A - Contractor Summary'!$C$42),"Yes","No") -> Yes | K139: =VLOOKUP($D139,'C.1 - Rate Sheets'!B:F,2,FALSE) -> 60.5 | L139: =VLOOKUP($D139,'C.1 - Rate Sheets'!B:F,3,FALSE) -> 73.7 | M139: =VLOOKUP($D139,'C.1 - Rate Sheets'!B:F,4,FALSE) -> 86.89 | N139: =VLOOKUP($D139,'C.1 - Rate Sheets'!B:F,5,FALSE) -> 0 | S139: 0 | X139: 0 | Y139: 40 | Z139: 56 | AA139: 16 | AC139: 112 | AH139: 0 | AN139: 40 | AO139: 56 | AP139: 16 | AQ139: 0 | AR139: 112 | AS139: 2420 | AT139: 4127.2 | AU139: 1390.24 | AV139: 0 | AW139: 7937.44 | AX139: 7937.44 | AY139: Yes | AZ139: 0 | BA139: 0 | BB139: 0
B140: 122 | C140: Matthew White | D140: Groundman | E140: Vendor No.5 | F140: 151 | G140: 125476J | H140: 2018-10-22 | I140: 2018-10-28 | J140: =IF(AND(H140>='A - Contractor Summary'!$C$36,I140<='A - Contractor Summary'!$C$42),"Yes","No") -> Yes | K140: =VLOOKUP($D140,'C.1 - Rate Sheets'!B:F,2,FALSE) -> 42.91 | L140: =VLOOKUP($D140,'C.1 - Rate Sheets'!B:F,3,FALSE) -> 51.71 | M140: =VLOOKUP($D140,'C.1 - Rate Sheets'!B:F,4,FALSE) -> 60.5 | N140: =VLOOKUP($D140,'C.1 - Rate Sheets'!B:F,5,FALSE) -> 0 | S140: 0 | X140: 0 | Y140: 40 | Z140: 56 | AA140: 16 | AC140: 112 | AH140: 0 | AN140: 40 | AO140: 56 | AP140: 16 | AQ140: 0 | AR140: 112 | AS140: 1716.4 | AT140: 2895.76 | AU140: 968 | AV140: 0 | AW140: 5580.16 | AX140: 5580.16 | AY140: Yes | AZ140: 0 | BA140: 0 | BB140: 0
B141: 123 | C141: Danny Thomas | D141: Foreman | E141: Vendor No.5 | F141: 166 | G141: 125485J | H141: 2018-10-27 | I141: 2018-10-28 | J141: =IF(AND(H141>='A - Contractor Summary'!$C$36,I141<='A - Contractor Summary'!$C$42),"Yes","No") -> Yes | K141: =VLOOKUP($D141,'C.1 - Rate Sheets'!B:F,2,FALSE) -> 83.12 | L141: =VLOOKUP($D141,'C.1 - Rate Sheets'!B:F,3,FALSE) -> 101.97 | M141: =VLOOKUP($D141,'C.1 - Rate Sheets'!B:F,4,FALSE) -> 120.82 | N141: =VLOOKUP($D141,'C.1 - Rate Sheets'!B:F,5,FALSE) -> 0 | S141: 0 | X141: 0 | Z141: 16 | AA141: 16 | AC141: 32 | AH141: 0 | AN141: 0 | AO141: 16 | AP141: 16 | AQ141: 0 | AR141: 32 | AS141: 0 | AT141: 1631.52 | AU141: 1933.12 | AV141: 0 | AW141: 3564.64 | AX141: 3564.64 | AY141: Yes | AZ141: 0 | BA141: 0 | BB141: 0
B142: 124 | C142: Denver Warren | D142: Apprentice Lineman | E142: Vendor No.5 | F142: 166 | G142: 125485J | H142: 2018-10-27 | I142: 2018-10-28 | J142: =IF(AND(H142>='A - Contractor Summary'!$C$36,I142<='A - Contractor Summary'!$C$42),"Yes","No") -> Yes | K142: =VLOOKUP($D142,'C.1 - Rate Sheets'!B:F,2,FALSE) -> 68.04 | L142: =VLOOKUP($D142,'C.1 - Rate Sheets'!B:F,3,FALSE) -> 83.12 | M142: =VLOOKUP($D142,'C.1 - Rate Sheets'!B:F,4,FALSE) -> 98.2 | N142: =VLOOKUP($D142,'C.1 - Rate Sheets'!B:F,5,FALSE) -> 0 | S142: 0 | X142: 0 | Z142: 16 | AA142: 16 | AC142: 32 | AH142: 0 | AN142: 0 | AO142: 16 | AP142: 16 | AQ142: 0 | AR142: 32 | AS142: 0 | AT142: 1329.92 | AU142: 1571.2 | AV142: 0 | AW142: 2901.12 | AX142: 2901.12 | AY142: Yes | AZ142: 0 | BA142: 0 | BB142: 0
B143: 125 | C143: Jason Castle | D143: Apprentice Lineman | E143: Vendor No.5 | F143: 166 | G143: 125485J | H143: 2018-10-27 | I143: 2018-10-28 | J143: =IF(AND(H143>='A - Contractor Summary'!$C$36,I143<='A - Contractor Summary'!$C$42),"Yes","No") -> Yes | K143: =VLOOKUP($D143,'C.1 - Rate Sheets'!B:F,2,FALSE) -> 68.04 | L143: =VLOOKUP($D143,'C.1 - Rate Sheets'!B:F,3,FALSE) -> 83.12 | M143: =VLOOKUP($D143,'C.1 - Rate Sheets'!B:F,4,FALSE) -> 98.2 | N143: =VLOOKUP($D143,'C.1 - Rate Sheets'!B:F,5,FALSE) -> 0 | S143: 0 | X143: 0 | Z143: 16 | AA143: 16 | AC143: 32 | AH143: 0 | AN143: 0 | AO143: 16 | AP143: 16 | AQ143: 0 | AR143: 32 | AS143: 0 | AT143: 1329.92 | AU143: 1571.2 | AV143: 0 | AW143: 2901.12 | AX143: 2901.12 | AY143: Yes | AZ143: 0 | BA143: 0 | BB143: 0
B144: 126 | C144: Cody Webb | D144: Groundman | E144: Vendor No.5 | F144: 166 | G144: 125485J | H144: 2018-10-27 | I144: 2018-10-28 | J144: =IF(AND(H144>='A - Contractor Summary'!$C$36,I144<='A - Contractor Summary'!$C$42),"Yes","No") -> Yes | K144: =VLOOKUP($D144,'C.1 - Rate Sheets'!B:F,2,FALSE) -> 42.91 | L144: =VLOOKUP($D144,'C.1 - Rate Sheets'!B:F,3,FALSE) -> 51.71 | M144: =VLOOKUP($D144,'C.1 - Rate Sheets'!B:F,4,FALSE) -> 60.5 | N144: =VLOOKUP($D144,'C.1 - Rate Sheets'!B:F,5,FALSE) -> 0 | S144: 0 | X144: 0 | Z144: 16 | AA144: 16 | AC144: 32 | AH144: 0 | AN144: 0 | AO144: 16 | AP144: 16 | AQ144: 0 | AR144: 32 | AS144: 0 | AT144: 827.36 | AU144: 968 | AV144: 0 | AW144: 1795.36 | AX144: 1795.36 | AY144: Yes | AZ144: 0 | BA144: 0 | BB144: 0
B145: 127 | C145: Joseph Fuzzell | D145: Apprentice Lineman | E145: Vendor No.5 | F145: 166 | G145: 125485J | H145: 2018-10-27 | I145: 2018-10-28 | J145: =IF(AND(H145>='A - Contractor Summary'!$C$36,I145<='A - Contractor Summary'!$C$42),"Yes","No") -> Yes | K145: =VLOOKUP($D145,'C.1 - Rate Sheets'!B:F,2,FALSE) -> 68.04 | L145: =VLOOKUP($D145,'C.1 - Rate Sheets'!B:F,3,FALSE) -> 83.12 | M145: =VLOOKUP($D145,'C.1 - Rate Sheets'!B:F,4,FALSE) -> 98.2 | N145: =VLOOKUP($D145,'C.1 - Rate Sheets'!B:F,5,FALSE) -> 0 | S145: 0 | X145: 0 | Z145: 16 | AA145: 16 | AC145: 32 | AH145: 0 | AN145: 0 | AO145: 16 | AP145: 16 | AQ145: 0 | AR145: 32 | AS145: 0 | AT145: 1329.92 | AU145: 1571.2 | AV145: 0 | AW145: 2901.12 | AX145: 2901.12 | AY145: Yes | AZ145: 0 | BA145: 0 | BB145: 0
B146: 128 | C146: Christopher Lacroix | D146: Foreman | E146: Vendor No.5 | F146: 210 | G146: 125504J | H146: 2018-10-27 | I146: 2018-10-28 | J146: =IF(AND(H146>='A - Contractor Summary'!$C$36,I146<='A - Contractor Summary'!$C$42),"Yes","No") -> Yes | K146: =VLOOKUP($D146,'C.1 - Rate Sheets'!B:F,2,FALSE) -> 83.12 | L146: =VLOOKUP($D146,'C.1 - Rate Sheets'!B:F,3,FALSE) -> 101.97 | M146: =VLOOKUP($D146,'C.1 - Rate Sheets'!B:F,4,FALSE) -> 120.82 | N146: =VLOOKUP($D146,'C.1 - Rate Sheets'!B:F,5,FALSE) -> 0 | S146: 0 | X146: 0 | Z146: 16 | AA146: 16 | AC146: 32 | AH146: 0 | AN146: 0 | AO146: 16 | AP146: 16 | AQ146: 0 | AR146: 32 | AS146: 0 | AT146: 1631.52 | AU146: 1933.12 | AV146: 0 | AW146: 3564.64 | AX146: 3564.64 | AY146: Yes | AZ146: 0 | BA146: 0 | BB146: 0
B147: 129 | C147: Dustin Ducote | D147: Lineman | E147: Vendor No.5 | F147: 210 | G147: 125504J | H147: 2018-10-27 | I147: 2018-10-28 | J147: =IF(AND(H147>='A - Contractor Summary'!$C$36,I147<='A - Contractor Summary'!$C$42),"Yes","No") -> Yes | K147: =VLOOKUP($D147,'C.1 - Rate Sheets'!B:F,2,FALSE) -> 78.09 | L147: =VLOOKUP($D147,'C.1 - Rate Sheets'!B:F,3,FALSE) -> 95.69 | M147: =VLOOKUP($D147,'C.1 - Rate Sheets'!B:F,4,FALSE) -> 113.28 | N147: =VLOOKUP($D147,'C.1 - Rate Sheets'!B:F,5,FALSE) -> 0 | S147: 0 | X147: 0 | Z147: 16 | AA147: 16 | AC147: 32 | AH147: 0 | AN147: 0 | AO147: 16 | AP147: 16 | AQ147: 0 | AR147: 32 | AS147: 0 | AT147: 1531.04 | AU147: 1812.48 | AV147: 0 | AW147: 3343.52 | AX147: 3343.52 | AY147: Yes | AZ147: 0 | BA147: 0 | BB147: 0
B148: 130 | C148: Tyler Watson | D148: Apprentice Lineman | E148: Vendor No.5 | F148: 210 | G148: 125504J | H148: 2018-10-27 | I148: 2018-10-28 | J148: =IF(AND(H148>='A - Contractor Summary'!$C$36,I148<='A - Contractor Summary'!$C$42),"Yes","No") -> Yes | K148: =VLOOKUP($D148,'C.1 - Rate Sheets'!B:F,2,FALSE) -> 68.04 | L148: =VLOOKUP($D148,'C.1 - Rate Sheets'!B:F,3,FALSE) -> 83.12 | M148: =VLOOKUP($D148,'C.1 - Rate Sheets'!B:F,4,FALSE) -> 98.2 | N148: =VLOOKUP($D148,'C.1 - Rate Sheets'!B:F,5,FALSE) -> 0 | S148: 0 | X148: 0 | Z148: 16 | AA148: 16 | AC148: 32 | AH148: 0 | AN148: 0 | AO148: 16 | AP148: 16 | AQ148: 0 | AR148: 32 | AS148: 0 | AT148: 1329.92 | AU148: 1571.2 | AV148: 0 | AW148: 2901.12 | AX148: 2901.12 | AY148: Yes | AZ148: 0 | BA148: 0 | BB148: 0
B149: 131 | C149: Donovan Smith | D149: Lineman | E149: Vendor No.5 | F149: 210 | G149: 125504J | H149: 2018-10-27 | I149: 2018-10-28 | J149: =IF(AND(H149>='A - Contractor Summary'!$C$36,I149<='A - Contractor Summary'!$C$42),"Yes","No") -> Yes | K149: =VLOOKUP($D149,'C.1 - Rate Sheets'!B:F,2,FALSE) -> 78.09 | L149: =VLOOKUP($D149,'C.1 - Rate Sheets'!B:F,3,FALSE) -> 95.69 | M149: =VLOOKUP($D149,'C.1 - Rate Sheets'!B:F,4,FALSE) -> 113.28 | N149: =VLOOKUP($D149,'C.1 - Rate Sheets'!B:F,5,FALSE) -> 0 | S149: 0 | X149: 0 | Z149: 16 | AA149: 16 | AC149: 32 | AH149: =SUM(AD149:AG149) -> 0 | AN149: 0 | AO149: 16 | AP149: 16 | AQ149: 0 | AR149: 32 | AS149: 0 | AT149: 1531.04 | AU149: 1812.48 | AV149: 0 | AW149: 3343.52 | AX149: 3343.52 | AY149: Yes | AZ149: 0 | BA149: 0 | BB149: 0
B150: 132 | C150: Jarron Smith | D150: Apprentice Lineman | E150: Vendor No.5 | F150: 210 | G150: 125504J | H150: 2018-10-27 | I150: 2018-10-28 | J150: =IF(AND(H150>='A - Contractor Summary'!$C$36,I150<='A - Contractor Summary'!$C$42),"Yes","No") -> Yes | K150: =VLOOKUP($D150,'C.1 - Rate Sheets'!B:F,2,FALSE) -> 68.04 | L150: =VLOOKUP($D150,'C.1 - Rate Sheets'!B:F,3,FALSE) -> 83.12 | M150: =VLOOKUP($D150,'C.1 - Rate Sheets'!B:F,4,FALSE) -> 98.2 | N150: =VLOOKUP($D150,'C.1 - Rate Sheets'!B:F,5,FALSE) -> 0 | S150: 0 | X150: 0 | Z150: 16 | AA150: 16 | AC150: 32 | AH150: 0 | AN150: 0 | AO150: 16 | AP150: 16 | AQ150: 0 | AR150: 32 | AS150: 0 | AT150: 1329.92 | AU150: 1571.2 | AV150: 0 | AW150: 2901.12 | AX150: 2901.12 | AY150: Yes | AZ150: 0 | BA150: 0 | BB150: 0
B151: 133 | C151: Keith Cockerham | D151: General Foreman | E151: Vendor No.5 | F151: 005 | G151: 125511J | H151: 2018-10-29 | I151: 2018-10-31 | J151: =IF(AND(H151>='A - Contractor Summary'!$C$36,I151<='A - Contractor Summary'!$C$42),"Yes","No") -> No | K151: =VLOOKUP($D151,'C.1 - Rate Sheets'!B:F,2,FALSE) -> 95.69 | L151: =VLOOKUP($D151,'C.1 - Rate Sheets'!B:F,3,FALSE) -> 117.68 | M151: =VLOOKUP($D151,'C.1 - Rate Sheets'!B:F,4,FALSE) -> 139.67 | N151: =VLOOKUP($D151,'C.1 - Rate Sheets'!B:F,5,FALSE) -> 0 | S151: 0 | X151: 0 | AC151: 0 | AD151: 40 | AE151: 8 | AH151: 48 | AN151: 40 | AO151: 8 | AP151: 0 | AQ151: 0 | AR151: 48 | AS151: 3827.6 | AT151: 941.44 | AU151: 0 | AV151: 0 | AW151: 4769.04 | AX151: 4769.04 | AY151: Yes | AZ151: 0 | BA151: 0 | BB151: 0
B152: 134 | C152: Carlos Smith | D152: Safety Supervisor | E152: Vendor No.5 | F152: 005 | G152: 125511J | H152: 2018-10-29 | I152: 2018-10-30 | J152: =IF(AND(H152>='A - Contractor Summary'!$C$36,I152<='A - Contractor Summary'!$C$42),"Yes","No") -> Yes | K152: =VLOOKUP($D152,'C.1 - Rate Sheets'!B:F,2,FALSE) -> 99.12 | L152: =VLOOKUP($D152,'C.1 - Rate Sheets'!B:F,3,FALSE) -> 117.68 | M152: =VLOOKUP($D152,'C.1 - Rate Sheets'!B:F,4,FALSE) -> 139.67 | N152: =VLOOKUP($D152,'C.1 - Rate Sheets'!B:F,5,FALSE) -> 0 | S152: 0 | X152: 0 | AC152: 0 | AD152: 32 | AH152: 32 | AN152: 32 | AO152: 0 | AP152: 0 | AQ152: 0 | AR152: 32 | AS152: 3171.84 | AT152: 0 | AU152: 0 | AV152: 0 | AW152: 3171.84 | AX152: 3171.84 | AY152: Yes | AZ152: 0 | BA152: 0 | BB152: 0
B153: 135 | C153: Wayne Boyett | D153: Foreman | E153: Vendor No.5 | F153: 165 | G153: 125513J | H153: 2018-10-22 | I153: 2018-10-28 | J153: =IF(AND(H153>='A - Contractor Summary'!$C$36,I153<='A - Contractor Summary'!$C$42),"Yes","No") -> Yes | K153: =VLOOKUP($D153,'C.1 - Rate Sheets'!B:F,2,FALSE) -> 83.12 | L153: =VLOOKUP($D153,'C.1 - Rate Sheets'!B:F,3,FALSE) -> 101.97 | M153: =VLOOKUP($D153,'C.1 - Rate Sheets'!B:F,4,FALSE) -> 120.82 | N153: =VLOOKUP($D153,'C.1 - Rate Sheets'!B:F,5,FALSE) -> 0 | S153: 0 | X153: 0 | Y153: 40 | Z153: 56 | AA153: 10 | AC153: 106 | AH153: 0 | AN153: 40 | AO153: 56 | AP153: 10 | AQ153: 0 | AR153: 106 | AS153: 3324.8 | AT153: 5710.32 | AU153: 1208.2 | AV153: 0 | AW153: 10243.32 | AX153: 10243.32 | AY153: Yes | AZ153: 0 | BA153: 0 | BB153: 0
B154: 136 | C154: Josh Waxley | D154: Lineman | E154: Vendor No.5 | F154: 165 | G154: 125513J | H154: 2018-10-22 | I154: 2018-10-28 | J154: =IF(AND(H154>='A - Contractor Summary'!$C$36,I154<='A - Contractor Summary'!$C$42),"Yes","No") -> Yes | K154: =VLOOKUP($D154,'C.1 - Rate Sheets'!B:F,2,FALSE) -> 78.09 | L154: =VLOOKUP($D154,'C.1 - Rate Sheets'!B:F,3,FALSE) -> 95.69 | M154: =VLOOKUP($D154,'C.1 - Rate Sheets'!B:F,4,FALSE) -> 113.28 | N154: =VLOOKUP($D154,'C.1 - Rate Sheets'!B:F,5,FALSE) -> 0 | S154: 0 | X154: 0 | Y154: 40 | Z154: 56 | AA154: 10 | AC154: 106 | AH154: 0 | AN154: 40 | AO154: 56 | AP154: 10 | AQ154: 0 | AR154: 106 | AS154: 3123.6 | AT154: 5358.64 | AU154: 1132.8 | AV154: 0 | AW154: 9615.04 | AX154: 9615.04 | AY154: Yes | AZ154: 0 | BA154: 0 | BB154: 0
B155: 137 | C155: Michael Snipe | D155: Equipment Operator | E155: Vendor No.5 | F155: 165 | G155: 125513J | H155: 2018-10-22 | I155: 2018-10-28 | J155: =IF(AND(H155>='A - Contractor Summary'!$C$36,I155<='A - Contractor Summary'!$C$42),"Yes","No") -> Yes | K155: =VLOOKUP($D155,'C.1 - Rate Sheets'!B:F,2,FALSE) -> 60.5 | L155: =VLOOKUP($D155,'C.1 - Rate Sheets'!B:F,3,FALSE) -> 73.7 | M155: =VLOOKUP($D155,'C.1 - Rate Sheets'!B:F,4,FALSE) -> 86.89 | N155: =VLOOKUP($D155,'C.1 - Rate Sheets'!B:F,5,FALSE) -> 0 | S155: 0 | X155: 0 | Y155: 40 | Z155: 56 | AA155: 10 | AC155: 106 | AH155: 0 | AN155: 40 | AO155: 56 | AP155: 10 | AQ155: 0 | AR155: 106 | AS155: 2420 | AT155: 4127.2 | AU155: 868.9 | AV155: 0 | AW155: 7416.1 | AX155: 7416.1 | AY155: Yes | AZ155: 0 | BA155: 0 | BB155: 0
B156: 138 | C156: Johnny McKinney | D156: Apprentice Lineman | E156: Vendor No.5 | F156: 165 | G156: 125513J | H156: 2018-10-22 | I156: 2018-10-28 | J156: =IF(AND(H156>='A - Contractor Summary'!$C$36,I156<='A - Contractor Summary'!$C$42),"Yes","No") -> Yes | K156: =VLOOKUP($D156,'C.1 - Rate Sheets'!B:F,2,FALSE) -> 68.04 | L156: =VLOOKUP($D156,'C.1 - Rate Sheets'!B:F,3,FALSE) -> 83.12 | M156: =VLOOKUP($D156,'C.1 - Rate Sheets'!B:F,4,FALSE) -> 98.2 | N156: =VLOOKUP($D156,'C.1 - Rate Sheets'!B:F,5,FALSE) -> 0 | S156: 0 | X156: 0 | Y156: 40 | Z156: 56 | AA156: 10 | AC156: 106 | AH156: 0 | AN156: 40 | AO156: 56 | AP156: 10 | AQ156: 0 | AR156: 106 | AS156: 2721.6 | AT156: 4654.72 | AU156: 982 | AV156: 0 | AW156: 8358.32 | AX156: 8358.32 | AY156: Yes | AZ156: 0 | BA156: 0 | BB156: 0
B157: 139 | C157: Brian Cockerham | D157: Groundman | E157: Vendor No.5 | F157: 165 | G157: 125513J | H157: 2018-10-22 | I157: 2018-10-28 | J157: =IF(AND(H157>='A - Contractor Summary'!$C$36,I157<='A - Contractor Summary'!$C$42),"Yes","No") -> Yes | K157: =VLOOKUP($D157,'C.1 - Rate Sheets'!B:F,2,FALSE) -> 42.91 | L157: =VLOOKUP($D157,'C.1 - Rate Sheets'!B:F,3,FALSE) -> 51.71 | M157: =VLOOKUP($D157,'C.1 - Rate Sheets'!B:F,4,FALSE) -> 60.5 | N157: =VLOOKUP($D157,'C.1 - Rate Sheets'!B:F,5,FALSE) -> 0 | S157: 0 | X157: 0 | Y157: 40 | Z157: 56 | AA157: 10 | AC157: 106 | AH157: 0 | AN157: 40 | AO157: 56 | AP157: 10 | AQ157: 0 | AR157: 106 | AS157: 1716.4 | AT157: 2895.76 | AU157: 605 | AV157: 0 | AW157: 5217.16 | AX157: 5217.16 | AY157: Yes | AZ157: 0 | BA157: 0 | BB157: 0
B158: 140 | C158: Danny Thomas | D158: Foreman | E158: Vendor No.5 | F158: 166 | G158: 125530J | H158: 2018-10-29 | I158: 2018-10-31 | J158: =IF(AND(H158>='A - Contractor Summary'!$C$36,I158<='A - Contractor Summary'!$C$42),"Yes","No") -> No | K158: =VLOOKUP($D158,'C.1 - Rate Sheets'!B:F,2,FALSE) -> 83.12 | L158: =VLOOKUP($D158,'C.1 - Rate Sheets'!B:F,3,FALSE) -> 101.97 | M158: =VLOOKUP($D158,'C.1 - Rate Sheets'!B:F,4,FALSE) -> 120.82 | N158: =VLOOKUP($D158,'C.1 - Rate Sheets'!B:F,5,FALSE) -> 0 | S158: 0 | X158: 0 | AC158: 0 | AD158: 40 | AE158: 8 | AH158: 48 | AN158: 40 | AO158: 8 | AP158: 0 | AQ158: 0 | AR158: 48 | AS158: 3324.8 | AT158: 815.76 | AU158: 0 | AV158: 0 | AW158: 4140.56 | AX158: 4140.56 | AY158: Yes | AZ158: 0 | BA158: 0 | BB158: 0
B159: 141 | C159: Denver Warren | D159: Apprentice Lineman | E159: Vendor No.5 | F159: 166 | G159: 125530J | H159: 2018-10-29 | I159: 2018-10-31 | J159: =IF(AND(H159>='A - Contractor Summary'!$C$36,I159<='A - Contractor Summary'!$C$42),"Yes","No") -> No | K159: =VLOOKUP($D159,'C.1 - Rate Sheets'!B:F,2,FALSE) -> 68.04 | L159: =VLOOKUP($D159,'C.1 - Rate Sheets'!B:F,3,FALSE) -> 83.12 | M159: =VLOOKUP($D159,'C.1 - Rate Sheets'!B:F,4,FALSE) -> 98.2 | N159: =VLOOKUP($D159,'C.1 - Rate Sheets'!B:F,5,FALSE) -> 0 | S159: 0 | X159: 0 | AC159: 0 | AD159: 40 | AE159: 8 | AH159: 48 | AN159: 40 | AO159: 8 | AP159: 0 | AQ159: 0 | AR159: 48 | AS159: 2721.6 | AT159: 664.96 | AU159: 0 | AV159: 0 | AW159: 3386.56 | AX159: 3386.56 | AY159: Yes | AZ159: 0 | BA159: 0 | BB159: 0
B160: 142 | C160: Jason Castle | D160: Apprentice Lineman | E160: Vendor No.5 | F160: 166 | G160: 125530J | H160: 2018-10-29 | I160: 2018-10-31 | J160: =IF(AND(H160>='A - Contractor Summary'!$C$36,I160<='A - Contractor Summary'!$C$42),"Yes","No") -> No | K160: =VLOOKUP($D160,'C.1 - Rate Sheets'!B:F,2,FALSE) -> 68.04 | L160: =VLOOKUP($D160,'C.1 - Rate Sheets'!B:F,3,FALSE) -> 83.12 | M160: =VLOOKUP($D160,'C.1 - Rate Sheets'!B:F,4,FALSE) -> 98.2 | N160: =VLOOKUP($D160,'C.1 - Rate Sheets'!B:F,5,FALSE) -> 0 | S160: 0 | X160: 0 | AC160: 0 | AD160: 40 | AE160: 8 | AH160: 48 | AN160: 40 | AO160: 8 | AP160: 0 | AQ160: 0 | AR160: 48 | AS160: 2721.6 | AT160: 664.96 | AU160: 0 | AV160: 0 | AW160: 3386.56 | AX160: 3386.56 | AY160: Yes | AZ160: 0 | BA160: 0 | BB160: 0
B161: 143 | C161: Cody Webb | D161: Groundman | E161: Vendor No.5 | F161: 166 | G161: 125530J | H161: 2018-10-29 | I161: 2018-10-31 | J161: =IF(AND(H161>='A - Contractor Summary'!$C$36,I161<='A - Contractor Summary'!$C$42),"Yes","No") -> No | K161: =VLOOKUP($D161,'C.1 - Rate Sheets'!B:F,2,FALSE) -> 42.91 | L161: =VLOOKUP($D161,'C.1 - Rate Sheets'!B:F,3,FALSE) -> 51.71 | M161: =VLOOKUP($D161,'C.1 - Rate Sheets'!B:F,4,FALSE) -> 60.5 | N161: =VLOOKUP($D161,'C.1 - Rate Sheets'!B:F,5,FALSE) -> 0 | S161: 0 | X161: 0 | AC161: 0 | AD161: 40 | AE161: 8 | AH161: 48 | AN161: 40 | AO161: 8 | AP161: 0 | AQ161: 0 | AR161: 48 | AS161: 1716.4 | AT161: 413.68 | AU161: 0 | AV161: 0 | AW161: 2130.08 | AX161: 2130.08 | AY161: Yes | AZ161: 0 | BA161: 0 | BB161: 0
B162: 144 | C162: Joseph Fuzzell | D162: Apprentice Lineman | E162: Vendor No.5 | F162: 166 | G162: 125530J | H162: 2018-10-29 | I162: 2018-10-31 | J162: =IF(AND(H162>='A - Contractor Summary'!$C$36,I162<='A - Contractor Summary'!$C$42),"Yes","No") -> No | K162: =VLOOKUP($D162,'C.1 - Rate Sheets'!B:F,2,FALSE) -> 68.04 | L162: =VLOOKUP($D162,'C.1 - Rate Sheets'!B:F,3,FALSE) -> 83.12 | M162: =VLOOKUP($D162,'C.1 - Rate Sheets'!B:F,4,FALSE) -> 98.2 | N162: =VLOOKUP($D162,'C.1 - Rate Sheets'!B:F,5,FALSE) -> 0 | S162: 0 | X162: 0 | AC162: 0 | AD162: 40 | AE162: 8 | AH162: 48 | AN162: 40 | AO162: 8 | AP162: 0 | AQ162: 0 | AR162: 48 | AS162: 2721.6 | AT162: 664.96 | AU162: 0 | AV162: 0 | AW162: 3386.56 | AX162: 3386.56 | AY162: Yes | AZ162: 0 | BA162: 0 | BB162: 0
B163: 145 | C163: Christopher Lacroix | D163: Foreman | E163: Vendor No.5 | F163: 210 | G163: 125536J | H163: 2018-10-29 | I163: 2018-10-31 | J163: =IF(AND(H163>='A - Contractor Summary'!$C$36,I163<='A - Contractor Summary'!$C$42),"Yes","No") -> No | K163: =VLOOKUP($D163,'C.1 - Rate Sheets'!B:F,2,FALSE) -> 83.12 | L163: =VLOOKUP($D163,'C.1 - Rate Sheets'!B:F,3,FALSE) -> 101.97 | M163: =VLOOKUP($D163,'C.1 - Rate Sheets'!B:F,4,FALSE) -> 120.82 | N163: =VLOOKUP($D163,'C.1 - Rate Sheets'!B:F,5,FALSE) -> 0 | S163: 0 | X163: 0 | AC163: 0 | AD163: 40 | AE163: 8 | AH163: 48 | AN163: 40 | AO163: 8 | AP163: 0 | AQ163: 0 | AR163: 48 | AS163: 3324.8 | AT163: 815.76 | AU163: 0 | AV163: 0 | AW163: 4140.56 | AX163: 4140.56 | AY163: Yes | AZ163: 0 | BA163: 0 | BB163: 0
B164: 146 | C164: Dustin Ducote | D164: Lineman | E164: Vendor No.5 | F164: 210 | G164: 125536J | H164: 2018-10-29 | I164: 2018-10-31 | J164: =IF(AND(H164>='A - Contractor Summary'!$C$36,I164<='A - Contractor Summary'!$C$42),"Yes","No") -> No | K164: =VLOOKUP($D164,'C.1 - Rate Sheets'!B:F,2,FALSE) -> 78.09 | L164: =VLOOKUP($D164,'C.1 - Rate Sheets'!B:F,3,FALSE) -> 95.69 | M164: =VLOOKUP($D164,'C.1 - Rate Sheets'!B:F,4,FALSE) -> 113.28 | N164: =VLOOKUP($D164,'C.1 - Rate Sheets'!B:F,5,FALSE) -> 0 | S164: 0 | X164: 0 | AC164: 0 | AD164: 40 | AE164: 8 | AH164: 48 | AN164: 40 | AO164: 8 | AP164: 0 | AQ164: 0 | AR164: 48 | AS164: 3123.6 | AT164: 765.52 | AU164: 0 | AV164: 0 | AW164: 3889.12 | AX164: 3889.12 | AY164: Yes | AZ164: 0 | BA164: 0 | BB164: 0
B165: 147 | C165: Tyler Watson | D165: Apprentice Lineman | E165: Vendor No.5 | F165: 210 | G165: 125536J | H165: 2018-10-29 | I165: 2018-10-31 | J165: =IF(AND(H165>='A - Contractor Summary'!$C$36,I165<='A - Contractor Summary'!$C$42),"Yes","No") -> No | K165: =VLOOKUP($D165,'C.1 - Rate Sheets'!B:F,2,FALSE) -> 68.04 | L165: =VLOOKUP($D165,'C.1 - Rate Sheets'!B:F,3,FALSE) -> 83.12 | M165: =VLOOKUP($D165,'C.1 - Rate Sheets'!B:F,4,FALSE) -> 98.2 | N165: =VLOOKUP($D165,'C.1 - Rate Sheets'!B:F,5,FALSE) -> 0 | S165: 0 | X165: 0 | AC165: 0 | AD165: 40 | AE165: 8 | AH165: 48 | AN165: 40 | AO165: 8 | AP165: 0 | AQ165: 0 | AR165: 48 | AS165: 2721.6 | AT165: 664.96 | AU165: 0 | AV165: 0 | AW165: 3386.56 | AX165: 3386.56 | AY165: Yes | AZ165: 0 | BA165: 0 | BB165: 0
B166: 148 | C166: Donovan Smith | D166: Lineman | E166: Vendor No.5 | F166: 210 | G166: 125536J | H166: 2018-10-29 | I166: 2018-10-31 | J166: =IF(AND(H166>='A - Contractor Summary'!$C$36,I166<='A - Contractor Summary'!$C$42),"Yes","No") -> No | K166: =VLOOKUP($D166,'C.1 - Rate Sheets'!B:F,2,FALSE) -> 78.09 | L166: =VLOOKUP($D166,'C.1 - Rate Sheets'!B:F,3,FALSE) -> 95.69 | M166: =VLOOKUP($D166,'C.1 - Rate Sheets'!B:F,4,FALSE) -> 113.28 | N166: =VLOOKUP($D166,'C.1 - Rate Sheets'!B:F,5,FALSE) -> 0 | S166: 0 | X166: 0 | AC166: 0 | AD166: 40 | AE166: 8 | AH166: 48 | AN166: 40 | AO166: 8 | AP166: 0 | AQ166: 0 | AR166: 48 | AS166: 3123.6 | AT166: 765.52 | AU166: 0 | AV166: 0 | AW166: 3889.12 | AX166: 3889.12 | AY166: Yes | AZ166: 0 | BA166: 0 | BB166: 0
B167: 149 | C167: Jarron Smith | D167: Apprentice Lineman | E167: Vendor No.5 | F167: 210 | G167: 125536J | H167: 2018-10-29 | I167: 2018-10-31 | J167: =IF(AND(H167>='A - Contractor Summary'!$C$36,I167<='A - Contractor Summary'!$C$42),"Yes","No") -> No | K167: =VLOOKUP($D167,'C.1 - Rate Sheets'!B:F,2,FALSE) -> 68.04 | L167: =VLOOKUP($D167,'C.1 - Rate Sheets'!B:F,3,FALSE) -> 83.12 | M167: =VLOOKUP($D167,'C.1 - Rate Sheets'!B:F,4,FALSE) -> 98.2 | N167: =VLOOKUP($D167,'C.1 - Rate Sheets'!B:F,5,FALSE) -> 0 | S167: 0 | X167: 0 | AC167: 0 | AD167: 40 | AE167: 8 | AH167: 48 | AN167: 40 | AO167: 8 | AP167: 0 | AQ167: 0 | AR167: 48 | AS167: 2721.6 | AT167: 664.96 | AU167: 0 | AV167: 0 | AW167: 3386.56 | AX167: 3386.56 | AY167: Yes | AZ167: 0 | BA167: 0 | BB167: 0
B168: 150 | C168: Keith Giuilbeaux | D168: Foreman | E168: Vendor No.5 | F168: 123 | G168: 125601J | H168: 2018-10-29 | I168: 2018-10-31 | J168: =IF(AND(H168>='A - Contractor Summary'!$C$36,I168<='A - Contractor Summary'!$C$42),"Yes","No") -> No | K168: =VLOOKUP($D168,'C.1 - Rate Sheets'!B:F,2,FALSE) -> 83.12 | L168: =VLOOKUP($D168,'C.1 - Rate Sheets'!B:F,3,FALSE) -> 101.97 | M168: =VLOOKUP($D168,'C.1 - Rate Sheets'!B:F,4,FALSE) -> 120.82 | N168: =VLOOKUP($D168,'C.1 - Rate Sheets'!B:F,5,FALSE) -> 0 | S168: 0 | X168: 0 | AC168: 0 | AD168: 40 | AE168: 8 | AH168: 48 | AN168: 40 | AO168: 8 | AP168: 0 | AQ168: 0 | AR168: 48 | AS168: 3324.8 | AT168: 815.76 | AU168: 0 | AV168: 0 | AW168: 4140.56 | AX168: 4140.56 | AY168: Yes | AZ168: 0 | BA168: 0 | BB168: 0
B169: 151 | C169: Shawn McElroy | D169: Lineman | E169: Vendor No.5 | F169: 123 | G169: 125601J | H169: 2018-10-29 | I169: 2018-10-30 | J169: =IF(AND(H169>='A - Contractor Summary'!$C$36,I169<='A - Contractor Summary'!$C$42),"Yes","No") -> Yes | K169: =VLOOKUP($D169,'C.1 - Rate Sheets'!B:F,2,FALSE) -> 78.09 | L169: =VLOOKUP($D169,'C.1 - Rate Sheets'!B:F,3,FALSE) -> 95.69 | M169: =VLOOKUP($D169,'C.1 - Rate Sheets'!B:F,4,FALSE) -> 113.28 | N169: =VLOOKUP($D169,'C.1 - Rate Sheets'!B:F,5,FALSE) -> 0 | S169: 0 | X169: 0 | AC169: 0 | AD169: 40 | AE169: 8 | AH169: 48 | AN169: 40 | AO169: 8 | AP169: 0 | AQ169: 0 | AR169: 48 | AS169: 3123.6 | AT169: 765.52 | AU169: 0 | AV169: 0 | AW169: 3889.12 | AX169: 3889.12 | AY169: Yes | AZ169: 0 | BA169: 0 | BB169: 0
B170: 152 | C170: Dwayne Babin | D170: Lineman | E170: Vendor No.5 | F170: 123 | G170: 125601J | H170: 2018-10-29 | I170: 2018-10-30 | J170: =IF(AND(H170>='A - Contractor Summary'!$C$36,I170<='A - Contractor Summary'!$C$42),"Yes","No") -> Yes | K170: =VLOOKUP($D170,'C.1 - Rate Sheets'!B:F,2,FALSE) -> 78.09 | L170: =VLOOKUP($D170,'C.1 - Rate Sheets'!B:F,3,FALSE) -> 95.69 | M170: =VLOOKUP($D170,'C.1 - Rate Sheets'!B:F,4,FALSE) -> 113.28 | N170: =VLOOKUP($D170,'C.1 - Rate Sheets'!B:F,5,FALSE) -> 0 | S170: 0 | X170: 0 | AC170: 0 | AD170: 40 | AE170: 8 | AH170: 48 | AN170: 40 | AO170: 8 | AP170: 0 | AQ170: 0 | AR170: 48 | AS170: 3123.6 | AT170: 765.52 | AU170: 0 | AV170: 0 | AW170: 3889.12 | AX170: 3889.12 | AY170: Yes | AZ170: 0 | BA170: 0 | BB170: 0
B171: 153 | C171: Cedric Smith | D171: Equipment Operator | E171: Vendor No.5 | F171: 123 | G171: 125601J | H171: 2018-10-29 | I171: 2018-10-30 | J171: =IF(AND(H171>='A - Contractor Summary'!$C$36,I171<='A - Contractor Summary'!$C$42),"Yes","No") -> Yes | K171: =VLOOKUP($D171,'C.1 - Rate Sheets'!B:F,2,FALSE) -> 60.5 | L171: =VLOOKUP($D171,'C.1 - Rate Sheets'!B:F,3,FALSE) -> 73.7 | M171: =VLOOKUP($D171,'C.1 - Rate Sheets'!B:F,4,FALSE) -> 86.89 | N171: =VLOOKUP($D171,'C.1 - Rate Sheets'!B:F,5,FALSE) -> 0 | S171: 0 | X171: 0 | AC171: 0 | AD171: 40 | AE171: 8 | AH171: 48 | AN171: 40 | AO171: 8 | AP171: 0 | AQ171: 0 | AR171: 48 | AS171: 2420 | AT171: 589.6 | AU171: 0 | AV171: 0 | AW171: 3009.6 | AX171: 3009.6 | AY171: Yes | AZ171: 0 | BA171: 0 | BB171: 0
B172: 154 | C172: Trevon Lewis | D172: Groundman | E172: Vendor No.5 | F172: 123 | G172: 125601J | H172: 2018-10-29 | I172: 2018-10-30 | J172: =IF(AND(H172>='A - Contractor Summary'!$C$36,I172<='A - Contractor Summary'!$C$42),"Yes","No") -> Yes | K172: =VLOOKUP($D172,'C.1 - Rate Sheets'!B:F,2,FALSE) -> 42.91 | L172: =VLOOKUP($D172,'C.1 - Rate Sheets'!B:F,3,FALSE) -> 51.71 | M172: =VLOOKUP($D172,'C.1 - Rate Sheets'!B:F,4,FALSE) -> 60.5 | N172: =VLOOKUP($D172,'C.1 - Rate Sheets'!B:F,5,FALSE) -> 0 | S172: 0 | X172: 0 | AC172: 0 | AD172: 40 | AE172: 8 | AH172: 48 | AN172: 40 | AO172: 8 | AP172: 0 | AQ172: 0 | AR172: 48 | AS172: 1716.4 | AT172: 413.68 | AU172: 0 | AV172: 0 | AW172: 2130.08 | AX172: 2130.08 | AY172: Yes | AZ172: 0 | BA172: 0 | BB172: 0
B173: 155 | C173: David Harrelson | D173: Foreman | E173: Vendor No.5 | F173: 135 | G173: 125602J | H173: 2018-10-29 | I173: 2018-10-31 | J173: =IF(AND(H173>='A - Contractor Summary'!$C$36,I173<='A - Contractor Summary'!$C$42),"Yes","No") -> No | K173: =VLOOKUP($D173,'C.1 - Rate Sheets'!B:F,2,FALSE) -> 83.12 | L173: =VLOOKUP($D173,'C.1 - Rate Sheets'!B:F,3,FALSE) -> 101.97 | M173: =VLOOKUP($D173,'C.1 - Rate Sheets'!B:F,4,FALSE) -> 120.82 | N173: =VLOOKUP($D173,'C.1 - Rate Sheets'!B:F,5,FALSE) -> 0 | S173: 0 | X173: 0 | AC173: 0 | AD173: 40 | AE173: 8 | AH173: 48 | AN173: 40 | AO173: 8 | AP173: 0 | AQ173: 0 | AR173: 48 | AS173: 3324.8 | AT173: 815.76 | AU173: 0 | AV173: 0 | AW173: 4140.56 | AX173: 4140.56 | AY173: Yes | AZ173: 0 | BA173: 0 | BB173: 0
B174: 156 | C174: Tyler Crane | D174: Apprentice Lineman | E174: Vendor No.5 | F174: 135 | G174: 125602J | H174: 2018-10-29 | I174: 2018-10-31 | J174: =IF(AND(H174>='A - Contractor Summary'!$C$36,I174<='A - Contractor Summary'!$C$42),"Yes","No") -> No | K174: =VLOOKUP($D174,'C.1 - Rate Sheets'!B:F,2,FALSE) -> 68.04 | L174: =VLOOKUP($D174,'C.1 - Rate Sheets'!B:F,3,FALSE) -> 83.12 | M174: =VLOOKUP($D174,'C.1 - Rate Sheets'!B:F,4,FALSE) -> 98.2 | N174: =VLOOKUP($D174,'C.1 - Rate Sheets'!B:F,5,FALSE) -> 0 | S174: 0 | X174: 0 | AC174: 0 | AD174: 40 | AE174: 8 | AH174: 48 | AN174: 40 | AO174: 8 | AP174: 0 | AQ174: 0 | AR174: 48 | AS174: 2721.6 | AT174: 664.96 | AU174: 0 | AV174: 0 | AW174: 3386.56 | AX174: 3386.56 | AY174: Yes | AZ174: 0 | BA174: 0 | BB174: 0
B175: 157 | C175: James Morgan | D175: Apprentice Lineman | E175: Vendor No.5 | F175: 135 | G175: 125602J | H175: 2018-10-29 | I175: 2018-10-31 | J175: =IF(AND(H175>='A - Contractor Summary'!$C$36,I175<='A - Contractor Summary'!$C$42),"Yes","No") -> No | K175: =VLOOKUP($D175,'C.1 - Rate Sheets'!B:F,2,FALSE) -> 68.04 | L175: =VLOOKUP($D175,'C.1 - Rate Sheets'!B:F,3,FALSE) -> 83.12 | M175: =VLOOKUP($D175,'C.1 - Rate Sheets'!B:F,4,FALSE) -> 98.2 | N175: =VLOOKUP($D175,'C.1 - Rate Sheets'!B:F,5,FALSE) -> 0 | S175: 0 | X175: 0 | AC175: 0 | AD175: 40 | AE175: 8 | AH175: 48 | AN175: 40 | AO175: 8 | AP175: 0 | AQ175: 0 | AR175: 48 | AS175: 2721.6 | AT175: 664.96 | AU175: 0 | AV175: 0 | AW175: 3386.56 | AX175: 3386.56 | AY175: Yes | AZ175: 0 | BA175: 0 | BB175: 0
B176: 158 | C176: Kristopher Frederickson | D176: Apprentice Lineman | E176: Vendor No.5 | F176: 135 | G176: 125602J | H176: 2018-10-29 | I176: 2018-10-31 | J176: =IF(AND(H176>='A - Contractor Summary'!$C$36,I176<='A - Contractor Summary'!$C$42),"Yes","No") -> No | K176: =VLOOKUP($D176,'C.1 - Rate Sheets'!B:F,2,FALSE) -> 68.04 | L176: =VLOOKUP($D176,'C.1 - Rate Sheets'!B:F,3,FALSE) -> 83.12 | M176: =VLOOKUP($D176,'C.1 - Rate Sheets'!B:F,4,FALSE) -> 98.2 | N176: =VLOOKUP($D176,'C.1 - Rate Sheets'!B:F,5,FALSE) -> 0 | S176: 0 | X176: 0 | AC176: 0 | AD176: 40 | AE176: 8 | AH176: 48 | AN176: 40 | AO176: 8 | AP176: 0 | AQ176: 0 | AR176: 48 | AS176: 2721.6 | AT176: 664.96 | AU176: 0 | AV176: 0 | AW176: 3386.56 | AX176: 3386.56 | AY176: Yes | AZ176: 0 | BA176: 0 | BB176: 0
B177: 159 | C177: Jace Dunne | D177: Apprentice Lineman | E177: Vendor No.5 | F177: 135 | G177: 125602J | H177: 2018-10-29 | I177: 2018-10-31 | J177: =IF(AND(H177>='A - Contractor Summary'!$C$36,I177<='A - Contractor Summary'!$C$42),"Yes","No") -> No | K177: =VLOOKUP($D177,'C.1 - Rate Sheets'!B:F,2,FALSE) -> 68.04 | L177: =VLOOKUP($D177,'C.1 - Rate Sheets'!B:F,3,FALSE) -> 83.12 | M177: =VLOOKUP($D177,'C.1 - Rate Sheets'!B:F,4,FALSE) -> 98.2 | N177: =VLOOKUP($D177,'C.1 - Rate Sheets'!B:F,5,FALSE) -> 0 | S177: 0 | X177: 0 | AC177: 0 | AD177: 40 | AE177: 8 | AH177: 48 | AN177: 40 | AO177: 8 | AP177: 0 | AQ177: 0 | AR177: 48 | AS177: 2721.6 | AT177: 664.96 | AU177: 0 | AV177: 0 | AW177: 3386.56 | AX177: 3386.56 | AY177: Yes | AZ177: 0 | BA177: 0 | BB177: 0
B178: 160 | C178: Stacy Norman | D178: Truck Driver | E178: Vendor No.5 | F178: 000 | G178: 126673J | H178: 2018-10-16 | I178: 2018-10-17 | J178: =IF(AND(H178>='A - Contractor Summary'!$C$36,I178<='A - Contractor Summary'!$C$42),"Yes","No") -> Yes | K178: =VLOOKUP($D178,'C.1 - Rate Sheets'!B:F,2,FALSE) -> 60.5 | L178: =VLOOKUP($D178,'C.1 - Rate Sheets'!B:F,3,FALSE) -> 73.7 | M178: =VLOOKUP($D178,'C.1 - Rate Sheets'!B:F,4,FALSE) -> 86.89 | N178: =VLOOKUP($D178,'C.1 - Rate Sheets'!B:F,5,FALSE) -> 0 | S178: 0 | T178: 10 | U178: 22 | X178: 32 | AC178: 0 | AH178: 0 | AN178: 10 | AO178: 22 | AP178: 0 | AQ178: 0 | AR178: 32 | AS178: 605 | AT178: 1621.4 | AU178: 0 | AV178: 0 | AW178: 2226.4 | AX178: 2226.4 | AY178: Yes | AZ178: 0 | BA178: 0 | BB178: 0
B179: 161 | C179: Stacy Norman | D179: Truck Driver | E179: Vendor No.5 | F179: 000 | G179: 126674J | H179: 2018-10-30 | I179: 2018-10-31 | J179: =IF(AND(H179>='A - Contractor Summary'!$C$36,I179<='A - Contractor Summary'!$C$42),"Yes","No") -> No | K179: =VLOOKUP($D179,'C.1 - Rate Sheets'!B:F,2,FALSE) -> 60.5 | L179: =VLOOKUP($D179,'C.1 - Rate Sheets'!B:F,3,FALSE) -> 73.7 | M179: =VLOOKUP($D179,'C.1 - Rate Sheets'!B:F,4,FALSE) -> 86.89 | N179: =VLOOKUP($D179,'C.1 - Rate Sheets'!B:F,5,FALSE) -> 0 | S179: 0 | X179: 0 | AC179: 0 | AD179: 28 | AE179: 4 | AH179: 32 | AN179: 28 | AO179: 4 | AP179: 0 | AQ179: 0 | AR179: 32 | AS179: 1694 | AT179: 294.8 | AU179: 0 | AV179: 0 | AW179: 1988.8 | AX179: 1988.8 | AY179: Yes | AZ179: 0 | BA179: 0 | BB179: 0
S180: 0 | X180: 0 | AC180: 0 | AH180: 0 | AM180: 0 | AN180: 0 | AO180: 0 | AP180: 0 | AQ180: 0 | AR180: 0 | AW180: 0 | AX180: 0 | AY180: Yes | AZ180: 0 | BA180: 0 | BB180: 0
O181: =SUM(O19:O180) -> 325.5 | P181: 1180.5 | Q181: 528 | R181: 0 | S181: 2034 | T181: 1546 | U181: 2230 | V181: 672 | W181: 0 | X181: 4448 | Y181: 1724 | Z181: 2516 | AA181: 770 | AB181: 0 | AC181: 5010 | AD181: 1180 | AE181: 244 | AF181: 0 | AG181: 0 | AH181: 1424 | AI181: 0 | AJ181: 0 | AK181: 0 | AL181: 0 | AM181: 0 | AN181: 4775.5 | AO181: 6170.5 | AP181: 1970 | AQ181: 0 | AR181: =SUM(AN181:AQ181) -> 12916 | AS181: =SUM(AS19:AS180) -> 334767.49 | AT181: =SUM(AT19:AT180) -> 530552.38 | AU181: =SUM(AU19:AU180) -> 199734.82 | AV181: =SUM(AV19:AV180) -> 0 | AW181: =IFERROR(SUM(AW19:AW180),0) -> 1065054.69 | AX181: =AW181-AZ181 -> 1065054.69 | AZ181: =SUM(AZ19:AZ180) -> 0 | BA181: =SUM(BA19:BA180) -> 0 | BB181: =SUM(BB19:BB180) -> 0 | BC181: =AZ181-BA181-BB181 -> 0 | BD181: check (b)
O182: Total # of Crew | S182: =COUNTIF(S19:S180,">0") -> 33 | T182: Total # of Crew | X182: =COUNTIF(X19:X180,">0") -> 43 | Y182: Total # of Crew | AC182: =COUNTIF(AC19:AC180,">0") -> 55 | AD182: Total # of Crew | AH182: =COUNTIF(AH19:AH180,">0") -> 30 | AI182: Total # of Crew | AM182: =COUNTIF(AM19:AM180,">0") -> 0 | AN182: # of time charges | AR182: =COUNTIF(AR19:AR180,">0") -> 161
B190: Tickmark Explanation:
B192: 1 | C192: Josh Crawford on Timesheets but not billed (10/13/18-10/17/18)
B193: 2
B194: 3

Sheet C.3 - Asset by Company
A1: Asset Tag | B1: Position | C1: Name

Sheet C.4 - Timesheets - Equipment
B2: Equipment Charges - Time Card
B4: Test Plan: | C4: Obtain the time cards. (A) Populate the equipment names and types (if provided). Find additional information regarding individual equipment charge from related invoice. (B) Enter hours worked from time card(s). (C) Confirm that the dates per the time cards fall between dates provided per 'A - Contractor Summary' tab. (D) Identify any equipment charges to be reviewed. (E) For charges which required further review, document review (include why it was determined to be allowed/disallowed via a tickmark).
B10: Rx | C10: Recalculated.
B11: a | C11: Provided from tab 'C.1 - Rate Sheets'.
B12: b | C12: Check figure should equal $0. Cell will appear yellow if discrepancies are noted.
C14: A | H14: Rx | J14: C | K14: a | L14: B | Q14: Rx | T14: D | U14: E
B15: # | C15: Equipment Name | D15: Equipment ID | E15: Company | F15: Crew# | G15: Invoice | H15: Start Date | I15: End Date | J15: Dates Worked Reasonable? | K15: Rates | L15: Week Ending | M15: Week Ending | N15: Week Ending | O15: Week Ending | Q15: Total Hours | R15: Total Equipment $ | S15: Allowable Charges | T15: To Be Reviewed | U15: Reviewed - Allowable Charge | V15: Reviewed - Unallowable Charge | W15: Tickmarks
L16: 2018-10-14 | M16: 2018-10-21 | N16: 2018-10-28 | O16: 2018-11-04
L17: Hours | M17: Hours | N17: Hours | O17: Hours | P17: Hours
B18: 1 | C18: Pickup | D18: 1698 | E18: Vendor No.5 | F18: 019 | G18: 123674 | H18: 2018-10-10 | I18: 2018-10-14 | J18: =IF(AND(H18>='A - Contractor Summary'!$C$36,I18<='A - Contractor Summary'!$C$42),"Yes","No") -> Yes | K18: =VLOOKUP($C18,'C.1 - Rate Sheets'!H:I,2,FALSE) -> 21 | L18: 71.5 | Q18: =SUM(L18:P18) -> 71.5 | R18: =Q18*K18 -> 1501.5 | S18: =R18-T18 -> 1501.5 | T18: 0 | U18: 0 | V18: 0
B19: 2 | C19: Mechanic's Service Truck | D19: 810 | E19: Vendor No.5 | F19: 019 | G19: 123674 | H19: 2018-10-10 | I19: 2018-10-14 | J19: =IF(AND(H19>='A - Contractor Summary'!$C$36,I19<='A - Contractor Summary'!$C$42),"Yes","No") -> Yes | K19: =VLOOKUP($C19,'C.1 - Rate Sheets'!H:I,2,FALSE) -> 32.34 | L19: 48 | Q19: =SUM(L19:P19) -> 48 | R19: =Q19*K19 -> 1552.32 | S19: 1552.32 | T19: 0 | U19: 0 | V19: 0
B20: 3 | C20: Haul Truck w/ Lowboy | D20: 308/913 | E20: Vendor No.5 | F20: 019 | G20: 123674 | H20: 2018-10-10 | I20: 2018-10-14 | J20: =IF(AND(H20>='A - Contractor Summary'!$C$36,I20<='A - Contractor Summary'!$C$42),"Yes","No") -> Yes | K20: =VLOOKUP($C20,'C.1 - Rate Sheets'!H:I,2,FALSE) -> 100 | L20: 36.5 | Q20: =SUM(L20:P20) -> 36.5 | R20: =Q20*K20 -> 3650 | S20: 3650 | T20: 0 | U20: 0 | V20: 0
B21: 4 | C21: Track Machine w/ Bucket | D21: 1849 | E21: Vendor No.5 | F21: 019 | G21: 123674 | H21: 2018-10-10 | I21: 2018-10-14 | J21: =IF(AND(H21>='A - Contractor Summary'!$C$36,I21<='A - Contractor Summary'!$C$42),"Yes","No") -> Yes | K21: =VLOOKUP($C21,'C.1 - Rate Sheets'!H:I,2,FALSE) -> 100 | L21: 36.5 | Q21: 36.5 | R21: =Q21*K21 -> 3650 | S21: 3650 | T21: 0 | U21: 0 | V21: 0
B22: 5 | C22: Haul Truck w/ Lowboy | D22: 226/821 | E22: Vendor No.5 | F22: 019 | G22: 123674 | H22: 2018-10-10 | I22: 2018-10-14 | J22: =IF(AND(H22>='A - Contractor Summary'!$C$36,I22<='A - Contractor Summary'!$C$42),"Yes","No") -> Yes | K22: =VLOOKUP($C22,'C.1 - Rate Sheets'!H:I,2,FALSE) -> 100 | L22: 36.5 | Q22: 36.5 | R22: 3650 | S22: 3650 | T22: 0 | U22: 0 | V22: 0
B23: 6 | C23: Track Machine w/ Bucket | D23: 1674 | E23: Vendor No.5 | F23: 019 | G23: 123674 | H23: 2018-10-10 | I23: 2018-10-14 | J23: =IF(AND(H23>='A - Contractor Summary'!$C$36,I23<='A - Contractor Summary'!$C$42),"Yes","No") -> Yes | K23: =VLOOKUP($C23,'C.1 - Rate Sheets'!H:I,2,FALSE) -> 100 | L23: 36.5 | Q23: 36.5 | R23: 3650 | S23: 3650 | T23: 0 | U23: 0 | V23: 0
B24: 7 | C24: Haul Truck w/ Lowboy | D24: 573/820 | E24: Vendor No.5 | F24: 019 | G24: 123674 | H24: 2018-10-10 | I24: 2018-10-14 | J24: =IF(AND(H24>='A - Contractor Summary'!$C$36,I24<='A - Contractor Summary'!$C$42),"Yes","No") -> Yes | K24: =VLOOKUP($C24,'C.1 - Rate Sheets'!H:I,2,FALSE) -> 100 | L24: 34.5 | Q24: 34.5 | R24: 3450 | S24: 3450 | T24: 0 | U24: 0 | V24: 0
B25: 8 | C25: Track Machine w/ Digger | D25: 746 | E25: Vendor No.5 | F25: 019 | G25: 123674 | H25: 2018-10-10 | I25: 2018-10-14 | J25: =IF(AND(H25>='A - Contractor Summary'!$C$36,I25<='A - Contractor Summary'!$C$42),"Yes","No") -> Yes | K25: =VLOOKUP($C25,'C.1 - Rate Sheets'!H:I,2,FALSE) -> 100 | L25: 34.5 | Q25: 34.5 | R25: 3450 | S25: 3450 | T25: 0 | U25: 0 | V25: 0
B26: 9 | C26: Haul Truck w/ Lowboy | D26: 99902A | E26: Vendor No.5 | F26: 019 | G26: 123674 | H26: 2018-10-10 | I26: 2018-10-14 | J26: =IF(AND(H26>='A - Contractor Summary'!$C$36,I26<='A - Contractor Summary'!$C$42),"Yes","No") -> Yes | K26: =VLOOKUP($C26,'C.1 - Rate Sheets'!H:I,2,FALSE) -> 100 | L26: 32 | Q26: 32 | R26: 3200 | S26: 3200 | T26: 0 | U26: 0 | V26: 0
B27: 10 | C27: Dozer | D27: 99902B | E27: Vendor No.5 | F27: 019 | G27: 123674 | H27: 2018-10-10 | I27: 2018-10-14 | J27: =IF(AND(H27>='A - Contractor Summary'!$C$36,I27<='A - Contractor Summary'!$C$42),"Yes","No") -> Yes | K27: =VLOOKUP($C27,'C.1 - Rate Sheets'!H:I,2,FALSE) -> 57.75 | L27: 32 | Q27: 32 | R27: 1848 | S27: 1848 | T27: 0 | U27: 0 | V27: 0
B28: 11 | C28: Pickup | D28: 99901A | E28: Vendor No.5 | F28: 019 | G28: 123674 | H28: 2018-10-10 | I28: 2018-10-14 | J28: =IF(AND(H28>='A - Contractor Summary'!$C$36,I28<='A - Contractor Summary'!$C$42),"Yes","No") -> Yes | K28: =VLOOKUP($C28,'C.1 - Rate Sheets'!H:I,2,FALSE) -> 21 | L28: 32 | Q28: 32 | R28: 672 | S28: 672 | T28: 0 | U28: 0 | V28: 0
B29: 12 | C29: 1-Engine Airboat w/ Operator | D29: 99901B | E29: Vendor No.5 | F29: 019 | G29: 123674 | H29: 2018-10-10 | I29: 2018-10-14 | J29: =IF(AND(H29>='A - Contractor Summary'!$C$36,I29<='A - Contractor Summary'!$C$42),"Yes","No") -> Yes | K29: =VLOOKUP($C29,'C.1 - Rate Sheets'!H:I,2,FALSE) -> 120 | L29: 32 | Q29: 32 | R29: 3840 | S29: 3840 | T29: 0 | U29: 0 | V29: 0
B30: 13 | C30: Pickup | D30: 1698 | E30: Vendor No.5 | F30: 019 | G30: 123731 | H30: 2018-10-15 | I30: 2018-10-21 | J30: =IF(AND(H30>='A - Contractor Summary'!$C$36,I30<='A - Contractor Summary'!$C$42),"Yes","No") -> Yes | K30: =VLOOKUP($C30,'C.1 - Rate Sheets'!H:I,2,FALSE) -> 21 | M30: 112 | Q30: 112 | R30: 2352 | S30: 2352 | T30: 0 | U30: 0 | V30: 0
B31: 14 | C31: Mechanic's Service Truck | D31: 810 | E31: Vendor No.5 | F31: 019 | G31: 123731 | H31: 2018-10-15 | I31: 2018-10-21 | J31: =IF(AND(H31>='A - Contractor Summary'!$C$36,I31<='A - Contractor Summary'!$C$42),"Yes","No") -> Yes | K31: =VLOOKUP($C31,'C.1 - Rate Sheets'!H:I,2,FALSE) -> 32.34 | M31: 112 | Q31: 112 | R31: 3622.08 | S31: 3622.08 | T31: 0 | U31: 0 | V31: 0
B32: 15 | C32: Haul Truck w/ Lowboy | D32: 308/913 | E32: Vendor No.5 | F32: 019 | G32: 123731 | H32: 2018-10-15 | I32: 2018-10-21 | J32: =IF(AND(H32>='A - Contractor Summary'!$C$36,I32<='A - Contractor Summary'!$C$42),"Yes","No") -> Yes | K32: =VLOOKUP($C32,'C.1 - Rate Sheets'!H:I,2,FALSE) -> 100 | M32: 112 | Q32: 112 | R32: 11200 | S32: 11200 | T32: 0 | U32: 0 | V32: 0
B33: 16 | C33: Track Machine w/ Bucket | D33: 1849 | E33: Vendor No.5 | F33: 019 | G33: 123731 | H33: 2018-10-15 | I33: 2018-10-21 | J33: =IF(AND(H33>='A - Contractor Summary'!$C$36,I33<='A - Contractor Summary'!$C$42),"Yes","No") -> Yes | K33: =VLOOKUP($C33,'C.1 - Rate Sheets'!H:I,2,FALSE) -> 100 | M33: 112 | Q33: 112 | R33: 11200 | S33: 11200 | T33: 0 | U33: 0 | V33: 0
B34: 17 | C34: Haul Truck w/ Lowboy | D34: 226/821 | E34: Vendor No.5 | F34: 019 | G34: 123731 | H34: 2018-10-15 | I34: 2018-10-21 | J34: =IF(AND(H34>='A - Contractor Summary'!$C$36,I34<='A - Contractor Summary'!$C$42),"Yes","No") -> Yes | K34: =VLOOKUP($C34,'C.1 - Rate Sheets'!H:I,2,FALSE) -> 100 | M34: 112 | Q34: 112 | R34: 11200 | S34: 11200 | T34: 0 | U34: 0 | V34: 0
B35: 18 | C35: Track Machine w/ Bucket | D35: 1674 | E35: Vendor No.5 | F35: 019 | G35: 123731 | H35: 2018-10-15 | I35: 2018-10-21 | J35: =IF(AND(H35>='A - Contractor Summary'!$C$36,I35<='A - Contractor Summary'!$C$42),"Yes","No") -> Yes | K35: =VLOOKUP($C35,'C.1 - Rate Sheets'!H:I,2,FALSE) -> 100 | M35: 112 | Q35: 112 | R35: 11200 | S35: 11200 | T35: 0 | U35: 0 | V35: 0
B36: 19 | C36: Haul Truck w/ Lowboy | D36: 573/820 | E36: Vendor No.5 | F36: 019 | G36: 123731 | H36: 2018-10-15 | I36: 2018-10-21 | J36: =IF(AND(H36>='A - Contractor Summary'!$C$36,I36<='A - Contractor Summary'!$C$42),"Yes","No") -> Yes | K36: =VLOOKUP($C36,'C.1 - Rate Sheets'!H:I,2,FALSE) -> 100 | M36: 112 | Q36: 112 | R36: 11200 | S36: 11200 | T36: 0 | U36: 0 | V36: 0
B37: 20 | C37: Track Machine w/ Digger | D37: 746 | E37: Vendor No.5 | F37: 019 | G37: 123731 | H37: 2018-10-15 | I37: 2018-10-21 | J37: =IF(AND(H37>='A - Contractor Summary'!$C$36,I37<='A - Contractor Summary'!$C$42),"Yes","No") -> Yes | K37: =VLOOKUP($C37,'C.1 - Rate Sheets'!H:I,2,FALSE) -> 100 | M37: 112 | Q37: 112 | R37: 11200 | S37: 11200 | T37: 0 | U37: 0 | V37: 0
B38: 21 | C38: Haul Truck w/ Lowboy | D38: 99902A | E38: Vendor No.5 | F38: 019 | G38: 123731 | H38: 2018-10-15 | I38: 2018-10-21 | J38: =IF(AND(H38>='A - Contractor Summary'!$C$36,I38<='A - Contractor Summary'!$C$42),"Yes","No") -> Yes | K38: =VLOOKUP($C38,'C.1 - Rate Sheets'!H:I,2,FALSE) -> 100 | M38: 112 | Q38: 112 | R38: 11200 | S38: 11200 | T38: 0 | U38: 0 | V38: 0
B39: 22 | C39: Dozer | D39: 99902B | E39: Vendor No.5 | F39: 019 | G39: 123731 | H39: 2018-10-15 | I39: 2018-10-21 | J39: =IF(AND(H39>='A - Contractor Summary'!$C$36,I39<='A - Contractor Summary'!$C$42),"Yes","No") -> Yes | K39: =VLOOKUP($C39,'C.1 - Rate Sheets'!H:I,2,FALSE) -> 57.75 | M39: 112 | Q39: 112 | R39: 6468 | S39: 6468 | T39: 0 | U39: 0 | V39: 0
B40: 23 | C40: Pickup | D40: 99901A | E40: Vendor No.5 | F40: 019 | G40: 123731 | H40: 2018-10-15 | I40: 2018-10-21 | J40: =IF(AND(H40>='A - Contractor Summary'!$C$36,I40<='A - Contractor Summary'!$C$42),"Yes","No") -> Yes | K40: =VLOOKUP($C40,'C.1 - Rate Sheets'!H:I,2,FALSE) -> 21 | M40: 44 | Q40: 44 | R40: 924 | S40: 924 | T40: 0 | U40: 0 | V40: 0
B41: 24 | C41: 1-Engine Airboat w/ Operator | D41: 99901B | E41: Vendor No.5 | F41: 019 | G41: 123731 | H41: 2018-10-15 | I41: 2018-10-21 | J41: =IF(AND(H41>='A - Contractor Summary'!$C$36,I41<='A - Contractor Summary'!$C$42),"Yes","No") -> Yes | K41: =VLOOKUP($C41,'C.1 - Rate Sheets'!H:I,2,FALSE) -> 120 | M41: 44 | Q41: 44 | R41: 5280 | S41: 5280 | T41: 0 | U41: 0 | V41: 0
B42: 25 | C42: Pickup | D42: 1289 | E42: Vendor No.5 | F42: 110 | G42: 123736 | H42: 2018-10-10 | I42: 2018-10-14 | J42: =IF(AND(H42>='A - Contractor Summary'!$C$36,I42<='A - Contractor Summary'!$C$42),"Yes","No") -> Yes | K42: =VLOOKUP($C42,'C.1 - Rate Sheets'!H:I,2,FALSE) -> 21 | L42: 71.5 | Q42: 71.5 | R42: 1501.5 | S42: 1501.5 | T42: 0 | U42: 0 | V42: 0
B43: 26 | C43: 55 Bucket MH | D43: 1628 | E43: Vendor No.5 | F43: 110 | G43: 123736 | H43: 2018-10-10 | I43: 2018-10-14 | J43: =IF(AND(H43>='A - Contractor Summary'!$C$36,I43<='A - Contractor Summary'!$C$42),"Yes","No") -> Yes | K43: =VLOOKUP($C43,'C.1 - Rate Sheets'!H:I,2,FALSE) -> 40 | L43: 71.5 | Q43: 71.5 | R43: 2860 | S43: 2860 | T43: 0 | U43: 0 | V43: 0
B44: 27 | C44: 55 Bucket MH | D44: 1629 | E44: Vendor No.5 | F44: 110 | G44: 123736 | H44: 2018-10-10 | I44: 2018-10-14 | J44: =IF(AND(H44>='A - Contractor Summary'!$C$36,I44<='A - Contractor Summary'!$C$42),"Yes","No") -> Yes | K44: =VLOOKUP($C44,'C.1 - Rate Sheets'!H:I,2,FALSE) -> 40 | L44: 71.5 | Q44: 71.5 | R44: 2860 | S44: 2860 | T44: 0 | U44: 0 | V44: 0
B45: 28 | C45: Digger Truck | D45: 1418 | E45: Vendor No.5 | F45: 110 | G45: 123736 | H45: 2018-10-10 | I45: 2018-10-14 | J45: =IF(AND(H45>='A - Contractor Summary'!$C$36,I45<='A - Contractor Summary'!$C$42),"Yes","No") -> Yes | K45: =VLOOKUP($C45,'C.1 - Rate Sheets'!H:I,2,FALSE) -> 42 | L45: 71.5 | Q45: 71.5 | R45: 3003 | S45: 3003 | T45: 0 | U45: 0 | V45: 0
B46: 29 | C46: Pole Trailer | D46: 192 | E46: Vendor No.5 | F46: 110 | G46: 123736 | H46: 2018-10-10 | I46: 2018-10-14 | J46: =IF(AND(H46>='A - Contractor Summary'!$C$36,I46<='A - Contractor Summary'!$C$42),"Yes","No") -> Yes | K46: =VLOOKUP($C46,'C.1 - Rate Sheets'!H:I,2,FALSE) -> 9.24 | L46: 71.5 | Q46: 71.5 | R46: 660.66 | S46: 660.66 | T46: 0 | U46: 0 | V46: 0
B47: 30 | C47: Pickup | D47: 1289 | E47: Vendor No.5 | F47: 110 | G47: 123738 | H47: 2018-10-15 | I47: 2018-10-21 | J47: =IF(AND(H47>='A - Contractor Summary'!$C$36,I47<='A - Contractor Summary'!$C$42),"Yes","No") -> Yes | K47: =VLOOKUP($C47,'C.1 - Rate Sheets'!H:I,2,FALSE) -> 21 | M47: 112 | Q47: 112 | R47: 2352 | S47: 2352 | T47: 0 | U47: 0 | V47: 0
B48: 31 | C48: 55 Bucket MH | D48: 1628 | E48: Vendor No.5 | F48: 110 | G48: 123738 | H48: 2018-10-15 | I48: 2018-10-21 | J48: =IF(AND(H48>='A - Contractor Summary'!$C$36,I48<='A - Contractor Summary'!$C$42),"Yes","No") -> Yes | K48: =VLOOKUP($C48,'C.1 - Rate Sheets'!H:I,2,FALSE) -> 40 | M48: 112 | Q48: 112 | R48: 4480 | S48: 4480 | T48: 0 | U48: 0 | V48: 0
B49: 32 | C49: 55 Bucket MH | D49: 1629 | E49: Vendor No.5 | F49: 110 | G49: 123738 | H49: 2018-10-15 | I49: 2018-10-21 | J49: =IF(AND(H49>='A - Contractor Summary'!$C$36,I49<='A - Contractor Summary'!$C$42),"Yes","No") -> Yes | K49: =VLOOKUP($C49,'C.1 - Rate Sheets'!H:I,2,FALSE) -> 40 | M49: 112 | Q49: 112 | R49: 4480 | S49: 4480 | T49: 0 | U49: 0 | V49: 0
B50: 33 | C50: Digger Truck | D50: 1418 | E50: Vendor No.5 | F50: 110 | G50: 123738 | H50: 2018-10-15 | I50: 2018-10-21 | J50: =IF(AND(H50>='A - Contractor Summary'!$C$36,I50<='A - Contractor Summary'!$C$42),"Yes","No") -> Yes | K50: =VLOOKUP($C50,'C.1 - Rate Sheets'!H:I,2,FALSE) -> 42 | M50: 112 | Q50: 112 | R50: 4704 | S50: 4704 | T50: 0 | U50: 0 | V50: 0
B51: 34 | C51: Pole Trailer | D51: 192 | E51: Vendor No.5 | F51: 110 | G51: 123738 | H51: 2018-10-15 | I51: 2018-10-21 | J51: =IF(AND(H51>='A - Contractor Summary'!$C$36,I51<='A - Contractor Summary'!$C$42),"Yes","No") -> Yes | K51: =VLOOKUP($C51,'C.1 - Rate Sheets'!H:I,2,FALSE) -> 9.24 | M51: 112 | Q51: 112 | R51: 1034.88 | S51: 1034.88 | T51: 0 | U51: 0 | V51: 0
B52: 35 | C52: Pickup | D52: 1354 | E52: Vendor No.5 | F52: 154 | G52: 123744 | H52: 2018-10-10 | I52: 2018-10-14 | J52: =IF(AND(H52>='A - Contractor Summary'!$C$36,I52<='A - Contractor Summary'!$C$42),"Yes","No") -> Yes | K52: =VLOOKUP($C52,'C.1 - Rate Sheets'!H:I,2,FALSE) -> 21 | L52: 71.5 | Q52: 71.5 | R52: 1501.5 | S52: 1501.5 | T52: 0 | U52: 0 | V52: 0
B53: 36 | C53: 55 Bucket MH | D53: 1407 | E53: Vendor No.5 | F53: 154 | G53: 123744 | H53: 2018-10-10 | I53: 2018-10-14 | J53: =IF(AND(H53>='A - Contractor Summary'!$C$36,I53<='A - Contractor Summary'!$C$42),"Yes","No") -> Yes | K53: =VLOOKUP($C53,'C.1 - Rate Sheets'!H:I,2,FALSE) -> 40 | L53: 71.5 | Q53: 71.5 | R53: 2860 | S53: 2860 | T53: 0 | U53: 0 | V53: 0
B54: 37 | C54: 55 Bucket MH | D54: 97-50867404 | E54: Vendor No.5 | F54: 154 | G54: 123744 | H54: 2018-10-10 | I54: 2018-10-14 | J54: =IF(AND(H54>='A - Contractor Summary'!$C$36,I54<='A - Contractor Summary'!$C$42),"Yes","No") -> Yes | K54: =VLOOKUP($C54,'C.1 - Rate Sheets'!H:I,2,FALSE) -> 40 | L54: 71.5 | Q54: 71.5 | R54: 2860 | S54: 2860 | T54: 0 | U54: 0 | V54: 0
B55: 38 | C55: Digger Truck | D55: 1577 | E55: Vendor No.5 | F55: 154 | G55: 123744 | H55: 2018-10-10 | I55: 2018-10-14 | J55: =IF(AND(H55>='A - Contractor Summary'!$C$36,I55<='A - Contractor Summary'!$C$42),"Yes","No") -> Yes | K55: =VLOOKUP($C55,'C.1 - Rate Sheets'!H:I,2,FALSE) -> 42 | L55: 71.5 | Q55: 71.5 | R55: 3003 | S55: 3003 | T55: 0 | U55: 0 | V55: 0
B56: 39 | C56: Pole Trailer | D56: 1910 | E56: Vendor No.5 | F56: 154 | G56: 123744 | H56: 2018-10-10 | I56: 2018-10-14 | J56: =IF(AND(H56>='A - Contractor Summary'!$C$36,I56<='A - Contractor Summary'!$C$42),"Yes","No") -> Yes | K56: =VLOOKUP($C56,'C.1 - Rate Sheets'!H:I,2,FALSE) -> 9.24 | L56: 71.5 | Q56: 71.5 | R56: 660.66 | S56: 660.66 | T56: 0 | U56: 0 | V56: 0
B57: 40 | C57: Pickup | D57: 1354 | E57: Vendor No.5 | F57: 154 | G57: 123746 | H57: 2018-10-15 | I57: 2018-10-21 | J57: =IF(AND(H57>='A - Contractor Summary'!$C$36,I57<='A - Contractor Summary'!$C$42),"Yes","No") -> Yes | K57: =VLOOKUP($C57,'C.1 - Rate Sheets'!H:I,2,FALSE) -> 21 | M57: 112 | Q57: 112 | R57: 2352 | S57: 2352 | T57: 0 | U57: 0 | V57: 0
B58: 41 | C58: 55 Bucket MH | D58: 1407 | E58: Vendor No.5 | F58: 154 | G58: 123746 | H58: 2018-10-15 | I58: 2018-10-21 | J58: =IF(AND(H58>='A - Contractor Summary'!$C$36,I58<='A - Contractor Summary'!$C$42),"Yes","No") -> Yes | K58: =VLOOKUP($C58,'C.1 - Rate Sheets'!H:I,2,FALSE) -> 40 | M58: 112 | Q58: 112 | R58: 4480 | S58: 4480 | T58: 0 | U58: 0 | V58: 0
B59: 42 | C59: 55 Bucket MH | D59: 97-50867404 | E59: Vendor No.5 | F59: 154 | G59: 123746 | H59: 2018-10-15 | I59: 2018-10-21 | J59: =IF(AND(H59>='A - Contractor Summary'!$C$36,I59<='A - Contractor Summary'!$C$42),"Yes","No") -> Yes | K59: =VLOOKUP($C59,'C.1 - Rate Sheets'!H:I,2,FALSE) -> 40 | M59: 112 | Q59: 112 | R59: 4480 | S59: 4480 | T59: 0 | U59: 0 | V59: 0
B60: 43 | C60: Digger Truck | D60: 1577 | E60: Vendor No.5 | F60: 154 | G60: 123746 | H60: 2018-10-15 | I60: 2018-10-21 | J60: =IF(AND(H60>='A - Contractor Summary'!$C$36,I60<='A - Contractor Summary'!$C$42),"Yes","No") -> Yes | K60: =VLOOKUP($C60,'C.1 - Rate Sheets'!H:I,2,FALSE) -> 42 | M60: 112 | Q60: 112 | R60: 4704 | S60: 4704 | T60: 0 | U60: 0 | V60: 0
B61: 44 | C61: Pole Trailer | D61: 1910 | E61: Vendor No.5 | F61: 154 | G61: 123746 | H61: 2018-10-15 | I61: 2018-10-21 | J61: =IF(AND(H61>='A - Contractor Summary'!$C$36,I61<='A - Contractor Summary'!$C$42),"Yes","No") -> Yes | K61: =VLOOKUP($C61,'C.1 - Rate Sheets'!H:I,2,FALSE) -> 9.24 | M61: 112 | Q61: 112 | R61: 1034.88 | S61: 1034.88 | T61: 0 | U61: 0 | V61: 0
B62: 45 | C62: Pickup | D62: 1527 | E62: Vendor No.5 | F62: 168 | G62: 123791 | H62: 2018-10-08 | I62: 2018-10-14 | J62: =IF(AND(H62>='A - Contractor Summary'!$C$36,I62<='A - Contractor Summary'!$C$42),"Yes","No") -> No | K62: =VLOOKUP($C62,'C.1 - Rate Sheets'!H:I,2,FALSE) -> 21 | L62: 65 | Q62: 65 | R62: 1365 | S62: 1365 | T62: 0 | U62: 0 | V62: 0
B63: 46 | C63: 55 Bucket MH | D63: 1669 | E63: Vendor No.5 | F63: 168 | G63: 123791 | H63: 2018-10-08 | I63: 2018-10-14 | J63: =IF(AND(H63>='A - Contractor Summary'!$C$36,I63<='A - Contractor Summary'!$C$42),"Yes","No") -> No | K63: =VLOOKUP($C63,'C.1 - Rate Sheets'!H:I,2,FALSE) -> 40 | L63: 65 | Q63: 65 | R63: 2600 | S63: 2600 | T63: 0 | U63: 0 | V63: 0
B64: 47 | C64: 55 Bucket MH | D64: 1606 | E64: Vendor No.5 | F64: 168 | G64: 123791 | H64: 2018-10-08 | I64: 2018-10-14 | J64: =IF(AND(H64>='A - Contractor Summary'!$C$36,I64<='A - Contractor Summary'!$C$42),"Yes","No") -> No | K64: =VLOOKUP($C64,'C.1 - Rate Sheets'!H:I,2,FALSE) -> 40 | L64: 48 | Q64: 48 | R64: 1920 | S64: 1920 | T64: 0 | U64: 0 | V64: 0
B65: 48 | C65: Digger Truck | D65: 1691 | E65: Vendor No.5 | F65: 168 | G65: 123791 | H65: 2018-10-08 | I65: 2018-10-14 | J65: =IF(AND(H65>='A - Contractor Summary'!$C$36,I65<='A - Contractor Summary'!$C$42),"Yes","No") -> No | K65: =VLOOKUP($C65,'C.1 - Rate Sheets'!H:I,2,FALSE) -> 42 | L65: 65 | Q65: 65 | R65: 2730 | S65: 2730 | T65: 0 | U65: 0 | V65: 0
B66: 49 | C66: Pole Trailer | D66: 1970 | E66: Vendor No.5 | F66: 168 | G66: 123795 | H66: 2018-10-08 | I66: 2018-10-14 | J66: =IF(AND(H66>='A - Contractor Summary'!$C$36,I66<='A - Contractor Summary'!$C$42),"Yes","No") -> No | K66: =VLOOKUP($C66,'C.1 - Rate Sheets'!H:I,2,FALSE) -> 9.24 | L66: 65 | Q66: 65 | R66: 600.6 | S66: 600.6 | T66: 0 | U66: 0 | V66: 0
B67: 50 | C67: Pickup | D67: 1527 | E67: Vendor No.5 | F67: 168 | G67: 123795 | H67: 2018-10-15 | I67: 2018-10-21 | J67: =IF(AND(H67>='A - Contractor Summary'!$C$36,I67<='A - Contractor Summary'!$C$42),"Yes","No") -> Yes | K67: =VLOOKUP($C67,'C.1 - Rate Sheets'!H:I,2,FALSE) -> 21 | M67: 112 | Q67: 112 | R67: 2352 | S67: 2352 | T67: 0 | U67: 0 | V67: 0
B68: 51 | C68: 55 Bucket MH | D68: 1669 | E68: Vendor No.5 | F68: 168 | G68: 123795 | H68: 2018-10-15 | I68: 2018-10-21 | J68: =IF(AND(H68>='A - Contractor Summary'!$C$36,I68<='A - Contractor Summary'!$C$42),"Yes","No") -> Yes | K68: =VLOOKUP($C68,'C.1 - Rate Sheets'!H:I,2,FALSE) -> 40 | M68: 112 | Q68: 112 | R68: 4480 | S68: 4480 | T68: 0 | U68: 0 | V68: 0
B69: 52 | C69: 55 Bucket MH | D69: 1606 | E69: Vendor No.5 | F69: 168 | G69: 123795 | H69: 2018-10-15 | I69: 2018-10-21 | J69: =IF(AND(H69>='A - Contractor Summary'!$C$36,I69<='A - Contractor Summary'!$C$42),"Yes","No") -> Yes | K69: =VLOOKUP($C69,'C.1 - Rate Sheets'!H:I,2,FALSE) -> 40 | M69: 112 | Q69: 112 | R69: 4480 | S69: 4480 | T69: 0 | U69: 0 | V69: 0
B70: 53 | C70: Digger Truck | D70: 1691 | E70: Vendor No.5 | F70: 168 | G70: 123795 | H70: 2018-10-15 | I70: 2018-10-21 | J70: =IF(AND(H70>='A - Contractor Summary'!$C$36,I70<='A - Contractor Summary'!$C$42),"Yes","No") -> Yes | K70: =VLOOKUP($C70,'C.1 - Rate Sheets'!H:I,2,FALSE) -> 42 | M70: 112 | Q70: 112 | R70: 4704 | S70: 4704 | T70: 0 | U70: 0 | V70: 0
B71: 54 | C71: Pole Trailer | D71: 1970 | E71: Vendor No.5 | F71: 168 | G71: 123795 | H71: 2018-10-15 | I71: 2018-10-21 | J71: =IF(AND(H71>='A - Contractor Summary'!$C$36,I71<='A - Contractor Summary'!$C$42),"Yes","No") -> Yes | K71: =VLOOKUP($C71,'C.1 - Rate Sheets'!H:I,2,FALSE) -> 9.24 | M71: 112 | Q71: 112 | R71: 1034.88 | S71: 1034.88 | T71: 0 | U71: 0 | V71: 0
B72: 55 | C72: Pickup | D72: 1527 | E72: Vendor No.5 | F72: 168 | G72: 124282 | H72: 2018-10-22 | I72: 2018-10-26 | J72: =IF(AND(H72>='A - Contractor Summary'!$C$36,I72<='A - Contractor Summary'!$C$42),"Yes","No") -> Yes | K72: =VLOOKUP($C72,'C.1 - Rate Sheets'!H:I,2,FALSE) -> 21 | N72: 72 | Q72: 72 | R72: 1512 | S72: 1512 | T72: 0 | U72: 0 | V72: 0
B73: 56 | C73: 55 Bucket MH | D73: 1669 | E73: Vendor No.5 | F73: 168 | G73: 124282 | H73: 2018-10-22 | I73: 2018-10-26 | J73: =IF(AND(H73>='A - Contractor Summary'!$C$36,I73<='A - Contractor Summary'!$C$42),"Yes","No") -> Yes | K73: =VLOOKUP($C73,'C.1 - Rate Sheets'!H:I,2,FALSE) -> 40 | N73: 72 | Q73: 72 | R73: 2880 | S73: 2880 | T73: 0 | U73: 0 | V73: 0
B74: 57 | C74: 55 Bucket MH | D74: 1606 | E74: Vendor No.5 | F74: 168 | G74: 124282 | H74: 2018-10-22 | I74: 2018-10-26 | J74: =IF(AND(H74>='A - Contractor Summary'!$C$36,I74<='A - Contractor Summary'!$C$42),"Yes","No") -> Yes | K74: =VLOOKUP($C74,'C.1 - Rate Sheets'!H:I,2,FALSE) -> 40 | N74: 72 | Q74: 72 | R74: 2880 | S74: 2880 | T74: 0 | U74: 0 | V74: 0
B75: 58 | C75: Digger Truck | D75: 1691 | E75: Vendor No.5 | F75: 168 | G75: 124282 | H75: 2018-10-22 | I75: 2018-10-26 | J75: =IF(AND(H75>='A - Contractor Summary'!$C$36,I75<='A - Contractor Summary'!$C$42),"Yes","No") -> Yes | K75: =VLOOKUP($C75,'C.1 - Rate Sheets'!H:I,2,FALSE) -> 42 | N75: 72 | Q75: 72 | R75: 3024 | S75: 3024 | T75: 0 | U75: 0 | V75: 0
B76: 59 | C76: Pole Trailer | D76: 1970 | E76: Vendor No.5 | F76: 168 | G76: 124282 | H76: 2018-10-22 | I76: 2018-10-26 | J76: =IF(AND(H76>='A - Contractor Summary'!$C$36,I76<='A - Contractor Summary'!$C$42),"Yes","No") -> Yes | K76: =VLOOKUP($C76,'C.1 - Rate Sheets'!H:I,2,FALSE) -> 9.24 | N76: 72 | Q76: 72 | R76: 665.28 | S76: 665.28 | T76: 0 | U76: 0 | V76: 0
B77: 60 | C77: Pickup | D77: 1698 | E77: Vendor No.5 | F77: 019 | G77: 124538 | H77: 2018-10-22 | I77: 2018-10-28 | J77: =IF(AND(H77>='A - Contractor Summary'!$C$36,I77<='A - Contractor Summary'!$C$42),"Yes","No") -> Yes | K77: =VLOOKUP($C77,'C.1 - Rate Sheets'!H:I,2,FALSE) -> 21 | N77: 112 | Q77: 112 | R77: 2352 | S77: 2352 | T77: 0 | U77: 0 | V77: 0
B78: 61 | C78: Pickup | D78: 1249 | E78: Vendor No.5 | F78: 019 | G78: 124538 | H78: 2018-10-22 | I78: 2018-10-28 | J78: =IF(AND(H78>='A - Contractor Summary'!$C$36,I78<='A - Contractor Summary'!$C$42),"Yes","No") -> Yes | K78: =VLOOKUP($C78,'C.1 - Rate Sheets'!H:I,2,FALSE) -> 21 | N78: 64 | Q78: 64 | R78: 1344 | S78: 1344 | T78: 0 | U78: 0 | V78: 0
B79: 62 | C79: Mechanic's Service Truck | D79: 810 | E79: Vendor No.5 | F79: 019 | G79: 124538 | H79: 2018-10-22 | I79: 2018-10-28 | J79: =IF(AND(H79>='A - Contractor Summary'!$C$36,I79<='A - Contractor Summary'!$C$42),"Yes","No") -> Yes | K79: =VLOOKUP($C79,'C.1 - Rate Sheets'!H:I,2,FALSE) -> 32.34 | N79: 112 | Q79: 112 | R79: 3622.08 | S79: 3622.08 | T79: 0 | U79: 0 | V79: 0
B80: 63 | C80: Haul Truck w/ Lowboy | D80: 308/913 | E80: Vendor No.5 | F80: 019 | G80: 124538 | H80: 2018-10-22 | I80: 2018-10-28 | J80: =IF(AND(H80>='A - Contractor Summary'!$C$36,I80<='A - Contractor Summary'!$C$42),"Yes","No") -> Yes | K80: =VLOOKUP($C80,'C.1 - Rate Sheets'!H:I,2,FALSE) -> 100 | N80: 112 | Q80: 112 | R80: 11200 | S80: 11200 | T80: 0 | U80: 0 | V80: 0
B81: 64 | C81: Track Machine w/ Bucket | D81: 1849 | E81: Vendor No.5 | F81: 019 | G81: 124538 | H81: 2018-10-22 | I81: 2018-10-28 | J81: =IF(AND(H81>='A - Contractor Summary'!$C$36,I81<='A - Contractor Summary'!$C$42),"Yes","No") -> Yes | K81: =VLOOKUP($C81,'C.1 - Rate Sheets'!H:I,2,FALSE) -> 100 | N81: 112 | Q81: 112 | R81: 11200 | S81: 11200 | T81: 0 | U81: 0 | V81: 0
B82: 65 | C82: Haul Truck w/ Lowboy | D82: 226/821 | E82: Vendor No.5 | F82: 019 | G82: 124538 | H82: 2018-10-22 | I82: 2018-10-28 | J82: =IF(AND(H82>='A - Contractor Summary'!$C$36,I82<='A - Contractor Summary'!$C$42),"Yes","No") -> Yes | K82: =VLOOKUP($C82,'C.1 - Rate Sheets'!H:I,2,FALSE) -> 100 | N82: 112 | Q82: 112 | R82: 11200 | S82: =R82-T82 -> 11200 | T82: 0 | U82: 0 | V82: 0
B83: 66 | C83: Track Machine w/ Bucket | D83: 1674 | E83: Vendor No.5 | F83: 019 | G83: 124538 | H83: 2018-10-22 | I83: 2018-10-28 | J83: =IF(AND(H83>='A - Contractor Summary'!$C$36,I83<='A - Contractor Summary'!$C$42),"Yes","No") -> Yes | K83: =VLOOKUP($C83,'C.1 - Rate Sheets'!H:I,2,FALSE) -> 100 | N83: 112 | Q83: 112 | R83: 11200 | S83: 11200 | T83: 0 | U83: 0 | V83: 0
B84: 67 | C84: Haul Truck w/ Lowboy | D84: 573/820 | E84: Vendor No.5 | F84: 019 | G84: 124538 | H84: 2018-10-22 | I84: 2018-10-28 | J84: =IF(AND(H84>='A - Contractor Summary'!$C$36,I84<='A - Contractor Summary'!$C$42),"Yes","No") -> Yes | K84: =VLOOKUP($C84,'C.1 - Rate Sheets'!H:I,2,FALSE) -> 100 | N84: 112 | Q84: =SUM(L84:P84) -> 112 | R84: =Q84*K84 -> 11200 | S84: 11200 | T84: 0 | U84: 0 | V84: 0
B85: 68 | C85: Track Machine w/ Digger | D85: 746 | E85: Vendor No.5 | F85: 019 | G85: 124538 | H85: 2018-10-22 | I85: 2018-10-28 | J85: =IF(AND(H85>='A - Contractor Summary'!$C$36,I85<='A - Contractor Summary'!$C$42),"Yes","No") -> Yes | K85: =VLOOKUP($C85,'C.1 - Rate Sheets'!H:I,2,FALSE) -> 100 | N85: 112 | Q85: 112 | R85: 11200 | S85: 11200 | T85: 0 | U85: 0 | V85: 0
B86: 69 | C86: Haul Truck w/ Lowboy | D86: 99902A | E86: Vendor No.5 | F86: 019 | G86: 124538 | H86: 2018-10-22 | I86: 2018-10-28 | J86: =IF(AND(H86>='A - Contractor Summary'!$C$36,I86<='A - Contractor Summary'!$C$42),"Yes","No") -> Yes | K86: =VLOOKUP($C86,'C.1 - Rate Sheets'!H:I,2,FALSE) -> 100 | N86: 112 | Q86: 112 | R86: 11200 | S86: 11200 | T86: 0 | U86: 0 | V86: 0
B87: 70 | C87: Dozer | D87: 99902B | E87: Vendor No.5 | F87: 019 | G87: 124538 | H87: 2018-10-22 | I87: 2018-10-28 | J87: =IF(AND(H87>='A - Contractor Summary'!$C$36,I87<='A - Contractor Summary'!$C$42),"Yes","No") -> Yes | K87: =VLOOKUP($C87,'C.1 - Rate Sheets'!H:I,2,FALSE) -> 57.75 | N87: 112 | Q87: 112 | R87: 6468 | S87: 6468 | T87: 0 | U87: 0 | V87: 0
B88: 71 | C88: Pickup | D88: 1289 | E88: Vendor No.5 | F88: 110 | G88: 124577 | H88: 2018-10-22 | I88: 2018-10-28 | J88: =IF(AND(H88>='A - Contractor Summary'!$C$36,I88<='A - Contractor Summary'!$C$42),"Yes","No") -> Yes | K88: =VLOOKUP($C88,'C.1 - Rate Sheets'!H:I,2,FALSE) -> 21 | N88: 112 | Q88: 112 | R88: 2352 | S88: 2352 | T88: 0 | U88: 0 | V88: 0
B89: 72 | C89: 55 Bucket MH | D89: 1628 | E89: Vendor No.5 | F89: 110 | G89: 124577 | H89: 2018-10-22 | I89: 2018-10-28 | J89: =IF(AND(H89>='A - Contractor Summary'!$C$36,I89<='A - Contractor Summary'!$C$42),"Yes","No") -> Yes | K89: =VLOOKUP($C89,'C.1 - Rate Sheets'!H:I,2,FALSE) -> 40 | N89: 112 | Q89: 112 | R89: 4480 | S89: 4480 | T89: 0 | U89: 0 | V89: 0
B90: 73 | C90: 55 Bucket MH | D90: 1629 | E90: Vendor No.5 | F90: 110 | G90: 124577 | H90: 2018-10-22 | I90: 2018-10-28 | J90: =IF(AND(H90>='A - Contractor Summary'!$C$36,I90<='A - Contractor Summary'!$C$42),"Yes","No") -> Yes | K90: =VLOOKUP($C90,'C.1 - Rate Sheets'!H:I,2,FALSE) -> 40 | N90: 112 | Q90: 112 | R90: 4480 | S90: 4480 | T90: 0 | U90: 0 | V90: 0
B91: 74 | C91: Digger Truck | D91: 1418 | E91: Vendor No.5 | F91: 110 | G91: 124577 | H91: 2018-10-22 | I91: 2018-10-28 | J91: =IF(AND(H91>='A - Contractor Summary'!$C$36,I91<='A - Contractor Summary'!$C$42),"Yes","No") -> Yes | K91: =VLOOKUP($C91,'C.1 - Rate Sheets'!H:I,2,FALSE) -> 42 | N91: 112 | Q91: 112 | R91: 4704 | S91: 4704 | T91: 0 | U91: 0 | V91: 0
B92: 75 | C92: Pole Trailer | D92: 192 | E92: Vendor No.5 | F92: 110 | G92: 124577 | H92: 2018-10-22 | I92: 2018-10-28 | J92: =IF(AND(H92>='A - Contractor Summary'!$C$36,I92<='A - Contractor Summary'!$C$42),"Yes","No") -> Yes | K92: =VLOOKUP($C92,'C.1 - Rate Sheets'!H:I,2,FALSE) -> 9.24 | N92: 112 | Q92: 112 | R92: 1034.88 | S92: 1034.88 | T92: 0 | U92: 0 | V92: 0
B93: 76 | C93: Pickup | D93: 1354 | E93: Vendor No.5 | F93: 154 | G93: 124586 | H93: 2018-10-22 | I93: 2018-10-28 | J93: =IF(AND(H93>='A - Contractor Summary'!$C$36,I93<='A - Contractor Summary'!$C$42),"Yes","No") -> Yes | K93: =VLOOKUP($C93,'C.1 - Rate Sheets'!H:I,2,FALSE) -> 21 | N93: 112 | Q93: 112 | R93: 2352 | S93: 2352 | T93: 0 | U93: 0 | V93: 0
B94: 77 | C94: 55 Bucket MH | D94: 1407 | E94: Vendor No.5 | F94: 154 | G94: 124586 | H94: 2018-10-22 | I94: 2018-10-28 | J94: =IF(AND(H94>='A - Contractor Summary'!$C$36,I94<='A - Contractor Summary'!$C$42),"Yes","No") -> Yes | K94: =VLOOKUP($C94,'C.1 - Rate Sheets'!H:I,2,FALSE) -> 40 | N94: 112 | Q94: 112 | R94: 4480 | S94: 4480 | T94: 0 | U94: 0 | V94: 0
B95: 78 | C95: 55 Bucket MH | D95: 97-50867404 | E95: Vendor No.5 | F95: 154 | G95: 124586 | H95: 2018-10-22 | I95: 2018-10-28 | J95: =IF(AND(H95>='A - Contractor Summary'!$C$36,I95<='A - Contractor Summary'!$C$42),"Yes","No") -> Yes | K95: =VLOOKUP($C95,'C.1 - Rate Sheets'!H:I,2,FALSE) -> 40 | N95: 112 | Q95: 112 | R95: 4480 | S95: 4480 | T95: 0 | U95: 0 | V95: 0
B96: 79 | C96: Digger Truck | D96: 1577 | E96: Vendor No.5 | F96: 154 | G96: 124586 | H96: 2018-10-22 | I96: 2018-10-28 | J96: =IF(AND(H96>='A - Contractor Summary'!$C$36,I96<='A - Contractor Summary'!$C$42),"Yes","No") -> Yes | K96: =VLOOKUP($C96,'C.1 - Rate Sheets'!H:I,2,FALSE) -> 42 | N96: 112 | Q96: 112 | R96: 4704 | S96: 4704 | T96: 0 | U96: 0 | V96: 0
B97: 80 | C97: Pole Trailer | D97: 1910 | E97: Vendor No.5 | F97: 154 | G97: 124586 | H97: 2018-10-22 | I97: 2018-10-28 | J97: =IF(AND(H97>='A - Contractor Summary'!$C$36,I97<='A - Contractor Summary'!$C$42),"Yes","No") -> Yes | K97: =VLOOKUP($C97,'C.1 - Rate Sheets'!H:I,2,FALSE) -> 9.24 | N97: 112 | Q97: 112 | R97: 1034.88 | S97: 1034.88 | T97: 0 | U97: 0 | V97: 0
B98: 81 | C98: Pickup | D98: 1698 | E98: Vendor No.5 | F98: 019 | G98: 125344 | H98: 2018-10-29 | I98: 2018-11-01 | J98: =IF(AND(H98>='A - Contractor Summary'!$C$36,I98<='A - Contractor Summary'!$C$42),"Yes","No") -> No | K98: =VLOOKUP($C98,'C.1 - Rate Sheets'!H:I,2,FALSE) -> 21 | O98: 48 | Q98: 48 | R98: 1008 | S98: 1008 | T98: 0 | U98: 0 | V98: 0
B99: 82 | C99: Mechanic's Service Truck | D99: 1925 | E99: Vendor No.5 | F99: 019 | G99: 125344 | H99: 2018-10-29 | I99: 2018-11-01 | J99: =IF(AND(H99>='A - Contractor Summary'!$C$36,I99<='A - Contractor Summary'!$C$42),"Yes","No") -> No | K99: =VLOOKUP($C99,'C.1 - Rate Sheets'!H:I,2,FALSE) -> 32.34 | O99: 48 | Q99: 48 | R99: 1552.32 | S99: 1552.32 | T99: 0 | U99: 0 | V99: 0
B100: 83 | C100: Haul Truck w/ Lowboy | D100: 308/913 | E100: Vendor No.5 | F100: 019 | G100: 125344 | H100: 2018-10-29 | I100: 2018-11-01 | J100: =IF(AND(H100>='A - Contractor Summary'!$C$36,I100<='A - Contractor Summary'!$C$42),"Yes","No") -> No | K100: =VLOOKUP($C100,'C.1 - Rate Sheets'!H:I,2,FALSE) -> 100 | O100: 48 | Q100: 48 | R100: 4800 | S100: 4800 | T100: 0 | U100: 0 | V100: 0
B101: 84 | C101: Track Machine w/ Bucket | D101: 1849 | E101: Vendor No.5 | F101: 019 | G101: 125344 | H101: 2018-10-29 | I101: 2018-11-01 | J101: =IF(AND(H101>='A - Contractor Summary'!$C$36,I101<='A - Contractor Summary'!$C$42),"Yes","No") -> No | K101: =VLOOKUP($C101,'C.1 - Rate Sheets'!H:I,2,FALSE) -> 100 | O101: 48 | Q101: 48 | R101: 4800 | S101: 4800 | T101: 0 | U101: 0 | V101: 0
B102: 85 | C102: Haul Truck w/ Lowboy | D102: 226/821 | E102: Vendor No.5 | F102: 019 | G102: 125344 | H102: 2018-10-29 | I102: 2018-11-01 | J102: =IF(AND(H102>='A - Contractor Summary'!$C$36,I102<='A - Contractor Summary'!$C$42),"Yes","No") -> No | K102: =VLOOKUP($C102,'C.1 - Rate Sheets'!H:I,2,FALSE) -> 100 | O102: 48 | Q102: 48 | R102: 4800 | S102: 4800 | T102: 0 | U102: 0 | V102: 0
B103: 86 | C103: Track Machine w/ Bucket | D103: 1674 | E103: Vendor No.5 | F103: 019 | G103: 125344 | H103: 2018-10-29 | I103: 2018-11-01 | J103: =IF(AND(H103>='A - Contractor Summary'!$C$36,I103<='A - Contractor Summary'!$C$42),"Yes","No") -> No | K103: =VLOOKUP($C103,'C.1 - Rate Sheets'!H:I,2,FALSE) -> 100 | O103: 48 | Q103: 48 | R103: 4800 | S103: 4800 | T103: 0 | U103: 0 | V103: 0
B104: 87 | C104: Haul Truck w/ Lowboy | D104: 573/820 | E104: Vendor No.5 | F104: 019 | G104: 125344 | H104: 2018-10-29 | I104: 2018-11-01 | J104: =IF(AND(H104>='A - Contractor Summary'!$C$36,I104<='A - Contractor Summary'!$C$42),"Yes","No") -> No | K104: =VLOOKUP($C104,'C.1 - Rate Sheets'!H:I,2,FALSE) -> 100 | O104: 64 | Q104: 64 | R104: 6400 | S104: 6400 | T104: 0 | U104: 0 | V104: 0
B105: 88 | C105: Track Machine w/ Digger | D105: 746 | E105: Vendor No.5 | F105: 019 | G105: 125344 | H105: 2018-10-29 | I105: 2018-11-01 | J105: =IF(AND(H105>='A - Contractor Summary'!$C$36,I105<='A - Contractor Summary'!$C$42),"Yes","No") -> No | K105: =VLOOKUP($C105,'C.1 - Rate Sheets'!H:I,2,FALSE) -> 100 | O105: 48 | Q105: 48 | R105: 4800 | S105: 4800 | T105: 0 | U105: 0 | V105: 0
B106: 89 | C106: Haul Truck w/ Lowboy | D106: 99902A | E106: Vendor No.5 | F106: 019 | G106: 125344 | H106: 2018-10-29 | I106: 2018-11-01 | J106: =IF(AND(H106>='A - Contractor Summary'!$C$36,I106<='A - Contractor Summary'!$C$42),"Yes","No") -> No | K106: =VLOOKUP($C106,'C.1 - Rate Sheets'!H:I,2,FALSE) -> 100 | O106: 48 | Q106: 48 | R106: 4800 | S106: 4800 | T106: 0 | U106: 0 | V106: 0
B107: 90 | C107: Dozer | D107: 99902B | E107: Vendor No.5 | F107: 019 | G107: 125344 | H107: 2018-10-29 | I107: 2018-11-01 | J107: =IF(AND(H107>='A - Contractor Summary'!$C$36,I107<='A - Contractor Summary'!$C$42),"Yes","No") -> No | K107: =VLOOKUP($C107,'C.1 - Rate Sheets'!H:I,2,FALSE) -> 57.75 | O107: 48 | Q107: 48 | R107: 2772 | S107: 2772 | T107: 0 | U107: 0 | V107: 0
B108: 91 | C108: Track Machine w/ Digger | D108: 1657 | E108: Vendor No.5 | F108: 019 | G108: 125344 | H108: 2018-10-29 | I108: 2018-11-01 | J108: =IF(AND(H108>='A - Contractor Summary'!$C$36,I108<='A - Contractor Summary'!$C$42),"Yes","No") -> No | K108: =VLOOKUP($C108,'C.1 - Rate Sheets'!H:I,2,FALSE) -> 100 | O108: 16 | Q108: 16 | R108: 1600 | S108: 1600 | T108: 0 | U108: 0 | V108: 0
B109: 92 | C109: Pickup | D109: 1288 | E109: Vendor No.5 | F109: 135 | G109: 124408J | H109: 2018-10-22 | I109: 2018-10-28 | J109: =IF(AND(H109>='A - Contractor Summary'!$C$36,I109<='A - Contractor Summary'!$C$42),"Yes","No") -> Yes | K109: =VLOOKUP($C109,'C.1 - Rate Sheets'!H:I,2,FALSE) -> 21 | N109: 112 | Q109: 112 | R109: 2352 | S109: 2352 | T109: 0 | U109: 0 | V109: 0
B110: 93 | C110: 55 Bucket MH | D110: 1405 | E110: Vendor No.5 | F110: 135 | G110: 124408J | H110: 2018-10-22 | I110: 2018-10-28 | J110: =IF(AND(H110>='A - Contractor Summary'!$C$36,I110<='A - Contractor Summary'!$C$42),"Yes","No") -> Yes | K110: =VLOOKUP($C110,'C.1 - Rate Sheets'!H:I,2,FALSE) -> 40 | N110: 112 | Q110: 112 | R110: 4480 | S110: 4480 | T110: 0 | U110: 0 | V110: 0
B111: 94 | C111: 55 Bucket MH | D111: 1610 | E111: Vendor No.5 | F111: 135 | G111: 124408J | H111: 2018-10-22 | I111: 2018-10-28 | J111: =IF(AND(H111>='A - Contractor Summary'!$C$36,I111<='A - Contractor Summary'!$C$42),"Yes","No") -> Yes | K111: =VLOOKUP($C111,'C.1 - Rate Sheets'!H:I,2,FALSE) -> 40 | N111: 112 | Q111: 112 | R111: 4480 | S111: 4480 | T111: 0 | U111: 0 | V111: 0
B112: 95 | C112: Digger Truck | D112: 1680 | E112: Vendor No.5 | F112: 135 | G112: 124408J | H112: 2018-10-22 | I112: 2018-10-28 | J112: =IF(AND(H112>='A - Contractor Summary'!$C$36,I112<='A - Contractor Summary'!$C$42),"Yes","No") -> Yes | K112: =VLOOKUP($C112,'C.1 - Rate Sheets'!H:I,2,FALSE) -> 42 | N112: 112 | Q112: 112 | R112: 4704 | S112: 4704 | T112: 0 | U112: 0 | V112: 0
B113: 96 | C113: Pole Trailer | D113: 546 | E113: Vendor No.5 | F113: 135 | G113: 124408J | H113: 2018-10-22 | I113: 2018-10-28 | J113: =IF(AND(H113>='A - Contractor Summary'!$C$36,I113<='A - Contractor Summary'!$C$42),"Yes","No") -> Yes | K113: =VLOOKUP($C113,'C.1 - Rate Sheets'!H:I,2,FALSE) -> 9.24 | N113: 112 | Q113: 112 | R113: 1034.88 | S113: 1034.88 | T113: 0 | U113: 0 | V113: 0
B114: 97 | C114: Pickup | D114: 1352 | E114: Vendor No.5 | F114: 123 | G114: 124422J | H114: 2018-10-22 | I114: 2018-10-28 | J114: =IF(AND(H114>='A - Contractor Summary'!$C$36,I114<='A - Contractor Summary'!$C$42),"Yes","No") -> Yes | K114: =VLOOKUP($C114,'C.1 - Rate Sheets'!H:I,2,FALSE) -> 21 | N114: 112 | Q114: 112 | R114: 2352 | S114: 2352 | T114: 0 | U114: 0 | V114: 0
B115: 98 | C115: 55 Bucket MH | D115: 1623 | E115: Vendor No.5 | F115: 123 | G115: 124422J | H115: 2018-10-22 | I115: 2018-10-28 | J115: =IF(AND(H115>='A - Contractor Summary'!$C$36,I115<='A - Contractor Summary'!$C$42),"Yes","No") -> Yes | K115: =VLOOKUP($C115,'C.1 - Rate Sheets'!H:I,2,FALSE) -> 40 | N115: 112 | Q115: 112 | R115: 4480 | S115: 4480 | T115: 0 | U115: 0 | V115: 0
B116: 99 | C116: 55 Bucket MH | D116: 1681 | E116: Vendor No.5 | F116: 123 | G116: 124422J | H116: 2018-10-22 | I116: 2018-10-28 | J116: =IF(AND(H116>='A - Contractor Summary'!$C$36,I116<='A - Contractor Summary'!$C$42),"Yes","No") -> Yes | K116: =VLOOKUP($C116,'C.1 - Rate Sheets'!H:I,2,FALSE) -> 40 | N116: 112 | Q116: 112 | R116: 4480 | S116: 4480 | T116: 0 | U116: 0 | V116: 0
B117: 100 | C117: Digger Truck | D117: 1583 | E117: Vendor No.5 | F117: 123 | G117: 124422J | H117: 2018-10-22 | I117: 2018-10-28 | J117: =IF(AND(H117>='A - Contractor Summary'!$C$36,I117<='A - Contractor Summary'!$C$42),"Yes","No") -> Yes | K117: =VLOOKUP($C117,'C.1 - Rate Sheets'!H:I,2,FALSE) -> 42 | N117: 112 | Q117: 112 | R117: 4704 | S117: 4704 | T117: 0 | U117: 0 | V117: 0
B118: 101 | C118: Pole Trailer | D118: 981 | E118: Vendor No.5 | F118: 123 | G118: 124422J | H118: 2018-10-22 | I118: 2018-10-28 | J118: =IF(AND(H118>='A - Contractor Summary'!$C$36,I118<='A - Contractor Summary'!$C$42),"Yes","No") -> Yes | K118: =VLOOKUP($C118,'C.1 - Rate Sheets'!H:I,2,FALSE) -> 9.24 | N118: 112 | Q118: 112 | R118: 1034.88 | S118: 1034.88 | T118: 0 | U118: 0 | V118: 0
B119: 102 | C119: Pickup | D119: 1288 | E119: Vendor No.5 | F119: 135 | G119: 124554J | H119: 2018-10-17 | I119: 2018-10-21 | J119: =IF(AND(H119>='A - Contractor Summary'!$C$36,I119<='A - Contractor Summary'!$C$42),"Yes","No") -> Yes | K119: =VLOOKUP($C119,'C.1 - Rate Sheets'!H:I,2,FALSE) -> 21 | M119: 80 | Q119: 80 | R119: 1680 | S119: 1680 | T119: 0 | U119: 0 | V119: 0
B120: 103 | C120: 55 Bucket MH | D120: 1405 | E120: Vendor No.5 | F120: 135 | G120: 124554J | H120: 2018-10-17 | I120: 2018-10-21 | J120: =IF(AND(H120>='A - Contractor Summary'!$C$36,I120<='A - Contractor Summary'!$C$42),"Yes","No") -> Yes | K120: =VLOOKUP($C120,'C.1 - Rate Sheets'!H:I,2,FALSE) -> 40 | M120: 80 | Q120: 80 | R120: 3200 | S120: 3200 | T120: 0 | U120: 0 | V120: 0
B121: 104 | C121: 55 Bucket MH | D121: 1610 | E121: Vendor No.5 | F121: 135 | G121: 124554J | H121: 2018-10-17 | I121: 2018-10-21 | J121: =IF(AND(H121>='A - Contractor Summary'!$C$36,I121<='A - Contractor Summary'!$C$42),"Yes","No") -> Yes | K121: =VLOOKUP($C121,'C.1 - Rate Sheets'!H:I,2,FALSE) -> 40 | M121: 80 | Q121: 80 | R121: 3200 | S121: 3200 | T121: 0 | U121: 0 | V121: 0
B122: 105 | C122: Digger Truck | D122: 1680 | E122: Vendor No.5 | F122: 135 | G122: 124554J | H122: 2018-10-17 | I122: 2018-10-21 | J122: =IF(AND(H122>='A - Contractor Summary'!$C$36,I122<='A - Contractor Summary'!$C$42),"Yes","No") -> Yes | K122: =VLOOKUP($C122,'C.1 - Rate Sheets'!H:I,2,FALSE) -> 42 | M122: 80 | Q122: 80 | R122: 3360 | S122: 3360 | T122: 0 | U122: 0 | V122: 0
B123: 106 | C123: Pole Trailer | D123: 546 | E123: Vendor No.5 | F123: 135 | G123: 124554J | H123: 2018-10-17 | I123: 2018-10-21 | J123: =IF(AND(H123>='A - Contractor Summary'!$C$36,I123<='A - Contractor Summary'!$C$42),"Yes","No") -> Yes | K123: =VLOOKUP($C123,'C.1 - Rate Sheets'!H:I,2,FALSE) -> 9.24 | M123: 80 | Q123: 80 | R123: 739.2 | S123: 739.2 | T123: 0 | U123: 0 | V123: 0
B124: 107 | C124: Pickup | D124: 1352 | E124: Vendor No.5 | F124: 123 | G124: 124594J | H124: 2018-10-17 | I124: 2018-10-21 | J124: =IF(AND(H124>='A - Contractor Summary'!$C$36,I124<='A - Contractor Summary'!$C$42),"Yes","No") -> Yes | K124: =VLOOKUP($C124,'C.1 - Rate Sheets'!H:I,2,FALSE) -> 21 | M124: 80 | Q124: 80 | R124: 1680 | S124: 1680 | T124: 0 | U124: 0 | V124: 0
B125: 108 | C125: 55 Bucket MH | D125: 1623 | E125: Vendor No.5 | F125: 123 | G125: 124594J | H125: 2018-10-17 | I125: 2018-10-21 | J125: =IF(AND(H125>='A - Contractor Summary'!$C$36,I125<='A - Contractor Summary'!$C$42),"Yes","No") -> Yes | K125: =VLOOKUP($C125,'C.1 - Rate Sheets'!H:I,2,FALSE) -> 40 | M125: 80 | Q125: 80 | R125: 3200 | S125: 3200 | T125: 0 | U125: 0 | V125: 0
B126: 109 | C126: 55 Bucket MH | D126: 1681 | E126: Vendor No.5 | F126: 123 | G126: 124594J | H126: 2018-10-17 | I126: 2018-10-21 | J126: =IF(AND(H126>='A - Contractor Summary'!$C$36,I126<='A - Contractor Summary'!$C$42),"Yes","No") -> Yes | K126: =VLOOKUP($C126,'C.1 - Rate Sheets'!H:I,2,FALSE) -> 40 | M126: 80 | Q126: 80 | R126: 3200 | S126: 3200 | T126: 0 | U126: 0 | V126: 0
B127: 110 | C127: Digger Truck | D127: 1583 | E127: Vendor No.5 | F127: 123 | G127: 124594J | H127: 2018-10-17 | I127: 2018-10-21 | J127: =IF(AND(H127>='A - Contractor Summary'!$C$36,I127<='A - Contractor Summary'!$C$42),"Yes","No") -> Yes | K127: =VLOOKUP($C127,'C.1 - Rate Sheets'!H:I,2,FALSE) -> 42 | M127: 80 | Q127: 80 | R127: 3360 | S127: 3360 | T127: 0 | U127: 0 | V127: 0
B128: 111 | C128: Pole Trailer | D128: 981 | E128: Vendor No.5 | F128: 123 | G128: 124594J | H128: 2018-10-17 | I128: 2018-10-21 | J128: =IF(AND(H128>='A - Contractor Summary'!$C$36,I128<='A - Contractor Summary'!$C$42),"Yes","No") -> Yes | K128: =VLOOKUP($C128,'C.1 - Rate Sheets'!H:I,2,FALSE) -> 9.24 | M128: 80 | Q128: 80 | R128: 739.2 | S128: 739.2 | T128: 0 | U128: 0 | V128: 0
B129: 112 | C129: Pickup | D129: 1393 | E129: Vendor No.5 | F129: 005 | G129: 125429J | H129: 2018-10-08 | I129: 2018-10-14 | J129: =IF(AND(H129>='A - Contractor Summary'!$C$36,I129<='A - Contractor Summary'!$C$42),"Yes","No") -> No | K129: =VLOOKUP($C129,'C.1 - Rate Sheets'!H:I,2,FALSE) -> 21 | L129: 64 | Q129: 64 | R129: 1344 | S129: 1344 | T129: 0 | U129: 0 | V129: 0
B130: 113 | C130: Pickup | D130: 1385 | E130: Vendor No.5 | F130: 005 | G130: 125429J | H130: 2018-10-08 | I130: 2018-10-14 | J130: =IF(AND(H130>='A - Contractor Summary'!$C$36,I130<='A - Contractor Summary'!$C$42),"Yes","No") -> No | K130: =VLOOKUP($C130,'C.1 - Rate Sheets'!H:I,2,FALSE) -> 21 | L130: 64 | Q130: 64 | R130: 1344 | S130: 1344 | T130: 0 | U130: 0 | V130: 0
B131: 114 | C131: Pickup | D131: 1826 | E131: Vendor No.5 | F131: 151 | G131: 125434J | H131: 2018-10-11 | I131: 2018-10-14 | J131: =IF(AND(H131>='A - Contractor Summary'!$C$36,I131<='A - Contractor Summary'!$C$42),"Yes","No") -> Yes | K131: =VLOOKUP($C131,'C.1 - Rate Sheets'!H:I,2,FALSE) -> 21 | L131: 64 | Q131: 64 | R131: 1344 | S131: 1344 | T131: 0 | U131: 0 | V131: 0
B132: 115 | C132: 55 Bucket MH | D132: 1714 | E132: Vendor No.5 | F132: 151 | G132: 125434J | H132: 2018-10-11 | I132: 2018-10-14 | J132: =IF(AND(H132>='A - Contractor Summary'!$C$36,I132<='A - Contractor Summary'!$C$42),"Yes","No") -> Yes | K132: =VLOOKUP($C132,'C.1 - Rate Sheets'!H:I,2,FALSE) -> 40 | L132: 64 | Q132: 64 | R132: 2560 | S132: 2560 | T132: 0 | U132: 0 | V132: 0
B133: 116 | C133: 55 Bucket MH | D133: 1624 | E133: Vendor No.5 | F133: 151 | G133: 125434J | H133: 2018-10-11 | I133: 2018-10-14 | J133: =IF(AND(H133>='A - Contractor Summary'!$C$36,I133<='A - Contractor Summary'!$C$42),"Yes","No") -> Yes | K133: =VLOOKUP($C133,'C.1 - Rate Sheets'!H:I,2,FALSE) -> 40 | L133: 64 | Q133: 64 | R133: 2560 | S133: 2560 | T133: 0 | U133: 0 | V133: 0
B134: 117 | C134: Digger Truck | D134: 1595 | E134: Vendor No.5 | F134: 151 | G134: 125434J | H134: 2018-10-11 | I134: 2018-10-14 | J134: =IF(AND(H134>='A - Contractor Summary'!$C$36,I134<='A - Contractor Summary'!$C$42),"Yes","No") -> Yes | K134: =VLOOKUP($C134,'C.1 - Rate Sheets'!H:I,2,FALSE) -> 42 | L134: 64 | Q134: 64 | R134: 2688 | S134: 2688 | T134: 0 | U134: 0 | V134: 0
B135: 118 | C135: Pole Trailer | D135: 625 | E135: Vendor No.5 | F135: 151 | G135: 125434J | H135: 2018-10-11 | I135: 2018-10-14 | J135: =IF(AND(H135>='A - Contractor Summary'!$C$36,I135<='A - Contractor Summary'!$C$42),"Yes","No") -> Yes | K135: =VLOOKUP($C135,'C.1 - Rate Sheets'!H:I,2,FALSE) -> 9.24 | L135: 64 | Q135: 64 | R135: 591.36 | S135: 591.36 | T135: 0 | U135: 0 | V135: 0
B136: 119 | C136: Pickup | D136: 1373 | E136: Vendor No.5 | F136: 165 | G136: 125439J | H136: 2018-10-11 | I136: 2018-10-14 | J136: =IF(AND(H136>='A - Contractor Summary'!$C$36,I136<='A - Contractor Summary'!$C$42),"Yes","No") -> Yes | K136: =VLOOKUP($C136,'C.1 - Rate Sheets'!H:I,2,FALSE) -> 21 | L136: 64 | Q136: 64 | R136: 1344 | S136: 1344 | T136: 0 | U136: 0 | V136: 0
B137: 120 | C137: 55 Bucket MH | D137: 1665 | E137: Vendor No.5 | F137: 165 | G137: 125439J | H137: 2018-10-11 | I137: 2018-10-14 | J137: =IF(AND(H137>='A - Contractor Summary'!$C$36,I137<='A - Contractor Summary'!$C$42),"Yes","No") -> Yes | K137: =VLOOKUP($C137,'C.1 - Rate Sheets'!H:I,2,FALSE) -> 40 | L137: 64 | Q137: 64 | R137: 2560 | S137: 2560 | T137: 0 | U137: 0 | V137: 0
B138: 121 | C138: 55 Bucket MH | D138: 1627 | E138: Vendor No.5 | F138: 165 | G138: 125439J | H138: 2018-10-11 | I138: 2018-10-14 | J138: =IF(AND(H138>='A - Contractor Summary'!$C$36,I138<='A - Contractor Summary'!$C$42),"Yes","No") -> Yes | K138: =VLOOKUP($C138,'C.1 - Rate Sheets'!H:I,2,FALSE) -> 40 | L138: 64 | Q138: 64 | R138: 2560 | S138: 2560 | T138: 0 | U138: 0 | V138: 0
B139: 122 | C139: Digger Truck | D139: 1579 | E139: Vendor No.5 | F139: 165 | G139: 125439J | H139: 2018-10-11 | I139: 2018-10-14 | J139: =IF(AND(H139>='A - Contractor Summary'!$C$36,I139<='A - Contractor Summary'!$C$42),"Yes","No") -> Yes | K139: =VLOOKUP($C139,'C.1 - Rate Sheets'!H:I,2,FALSE) -> 42 | L139: 64 | Q139: 64 | R139: 2688 | S139: 2688 | T139: 0 | U139: 0 | V139: 0
B140: 123 | C140: Pole Trailer | D140: 418 | E140: Vendor No.5 | F140: 165 | G140: 125439J | H140: 2018-10-11 | I140: 2018-10-14 | J140: =IF(AND(H140>='A - Contractor Summary'!$C$36,I140<='A - Contractor Summary'!$C$42),"Yes","No") -> Yes | K140: =VLOOKUP($C140,'C.1 - Rate Sheets'!H:I,2,FALSE) -> 9.24 | L140: 64 | Q140: 64 | R140: 591.36 | S140: 591.36 | T140: 0 | U140: 0 | V140: 0
B141: 124 | C141: Pickup | D141: 1393 | E141: Vendor No.5 | F141: 005 | G141: 125443J | H141: 2018-10-15 | I141: 2018-10-21 | J141: =IF(AND(H141>='A - Contractor Summary'!$C$36,I141<='A - Contractor Summary'!$C$42),"Yes","No") -> Yes | K141: =VLOOKUP($C141,'C.1 - Rate Sheets'!H:I,2,FALSE) -> 21 | M141: 112 | Q141: 112 | R141: 2352 | S141: 2352 | T141: 0 | U141: 0 | V141: 0
B142: 125 | C142: Pickup | D142: 1385 | E142: Vendor No.5 | F142: 005 | G142: 125443J | H142: 2018-10-15 | I142: 2018-10-21 | J142: =IF(AND(H142>='A - Contractor Summary'!$C$36,I142<='A - Contractor Summary'!$C$42),"Yes","No") -> Yes | K142: =VLOOKUP($C142,'C.1 - Rate Sheets'!H:I,2,FALSE) -> 21 | M142: 112 | Q142: 112 | R142: 2352 | S142: 2352 | T142: 0 | U142: 0 | V142: 0
B143: 126 | C143: Pickup | D143: 1826 | E143: Vendor No.5 | F143: 151 | G143: 125452J | H143: 2018-10-15 | I143: 2018-10-21 | J143: =IF(AND(H143>='A - Contractor Summary'!$C$36,I143<='A - Contractor Summary'!$C$42),"Yes","No") -> Yes | K143: =VLOOKUP($C143,'C.1 - Rate Sheets'!H:I,2,FALSE) -> 21 | M143: 112 | Q143: 112 | R143: 2352 | S143: 2352 | T143: 0 | U143: 0 | V143: 0
B144: 127 | C144: 55 Bucket MH | D144: 1714 | E144: Vendor No.5 | F144: 151 | G144: 125452J | H144: 2018-10-15 | I144: 2018-10-21 | J144: =IF(AND(H144>='A - Contractor Summary'!$C$36,I144<='A - Contractor Summary'!$C$42),"Yes","No") -> Yes | K144: =VLOOKUP($C144,'C.1 - Rate Sheets'!H:I,2,FALSE) -> 40 | M144: 112 | Q144: 112 | R144: 4480 | S144: 4480 | T144: 0 | U144: 0 | V144: 0
B145: 128 | C145: 55 Bucket MH | D145: 1624 | E145: Vendor No.5 | F145: 151 | G145: 125452J | H145: 2018-10-15 | I145: 2018-10-21 | J145: =IF(AND(H145>='A - Contractor Summary'!$C$36,I145<='A - Contractor Summary'!$C$42),"Yes","No") -> Yes | K145: =VLOOKUP($C145,'C.1 - Rate Sheets'!H:I,2,FALSE) -> 40 | M145: 112 | Q145: 112 | R145: 4480 | S145: 4480 | T145: 0 | U145: 0 | V145: 0
B146: 129 | C146: Digger Truck | D146: 1595 | E146: Vendor No.5 | F146: 151 | G146: 125452J | H146: 2018-10-15 | I146: 2018-10-21 | J146: =IF(AND(H146>='A - Contractor Summary'!$C$36,I146<='A - Contractor Summary'!$C$42),"Yes","No") -> Yes | K146: =VLOOKUP($C146,'C.1 - Rate Sheets'!H:I,2,FALSE) -> 42 | M146: 112 | Q146: 112 | R146: 4704 | S146: 4704 | T146: 0 | U146: 0 | V146: 0
B147: 130 | C147: Pole Trailer | D147: 625 | E147: Vendor No.5 | F147: 151 | G147: 125452J | H147: 2018-10-15 | I147: 2018-10-21 | J147: =IF(AND(H147>='A - Contractor Summary'!$C$36,I147<='A - Contractor Summary'!$C$42),"Yes","No") -> Yes | K147: =VLOOKUP($C147,'C.1 - Rate Sheets'!H:I,2,FALSE) -> 9.24 | M147: 112 | Q147: 112 | R147: 1034.88 | S147: 1034.88 | T147: 0 | U147: 0 | V147: 0
B148: 131 | C148: Pickup | D148: 1373 | E148: Vendor No.5 | F148: 165 | G148: 125456J | H148: 2018-10-15 | I148: 2018-10-21 | J148: =IF(AND(H148>='A - Contractor Summary'!$C$36,I148<='A - Contractor Summary'!$C$42),"Yes","No") -> Yes | K148: =VLOOKUP($C148,'C.1 - Rate Sheets'!H:I,2,FALSE) -> 21 | M148: 112 | Q148: 112 | R148: 2352 | S148: 2352 | T148: 0 | U148: 0 | V148: 0
B149: 132 | C149: 55 Bucket MH | D149: 1665 | E149: Vendor No.5 | F149: 165 | G149: 125456J | H149: 2018-10-15 | I149: 2018-10-21 | J149: =IF(AND(H149>='A - Contractor Summary'!$C$36,I149<='A - Contractor Summary'!$C$42),"Yes","No") -> Yes | K149: =VLOOKUP($C149,'C.1 - Rate Sheets'!H:I,2,FALSE) -> 40 | M149: 112 | Q149: 112 | R149: 4480 | S149: 4480 | T149: 0 | U149: 0 | V149: 0
B150: 133 | C150: 55 Bucket MH | D150: 1627 | E150: Vendor No.5 | F150: 165 | G150: 125456J | H150: 2018-10-15 | I150: 2018-10-21 | J150: =IF(AND(H150>='A - Contractor Summary'!$C$36,I150<='A - Contractor Summary'!$C$42),"Yes","No") -> Yes | K150: =VLOOKUP($C150,'C.1 - Rate Sheets'!H:I,2,FALSE) -> 40 | M150: 112 | Q150: 112 | R150: 4480 | S150: 4480 | T150: 0 | U150: 0 | V150: 0
B151: 134 | C151: Digger Truck | D151: 1579 | E151: Vendor No.5 | F151: 165 | G151: 125456J | H151: 2018-10-15 | I151: 2018-10-21 | J151: =IF(AND(H151>='A - Contractor Summary'!$C$36,I151<='A - Contractor Summary'!$C$42),"Yes","No") -> Yes | K151: =VLOOKUP($C151,'C.1 - Rate Sheets'!H:I,2,FALSE) -> 42 | M151: 112 | Q151: 112 | R151: 4704 | S151: 4704 | T151: 0 | U151: 0 | V151: 0
B152: 135 | C152: Pole Trailer | D152: 418 | E152: Vendor No.5 | F152: 165 | G152: 125456J | H152: 2018-10-15 | I152: 2018-10-21 | J152: =IF(AND(H152>='A - Contractor Summary'!$C$36,I152<='A - Contractor Summary'!$C$42),"Yes","No") -> Yes | K152: =VLOOKUP($C152,'C.1 - Rate Sheets'!H:I,2,FALSE) -> 9.24 | M152: 112 | Q152: 112 | R152: 1034.88 | S152: 1034.88 | T152: 0 | U152: 0 | V152: 0
B153: 136 | C153: Puller (Rope Rig) | D153: 1189 | E153: Vendor No.5 | F153: 165 | G153: 125456J | H153: 2018-10-15 | I153: 2018-10-21 | J153: =IF(AND(H153>='A - Contractor Summary'!$C$36,I153<='A - Contractor Summary'!$C$42),"Yes","No") -> Yes | K153: =VLOOKUP($C153,'C.1 - Rate Sheets'!H:I,2,FALSE) -> 28.88 | M153: 96 | Q153: 96 | R153: 2772.48 | S153: 2772.48 | T153: 0 | U153: 0 | V153: 0
B154: 137 | C154: Tensioner | D154: 531 | E154: Vendor No.5 | F154: 165 | G154: 125456J | H154: 2018-10-15 | I154: 2018-10-21 | J154: =IF(AND(H154>='A - Contractor Summary'!$C$36,I154<='A - Contractor Summary'!$C$42),"Yes","No") -> Yes | K154: =VLOOKUP($C154,'C.1 - Rate Sheets'!H:I,2,FALSE) -> 23.1 | M154: 96 | Q154: 96 | R154: 2217.6 | S154: 2217.6 | T154: 0 | U154: 0 | V154: 0
B155: 138 | C155: Track Machine w/ Digger | D155: 1657 | E155: Vendor No.5 | F155: 165 | G155: 125456J | H155: 2018-10-15 | I155: 2018-10-21 | J155: =IF(AND(H155>='A - Contractor Summary'!$C$36,I155<='A - Contractor Summary'!$C$42),"Yes","No") -> Yes | K155: =VLOOKUP($C155,'C.1 - Rate Sheets'!H:I,2,FALSE) -> 100 | M155: 32 | Q155: 32 | R155: 3200 | S155: 3200 | T155: 0 | U155: 0 | V155: 0
B156: 139 | C156: Pickup | D156: 1393 | E156: Vendor No.5 | F156: 005 | G156: 125465J | H156: 2018-10-22 | I156: 2018-10-28 | J156: =IF(AND(H156>='A - Contractor Summary'!$C$36,I156<='A - Contractor Summary'!$C$42),"Yes","No") -> Yes | K156: =VLOOKUP($C156,'C.1 - Rate Sheets'!H:I,2,FALSE) -> 21 | N156: 112 | Q156: 112 | R156: 2352 | S156: 2352 | T156: 0 | U156: 0 | V156: 0
B157: 140 | C157: Pickup | D157: 1385 | E157: Vendor No.5 | F157: 005 | G157: 125465J | H157: 2018-10-22 | I157: 2018-10-28 | J157: =IF(AND(H157>='A - Contractor Summary'!$C$36,I157<='A - Contractor Summary'!$C$42),"Yes","No") -> Yes | K157: =VLOOKUP($C157,'C.1 - Rate Sheets'!H:I,2,FALSE) -> 21 | N157: 112 | Q157: 112 | R157: 2352 | S157: 2352 | T157: 0 | U157: 0 | V157: 0
B158: 141 | C158: Pickup | D158: 1826 | E158: Vendor No.5 | F158: 151 | G158: 125476J | H158: 2018-10-22 | I158: 2018-10-28 | J158: =IF(AND(H158>='A - Contractor Summary'!$C$36,I158<='A - Contractor Summary'!$C$42),"Yes","No") -> Yes | K158: =VLOOKUP($C158,'C.1 - Rate Sheets'!H:I,2,FALSE) -> 21 | N158: 106 | Q158: 106 | R158: 2226 | S158: 2226 | T158: 0 | U158: 0 | V158: 0
B159: 142 | C159: 55 Bucket MH | D159: 1714 | E159: Vendor No.5 | F159: 151 | G159: 125476J | H159: 2018-10-22 | I159: 2018-10-28 | J159: =IF(AND(H159>='A - Contractor Summary'!$C$36,I159<='A - Contractor Summary'!$C$42),"Yes","No") -> Yes | K159: =VLOOKUP($C159,'C.1 - Rate Sheets'!H:I,2,FALSE) -> 40 | N159: 96 | Q159: 96 | R159: 3840 | S159: 3840 | T159: 0 | U159: 0 | V159: 0
B160: 143 | C160: 55 Bucket MH | D160: 1624 | E160: Vendor No.5 | F160: 151 | G160: 125476J | H160: 2018-10-22 | I160: 2018-10-28 | J160: =IF(AND(H160>='A - Contractor Summary'!$C$36,I160<='A - Contractor Summary'!$C$42),"Yes","No") -> Yes | K160: =VLOOKUP($C160,'C.1 - Rate Sheets'!H:I,2,FALSE) -> 40 | N160: 96 | Q160: 96 | R160: 3840 | S160: 3840 | T160: 0 | U160: 0 | V160: 0
B161: 144 | C161: Digger Truck | D161: 1595 | E161: Vendor No.5 | F161: 151 | G161: 125476J | H161: 2018-10-22 | I161: 2018-10-28 | J161: =IF(AND(H161>='A - Contractor Summary'!$C$36,I161<='A - Contractor Summary'!$C$42),"Yes","No") -> Yes | K161: =VLOOKUP($C161,'C.1 - Rate Sheets'!H:I,2,FALSE) -> 42 | N161: 96 | Q161: 96 | R161: 4032 | S161: 4032 | T161: 0 | U161: 0 | V161: 0
B162: 145 | C162: Pole Trailer | D162: 625 | E162: Vendor No.5 | F162: 151 | G162: 125476J | H162: 2018-10-22 | I162: 2018-10-28 | J162: =IF(AND(H162>='A - Contractor Summary'!$C$36,I162<='A - Contractor Summary'!$C$42),"Yes","No") -> Yes | K162: =VLOOKUP($C162,'C.1 - Rate Sheets'!H:I,2,FALSE) -> 9.24 | N162: 96 | Q162: 96 | R162: 887.04 | S162: 887.04 | T162: 0 | U162: 0 | V162: 0
B163: 146 | C163: Pickup | D163: 1381 | E163: Vendor No.5 | F163: 166 | G163: 125485J | H163: 2018-10-27 | I163: 2018-10-28 | J163: =IF(AND(H163>='A - Contractor Summary'!$C$36,I163<='A - Contractor Summary'!$C$42),"Yes","No") -> Yes | K163: =VLOOKUP($C163,'C.1 - Rate Sheets'!H:I,2,FALSE) -> 21 | N163: 32 | Q163: 32 | R163: 672 | S163: 672 | T163: 0 | U163: 0 | V163: 0
B164: 147 | C164: 55 Bucket MH | D164: 1665 | E164: Vendor No.5 | F164: 166 | G164: 125485J | H164: 2018-10-27 | I164: 2018-10-28 | J164: =IF(AND(H164>='A - Contractor Summary'!$C$36,I164<='A - Contractor Summary'!$C$42),"Yes","No") -> Yes | K164: =VLOOKUP($C164,'C.1 - Rate Sheets'!H:I,2,FALSE) -> 40 | N164: 16 | Q164: 16 | R164: 640 | S164: 640 | T164: 0 | U164: 0 | V164: 0
B165: 148 | C165: 55 Bucket MH | D165: 1627 | E165: Vendor No.5 | F165: 166 | G165: 125485J | H165: 2018-10-27 | I165: 2018-10-28 | J165: =IF(AND(H165>='A - Contractor Summary'!$C$36,I165<='A - Contractor Summary'!$C$42),"Yes","No") -> Yes | K165: =VLOOKUP($C165,'C.1 - Rate Sheets'!H:I,2,FALSE) -> 40 | N165: 16 | Q165: 16 | R165: 640 | S165: 640 | T165: 0 | U165: 0 | V165: 0
B166: 149 | C166: Digger Truck | D166: 1579 | E166: Vendor No.5 | F166: 166 | G166: 125485J | H166: 2018-10-27 | I166: 2018-10-28 | J166: =IF(AND(H166>='A - Contractor Summary'!$C$36,I166<='A - Contractor Summary'!$C$42),"Yes","No") -> Yes | K166: =VLOOKUP($C166,'C.1 - Rate Sheets'!H:I,2,FALSE) -> 42 | N166: 16 | Q166: 16 | R166: 672 | S166: 672 | T166: 0 | U166: 0 | V166: 0
B167: 150 | C167: Pole Trailer | D167: 418 | E167: Vendor No.5 | F167: 166 | G167: 125485J | H167: 2018-10-27 | I167: 2018-10-28 | J167: =IF(AND(H167>='A - Contractor Summary'!$C$36,I167<='A - Contractor Summary'!$C$42),"Yes","No") -> Yes | K167: =VLOOKUP($C167,'C.1 - Rate Sheets'!H:I,2,FALSE) -> 9.24 | N167: 16 | Q167: 16 | R167: 147.84 | S167: 147.84 | T167: 0 | U167: 0 | V167: 0
B168: 151 | C168: Puller (Rope Rig) | D168: 1189 | E168: Vendor No.5 | F168: 166 | G168: 125485J | H168: 2018-10-27 | I168: 2018-10-28 | J168: =IF(AND(H168>='A - Contractor Summary'!$C$36,I168<='A - Contractor Summary'!$C$42),"Yes","No") -> Yes | K168: =VLOOKUP($C168,'C.1 - Rate Sheets'!H:I,2,FALSE) -> 28.88 | N168: 16 | Q168: 16 | R168: 462.08 | S168: 462.08 | T168: 0 | U168: 0 | V168: 0
B169: 152 | C169: Tensioner | D169: 531 | E169: Vendor No.5 | F169: 166 | G169: 125485J | H169: 2018-10-27 | I169: 2018-10-28 | J169: =IF(AND(H169>='A - Contractor Summary'!$C$36,I169<='A - Contractor Summary'!$C$42),"Yes","No") -> Yes | K169: =VLOOKUP($C169,'C.1 - Rate Sheets'!H:I,2,FALSE) -> 23.1 | N169: 16 | Q169: 16 | R169: 369.6 | S169: 369.6 | T169: 0 | U169: 0 | V169: 0
B170: 153 | C170: Track Machine w/ Digger | D170: 1657 | E170: Vendor No.5 | F170: 166 | G170: 125485J | H170: 2018-10-27 | I170: 2018-10-28 | J170: =IF(AND(H170>='A - Contractor Summary'!$C$36,I170<='A - Contractor Summary'!$C$42),"Yes","No") -> Yes | K170: =VLOOKUP($C170,'C.1 - Rate Sheets'!H:I,2,FALSE) -> 100 | N170: 16 | Q170: 16 | R170: 1600 | S170: 1600 | T170: 0 | U170: 0 | V170: 0
B171: 154 | C171: Pickup | D171: 1805 | E171: Vendor No.5 | F171: 210 | G171: 125504J | H171: 2018-10-27 | I171: 2018-10-28 | J171: =IF(AND(H171>='A - Contractor Summary'!$C$36,I171<='A - Contractor Summary'!$C$42),"Yes","No") -> Yes | K171: =VLOOKUP($C171,'C.1 - Rate Sheets'!H:I,2,FALSE) -> 21 | N171: 32 | Q171: 32 | R171: 672 | S171: 672 | T171: 0 | U171: 0 | V171: 0
B172: 155 | C172: 55 Bucket MH | D172: 1714 | E172: Vendor No.5 | F172: 210 | G172: 125504J | H172: 2018-10-27 | I172: 2018-10-28 | J172: =IF(AND(H172>='A - Contractor Summary'!$C$36,I172<='A - Contractor Summary'!$C$42),"Yes","No") -> Yes | K172: =VLOOKUP($C172,'C.1 - Rate Sheets'!H:I,2,FALSE) -> 40 | N172: 16 | Q172: 16 | R172: 640 | S172: 640 | T172: 0 | U172: 0 | V172: 0
B173: 156 | C173: 55 Bucket MH | D173: 1624 | E173: Vendor No.5 | F173: 210 | G173: 125504J | H173: 2018-10-27 | I173: 2018-10-28 | J173: =IF(AND(H173>='A - Contractor Summary'!$C$36,I173<='A - Contractor Summary'!$C$42),"Yes","No") -> Yes | K173: =VLOOKUP($C173,'C.1 - Rate Sheets'!H:I,2,FALSE) -> 40 | N173: 16 | Q173: 16 | R173: 640 | S173: 640 | T173: 0 | U173: 0 | V173: 0
B174: 157 | C174: Digger Truck | D174: 1595 | E174: Vendor No.5 | F174: 210 | G174: 125504J | H174: 2018-10-27 | I174: 2018-10-28 | J174: =IF(AND(H174>='A - Contractor Summary'!$C$36,I174<='A - Contractor Summary'!$C$42),"Yes","No") -> Yes | K174: =VLOOKUP($C174,'C.1 - Rate Sheets'!H:I,2,FALSE) -> 42 | N174: 16 | Q174: 16 | R174: 672 | S174: 672 | T174: 0 | U174: 0 | V174: 0
B175: 158 | C175: Pole Trailer | D175: 625 | E175: Vendor No.5 | F175: 210 | G175: 125504J | H175: 2018-10-27 | I175: 2018-10-28 | J175: =IF(AND(H175>='A - Contractor Summary'!$C$36,I175<='A - Contractor Summary'!$C$42),"Yes","No") -> Yes | K175: =VLOOKUP($C175,'C.1 - Rate Sheets'!H:I,2,FALSE) -> 9.24 | N175: 16 | Q175: 16 | R175: 147.84 | S175: 147.84 | T175: 0 | U175: 0 | V175: 0
B176: 159 | C176: Pickup | D176: 1393 | E176: Vendor No.5 | F176: 005 | G176: 125511J | H176: 2018-10-29 | I176: 2018-10-31 | J176: =IF(AND(H176>='A - Contractor Summary'!$C$36,I176<='A - Contractor Summary'!$C$42),"Yes","No") -> No | K176: =VLOOKUP($C176,'C.1 - Rate Sheets'!H:I,2,FALSE) -> 21 | O176: 48 | Q176: 48 | R176: 1008 | S176: 1008 | T176: 0 | U176: 0 | V176: 0
B177: 160 | C177: Pickup | D177: 1385 | E177: Vendor No.5 | F177: 005 | G177: 125511J | H177: 2018-10-29 | I177: 2018-10-31 | J177: =IF(AND(H177>='A - Contractor Summary'!$C$36,I177<='A - Contractor Summary'!$C$42),"Yes","No") -> No | K177: =VLOOKUP($C177,'C.1 - Rate Sheets'!H:I,2,FALSE) -> 21 | O177: 32 | Q177: 32 | R177: 672 | S177: 672 | T177: 0 | U177: 0 | V177: 0
B178: 161 | C178: Pickup | D178: 1373 | E178: Vendor No.5 | F178: 165 | G178: 125513J | H178: 2018-10-22 | I178: 2018-10-28 | J178: =IF(AND(H178>='A - Contractor Summary'!$C$36,I178<='A - Contractor Summary'!$C$42),"Yes","No") -> Yes | K178: =VLOOKUP($C178,'C.1 - Rate Sheets'!H:I,2,FALSE) -> 21 | N178: 106 | Q178: 106 | R178: 2226 | S178: 2226 | T178: 0 | U178: 0 | V178: 0
B179: 162 | C179: 55 Bucket MH | D179: 1665 | E179: Vendor No.5 | F179: 165 | G179: 125513J | H179: 2018-10-22 | I179: 2018-10-28 | J179: =IF(AND(H179>='A - Contractor Summary'!$C$36,I179<='A - Contractor Summary'!$C$42),"Yes","No") -> Yes | K179: =VLOOKUP($C179,'C.1 - Rate Sheets'!H:I,2,FALSE) -> 40 | N179: 96 | Q179: 96 | R179: 3840 | S179: 3840 | T179: 0 | U179: 0 | V179: 0
B180: 163 | C180: 55 Bucket MH | D180: 1627 | E180: Vendor No.5 | F180: 165 | G180: 125513J | H180: 2018-10-22 | I180: 2018-10-28 | J180: =IF(AND(H180>='A - Contractor Summary'!$C$36,I180<='A - Contractor Summary'!$C$42),"Yes","No") -> Yes | K180: =VLOOKUP($C180,'C.1 - Rate Sheets'!H:I,2,FALSE) -> 40 | N180: 96 | Q180: 96 | R180: 3840 | S180: 3840 | T180: 0 | U180: 0 | V180: 0
B181: 164 | C181: Digger Truck | D181: 1579 | E181: Vendor No.5 | F181: 165 | G181: 125513J | H181: 2018-10-22 | I181: 2018-10-28 | J181: =IF(AND(H181>='A - Contractor Summary'!$C$36,I181<='A - Contractor Summary'!$C$42),"Yes","No") -> Yes | K181: =VLOOKUP($C181,'C.1 - Rate Sheets'!H:I,2,FALSE) -> 42 | N181: 96 | Q181: 96 | R181: 4032 | S181: 4032 | T181: 0 | U181: 0 | V181: 0
B182: 165 | C182: Pole Trailer | D182: 418 | E182: Vendor No.5 | F182: 165 | G182: 125513J | H182: 2018-10-22 | I182: 2018-10-28 | J182: =IF(AND(H182>='A - Contractor Summary'!$C$36,I182<='A - Contractor Summary'!$C$42),"Yes","No") -> Yes | K182: =VLOOKUP($C182,'C.1 - Rate Sheets'!H:I,2,FALSE) -> 9.24 | N182: 96 | Q182: 96 | R182: 887.04 | S182: 887.04 | T182: 0 | U182: 0 | V182: 0
B183: 166 | C183: Puller (Rope Rig) | D183: 1189 | E183: Vendor No.5 | F183: 165 | G183: 125513J | H183: 2018-10-22 | I183: 2018-10-28 | J183: =IF(AND(H183>='A - Contractor Summary'!$C$36,I183<='A - Contractor Summary'!$C$42),"Yes","No") -> Yes | K183: =VLOOKUP($C183,'C.1 - Rate Sheets'!H:I,2,FALSE) -> 28.88 | N183: 96 | Q183: 96 | R183: 2772.48 | S183: 2772.48 | T183: 0 | U183: 0 | V183: 0
B184: 167 | C184: Tensioner | D184: 531 | E184: Vendor No.5 | F184: 165 | G184: 125513J | H184: 2018-10-22 | I184: 2018-10-28 | J184: =IF(AND(H184>='A - Contractor Summary'!$C$36,I184<='A - Contractor Summary'!$C$42),"Yes","No") -> Yes | K184: =VLOOKUP($C184,'C.1 - Rate Sheets'!H:I,2,FALSE) -> 23.1 | N184: 96 | Q184: 96 | R184: 2217.6 | S184: 2217.6 | T184: 0 | U184: 0 | V184: 0
B185: 168 | C185: Track Machine w/ Digger | D185: 1657 | E185: Vendor No.5 | F185: 165 | G185: 125513J | H185: 2018-10-22 | I185: 2018-10-28 | J185: =IF(AND(H185>='A - Contractor Summary'!$C$36,I185<='A - Contractor Summary'!$C$42),"Yes","No") -> Yes | K185: =VLOOKUP($C185,'C.1 - Rate Sheets'!H:I,2,FALSE) -> 100 | N185: 96 | Q185: 96 | R185: 9600 | S185: 9600 | T185: 0 | U185: 0 | V185: 0
B186: 169 | C186: Pickup | D186: 1381 | E186: Vendor No.5 | F186: 166 | G186: 125530J | H186: 2018-10-29 | I186: 2018-10-31 | J186: =IF(AND(H186>='A - Contractor Summary'!$C$36,I186<='A - Contractor Summary'!$C$42),"Yes","No") -> No | K186: =VLOOKUP($C186,'C.1 - Rate Sheets'!H:I,2,FALSE) -> 21 | O186: 48 | Q186: 48 | R186: 1008 | S186: 1008 | T186: 0 | U186: 0 | V186: 0
B187: 170 | C187: 55 Bucket MH | D187: 1665 | E187: Vendor No.5 | F187: 166 | G187: 125530J | H187: 2018-10-29 | I187: 2018-10-31 | J187: =IF(AND(H187>='A - Contractor Summary'!$C$36,I187<='A - Contractor Summary'!$C$42),"Yes","No") -> No | K187: =VLOOKUP($C187,'C.1 - Rate Sheets'!H:I,2,FALSE) -> 40 | O187: 48 | Q187: 48 | R187: 1920 | S187: 1920 | T187: 0 | U187: 0 | V187: 0
B188: 171 | C188: 55 Bucket MH | D188: 1627 | E188: Vendor No.5 | F188: 166 | G188: 125530J | H188: 2018-10-29 | I188: 2018-10-31 | J188: =IF(AND(H188>='A - Contractor Summary'!$C$36,I188<='A - Contractor Summary'!$C$42),"Yes","No") -> No | K188: =VLOOKUP($C188,'C.1 - Rate Sheets'!H:I,2,FALSE) -> 40 | O188: 48 | Q188: 48 | R188: 1920 | S188: 1920 | T188: 0 | U188: 0 | V188: 0
B189: 172 | C189: Digger Truck | D189: 1579 | E189: Vendor No.5 | F189: 166 | G189: 125530J | H189: 2018-10-29 | I189: 2018-10-31 | J189: =IF(AND(H189>='A - Contractor Summary'!$C$36,I189<='A - Contractor Summary'!$C$42),"Yes","No") -> No | K189: =VLOOKUP($C189,'C.1 - Rate Sheets'!H:I,2,FALSE) -> 42 | O189: 48 | Q189: 48 | R189: 2016 | S189: 2016 | T189: 0 | U189: 0 | V189: 0
B190: 173 | C190: Pole Trailer | D190: 418 | E190: Vendor No.5 | F190: 166 | G190: 125530J | H190: 2018-10-29 | I190: 2018-10-31 | J190: =IF(AND(H190>='A - Contractor Summary'!$C$36,I190<='A - Contractor Summary'!$C$42),"Yes","No") -> No | K190: =VLOOKUP($C190,'C.1 - Rate Sheets'!H:I,2,FALSE) -> 9.24 | O190: 48 | Q190: 48 | R190: 443.52 | S190: 443.52 | T190: 0 | U190: 0 | V190: 0
B191: 174 | C191: Puller (Rope Rig) | D191: 1189 | E191: Vendor No.5 | F191: 166 | G191: 125530J | H191: 2018-10-29 | I191: 2018-10-31 | J191: =IF(AND(H191>='A - Contractor Summary'!$C$36,I191<='A - Contractor Summary'!$C$42),"Yes","No") -> No | K191: =VLOOKUP($C191,'C.1 - Rate Sheets'!H:I,2,FALSE) -> 28.88 | O191: 48 | Q191: 48 | R191: 1386.24 | S191: 1386.24 | T191: 0 | U191: 0 | V191: 0
B192: 175 | C192: Tensioner | D192: 531 | E192: Vendor No.5 | F192: 166 | G192: 125530J | H192: 2018-10-29 | I192: 2018-10-31 | J192: =IF(AND(H192>='A - Contractor Summary'!$C$36,I192<='A - Contractor Summary'!$C$42),"Yes","No") -> No | K192: =VLOOKUP($C192,'C.1 - Rate Sheets'!H:I,2,FALSE) -> 23.1 | O192: 48 | Q192: 48 | R192: 1108.8 | S192: 1108.8 | T192: 0 | U192: 0 | V192: 0
B193: 176 | C193: Track Machine w/ Digger | D193: 1657 | E193: Vendor No.5 | F193: 166 | G193: 125530J | H193: 2018-10-29 | I193: 2018-10-31 | J193: =IF(AND(H193>='A - Contractor Summary'!$C$36,I193<='A - Contractor Summary'!$C$42),"Yes","No") -> No | K193: =VLOOKUP($C193,'C.1 - Rate Sheets'!H:I,2,FALSE) -> 100 | O193: 48 | Q193: 48 | R193: 4800 | S193: 4800 | T193: 0 | U193: 0 | V193: 0
B194: 177 | C194: Pickup | D194: 1805 | E194: Vendor No.5 | F194: 210 | G194: 125536J | H194: 2018-10-29 | I194: 2018-10-31 | J194: =IF(AND(H194>='A - Contractor Summary'!$C$36,I194<='A - Contractor Summary'!$C$42),"Yes","No") -> No | K194: =VLOOKUP($C194,'C.1 - Rate Sheets'!H:I,2,FALSE) -> 21 | O194: 48 | Q194: 48 | R194: 1008 | S194: 1008 | T194: 0 | U194: 0 | V194: 0
B195: 178 | C195: 55 Bucket MH | D195: 1714 | E195: Vendor No.5 | F195: 210 | G195: 125536J | H195: 2018-10-29 | I195: 2018-10-31 | J195: =IF(AND(H195>='A - Contractor Summary'!$C$36,I195<='A - Contractor Summary'!$C$42),"Yes","No") -> No | K195: =VLOOKUP($C195,'C.1 - Rate Sheets'!H:I,2,FALSE) -> 40 | O195: 48 | Q195: 48 | R195: 1920 | S195: 1920 | T195: 0 | U195: 0 | V195: 0
B196: 179 | C196: 55 Bucket MH | D196: 1624 | E196: Vendor No.5 | F196: 210 | G196: 125536J | H196: 2018-10-29 | I196: 2018-10-31 | J196: =IF(AND(H196>='A - Contractor Summary'!$C$36,I196<='A - Contractor Summary'!$C$42),"Yes","No") -> No | K196: =VLOOKUP($C196,'C.1 - Rate Sheets'!H:I,2,FALSE) -> 40 | O196: 48 | Q196: 48 | R196: 1920 | S196: 1920 | T196: 0 | U196: 0 | V196: 0
B197: 180 | C197: Digger Truck | D197: 1595 | E197: Vendor No.5 | F197: 210 | G197: 125536J | H197: 2018-10-29 | I197: 2018-10-31 | J197: =IF(AND(H197>='A - Contractor Summary'!$C$36,I197<='A - Contractor Summary'!$C$42),"Yes","No") -> No | K197: =VLOOKUP($C197,'C.1 - Rate Sheets'!H:I,2,FALSE) -> 42 | O197: 48 | Q197: 48 | R197: 2016 | S197: 2016 | T197: 0 | U197: 0 | V197: 0
B198: 181 | C198: Pole Trailer | D198: 625 | E198: Vendor No.5 | F198: 210 | G198: 125536J | H198: 2018-10-29 | I198: 2018-10-31 | J198: =IF(AND(H198>='A - Contractor Summary'!$C$36,I198<='A - Contractor Summary'!$C$42),"Yes","No") -> No | K198: =VLOOKUP($C198,'C.1 - Rate Sheets'!H:I,2,FALSE) -> 9.24 | O198: 48 | Q198: 48 | R198: 443.52 | S198: 443.52 | T198: 0 | U198: 0 | V198: 0
B199: 182 | C199: UTV w/ Trailer | D199: 1410 | E199: Vendor No.5 | F199: 210 | G199: 125536J | H199: 2018-10-29 | I199: 2018-10-31 | J199: =IF(AND(H199>='A - Contractor Summary'!$C$36,I199<='A - Contractor Summary'!$C$42),"Yes","No") -> No | K199: =VLOOKUP($C199,'C.1 - Rate Sheets'!H:I,2,FALSE) -> 17.33 | O199: 48 | Q199: 48 | R199: 831.84 | S199: 831.84 | T199: 0 | U199: 0 | V199: 0
B200: 183 | C200: Pickup | D200: 1352 | E200: Vendor No.5 | F200: 123 | G200: 125601J | H200: 2018-10-29 | I200: 2018-11-04 | J200: =IF(AND(H200>='A - Contractor Summary'!$C$36,I200<='A - Contractor Summary'!$C$42),"Yes","No") -> No | K200: =VLOOKUP($C200,'C.1 - Rate Sheets'!H:I,2,FALSE) -> 21 | O200: 48 | Q200: 48 | R200: 1008 | S200: 1008 | T200: 0 | U200: 0 | V200: 0
B201: 184 | C201: 55 Bucket MH | D201: 1623 | E201: Vendor No.5 | F201: 123 | G201: 125601J | H201: 2018-10-29 | I201: 2018-11-04 | J201: =IF(AND(H201>='A - Contractor Summary'!$C$36,I201<='A - Contractor Summary'!$C$42),"Yes","No") -> No | K201: =VLOOKUP($C201,'C.1 - Rate Sheets'!H:I,2,FALSE) -> 40 | O201: 48 | Q201: 48 | R201: 1920 | S201: 1920 | T201: 0 | U201: 0 | V201: 0
B202: 185 | C202: 55 Bucket MH | D202: 1681 | E202: Vendor No.5 | F202: 123 | G202: 125601J | H202: 2018-10-29 | I202: 2018-11-04 | J202: =IF(AND(H202>='A - Contractor Summary'!$C$36,I202<='A - Contractor Summary'!$C$42),"Yes","No") -> No | K202: =VLOOKUP($C202,'C.1 - Rate Sheets'!H:I,2,FALSE) -> 40 | O202: 48 | Q202: 48 | R202: 1920 | S202: 1920 | T202: 0 | U202: 0 | V202: 0
B203: 186 | C203: Digger Truck | D203: 1583 | E203: Vendor No.5 | F203: 123 | G203: 125601J | H203: 2018-10-29 | I203: 2018-11-04 | J203: =IF(AND(H203>='A - Contractor Summary'!$C$36,I203<='A - Contractor Summary'!$C$42),"Yes","No") -> No | K203: =VLOOKUP($C203,'C.1 - Rate Sheets'!H:I,2,FALSE) -> 42 | O203: 48 | Q203: 48 | R203: 2016 | S203: 2016 | T203: 0 | U203: 0 | V203: 0
B204: 187 | C204: Pole Trailer | D204: 981 | E204: Vendor No.5 | F204: 123 | G204: 125601J | H204: 2018-10-29 | I204: 2018-11-04 | J204: =IF(AND(H204>='A - Contractor Summary'!$C$36,I204<='A - Contractor Summary'!$C$42),"Yes","No") -> No | K204: =VLOOKUP($C204,'C.1 - Rate Sheets'!H:I,2,FALSE) -> 9.24 | O204: 48 | Q204: 48 | R204: 443.52 | S204: 443.52 | T204: 0 | U204: 0 | V204: 0
B205: 188 | C205: Pickup | D205: 1288 | E205: Vendor No.5 | F205: 135 | G205: 125602J | H205: 2018-10-29 | I205: 2018-11-04 | J205: =IF(AND(H205>='A - Contractor Summary'!$C$36,I205<='A - Contractor Summary'!$C$42),"Yes","No") -> No | K205: =VLOOKUP($C205,'C.1 - Rate Sheets'!H:I,2,FALSE) -> 21 | O205: 48 | Q205: 48 | R205: 1008 | S205: 1008 | T205: 0 | U205: 0 | V205: 0
B206: 189 | C206: 55 Bucket MH | D206: 1405 | E206: Vendor No.5 | F206: 135 | G206: 125602J | H206: 2018-10-29 | I206: 2018-11-04 | J206: =IF(AND(H206>='A - Contractor Summary'!$C$36,I206<='A - Contractor Summary'!$C$42),"Yes","No") -> No | K206: =VLOOKUP($C206,'C.1 - Rate Sheets'!H:I,2,FALSE) -> 40 | O206: 48 | Q206: 48 | R206: 1920 | S206: 1920 | T206: 0 | U206: 0 | V206: 0
B207: 190 | C207: 55 Bucket MH | D207: 1610 | E207: Vendor No.5 | F207: 135 | G207: 125602J | H207: 2018-10-29 | I207: 2018-11-04 | J207: =IF(AND(H207>='A - Contractor Summary'!$C$36,I207<='A - Contractor Summary'!$C$42),"Yes","No") -> No | K207: =VLOOKUP($C207,'C.1 - Rate Sheets'!H:I,2,FALSE) -> 40 | O207: 48 | Q207: 48 | R207: 1920 | S207: 1920 | T207: 0 | U207: 0 | V207: 0
B208: 191 | C208: Digger Truck | D208: 1680 | E208: Vendor No.5 | F208: 135 | G208: 125602J | H208: 2018-10-29 | I208: 2018-11-04 | J208: =IF(AND(H208>='A - Contractor Summary'!$C$36,I208<='A - Contractor Summary'!$C$42),"Yes","No") -> No | K208: =VLOOKUP($C208,'C.1 - Rate Sheets'!H:I,2,FALSE) -> 42 | O208: 48 | Q208: 48 | R208: 2016 | S208: 2016 | T208: 0 | U208: 0 | V208: 0
... 6 more rows

Sheet D - Lodging
B2: Lodging Charges
B4: Test Plan: (A) Obtain support of individual charges. (B) Enter Yes/No if receipt is itemized (C) Enter Yes/No if proof of payment has been provided. (D) Ensure charges fall between the dates the vendor was mobilized and the date they arrived. (E) Ensure charges are prior to the date the vendor arrived home or was released to another utility. (F) Ensure the location of stay was reasonable (G) Determine the amount(s) to be reviewed, allowed and/or disallowed. (H) For charges which required further review, document review (include why it was determined to be allowed/disallowed via a tickmark).
B8: Rx | C8: Recalculated.
B9: a | C9: Check figure should equal $0. Cell will appear yellow if discrepancies are noted.
C11: A | M11: Rx | N11: B | O11: C | P11: D | Q11: E | R11: F | S11: G | V11: H
B12: Support Reviewed | P12: Conclusion
B13: # | C13: Type of Support | D13: Support Identifier | E13: Crew | F13: Company | G13: Check In Date | H13: Person | I13: Hotel Name | J13: Location | K13: # of Nights | L13: Total Invoice | M13: $ / Night | N13: Itemized Receipt | O13: Proof of Payment | P13: Reasonable based on Mobilization date(s) | Q13: Reasonable based on Demobilization date(s) | R13: Location Reasonable | S13: Conclusion | T13: $ Allowable Charge | U13: $ To Be Reviewed | V13: Reviewed - Allowable $ | W13: Reviewed - Unallowable $ | X13: Tickmark
B14: 1 | M14: =L14/K14 ->  | P14: =IF(AND(G14>='A - Contractor Summary'!$C$36,G14<='A - Contractor Summary'!$C$38),"Yes",IF(G14<'A - Contractor Summary'!$C$36,"No",IF(G14>'A - Contractor Summary'!$C$39,"",""))) -> No | Q14: =IF(OR(P14="Yes",P14="No")*AND(G14<'A - Contractor Summary'!$C$39),"",IF(AND(G14>'A - Contractor Summary'!$C$39,G14<'A - Contractor Summary'!$C$42),"Yes",IF(G14>'A - Contractor Summary'!$C$42,"No","Needs Review"))) ->  | S14: =IF(AND(R14="YES",O14="Yes",N14="Yes")*OR(P14="Yes",Q14="Yes"),"Yes",IF(OR(N14="No",O14="No",P14="No",Q14="No",R14="No"),"No","Needs Review")) -> No | T14: =IF(S14="Yes",L14,0) -> 0 | U14: =IF(S14="Needs Review",L14,0) -> 0
B15: 2 | P15: =IF(AND(G15>='A - Contractor Summary'!$C$36,G15<='A - Contractor Summary'!$C$38),"Yes",IF(G15<'A - Contractor Summary'!$C$36,"No",IF(G15>'A - Contractor Summary'!$C$39,"",""))) -> No | Q15: =IF(OR(P15="Yes",P15="No")*AND(G15<'A - Contractor Summary'!$C$39),"",IF(AND(G15>'A - Contractor Summary'!$C$39,G15<'A - Contractor Summary'!$C$42),"Yes",IF(G15>'A - Contractor Summary'!$C$42,"No","Needs Review"))) ->  | S15: No | T15: 0 | U15: 0
L16: =SUM(L14:L15) -> 0 | T16: =IFERROR(SUM(T14:T15),0) -> 0 | U16: =IFERROR(SUM(U14:U15),0) -> 0 | V16: =IFERROR(SUM(V14:V15),0) -> 0 | W16: =IFERROR(SUM(W14:W15),0) -> 0 | X16: =U16-V16-W16 -> 0 | Y16: check (a)
B19: Tickmark Explanation:
B20: 1
B21: 2
B22: 3
B23: 4

Sheet E - Fuel
B2: Fuel Charges
B4: Test Plan: (A) Obtain support of individual charges. (B) Enter Yes/No if receipt is itemized (C) Enter Yes/No if proof of payment has been provided. (D) Ensure charges fall between the dates the vendor was mobilized and the date they arrived. (E) Ensure charges are prior to the date the vendor arrived home or was released to another utility. (F) Ensure the location of charge was reasonable (G) Determine the amount(s) to be reviewed, allowed and/or disallowed. (H) For charges which required further review, document review (include why it was determined to be allowed/disallowed via a tickmark).
B9: a | C9: Check figure should equal $0. Cell will appear yellow if discrepancies are noted.
C11: A | K11: B | L11: C | M11: D | N11: E | O11: F | P11: G | S11: H
B12: Support Reviewed | M12: Conclusions
B13: # | C13: Type of Support | D13: Support Identifier | E13: Company | F13: Date | G13: Person (Inv#) | H13: Name | I13: Location | J13: Total Charge | K13: Itemized Receipt | L13: Proof of Payment | M13: Reasonable based on Mobilization date(s) | N13: Reasonable based on Demobilization date(s) | O13: Locations Reasonable | P13: Conclusion | Q13: $ Allowable Charge | R13: $ To Be Reviewed | S13: Reviewed - Allowable Charge | T13: Reviewed - Unallowable Charge | U13: Tickmarks
B14: 1 | C14: Receipt | E14: Vendor No.5 | F14: 2018-10-14 | G14: 123674 | H14: Circle K | J14: 83.52 | M14: =IF(AND(F14>='A - Contractor Summary'!$C$36,F14<='A - Contractor Summary'!$C$39),"Yes",IF(F14<'A - Contractor Summary'!$C$36,"No",IF(F14>'A - Contractor Summary'!$C$39,"",""))) -> Yes | N14: =IF(OR(M14="Yes",M14="No")*AND(F14<'A - Contractor Summary'!$C$39),"",IF(AND(F14>'A - Contractor Summary'!$C$39,F14<'A - Contractor Summary'!$C$42),"Yes",IF(F14>'A - Contractor Summary'!$C$42,"No","Needs Review"))) ->  | P14: =IF(AND(O14="Yes",K14="Yes",L14="Yes")*OR(N14="Yes",M14="Yes"),"Yes",IF(OR(K14="No",M14="No",N14="No",O14="No",L14="No"),"No","Needs Review")) -> Needs Review | Q14: =IF(P14="Yes",J14,0) -> 0 | R14: =IF(P14="Needs Review",J14,0) -> 83.52 | S14: =+J14 -> 83.52 | U14: 1
B15: 2 | C15: Receipt | E15: Vendor No.5 | F15: 2018-10-14 | G15: 123674 | H15: Flying J | J15: 55.9 | M15: =IF(AND(F15>='A - Contractor Summary'!$C$36,F15<='A - Contractor Summary'!$C$39),"Yes",IF(F15<'A - Contractor Summary'!$C$36,"No",IF(F15>'A - Contractor Summary'!$C$39,"",""))) -> Yes | N15: =IF(OR(M15="Yes",M15="No")*AND(F15<'A - Contractor Summary'!$C$39),"",IF(AND(F15>'A - Contractor Summary'!$C$39,F15<'A - Contractor Summary'!$C$42),"Yes",IF(F15>'A - Contractor Summary'!$C$42,"No","Needs Review"))) ->  | P15: =IF(AND(O15="Yes",K15="Yes",L15="Yes")*OR(N15="Yes",M15="Yes"),"Yes",IF(OR(K15="No",M15="No",N15="No",O15="No",L15="No"),"No","Needs Review")) -> Needs Review | Q15: 0 | R15: 55.9 | S15: =+J15 -> 55.9 | U15: 1
B16: 3 | C16: Receipt | E16: Vendor No.5 | F16: 2018-10-21 | G16: 123731 | H16: Snappy Foods | J16: 72.3 | M16: =IF(AND(F16>='A - Contractor Summary'!$C$36,F16<='A - Contractor Summary'!$C$39),"Yes",IF(F16<'A - Contractor Summary'!$C$36,"No",IF(F16>'A - Contractor Summary'!$C$39,"",""))) -> Yes | N16: =IF(OR(M16="Yes",M16="No")*AND(F16<'A - Contractor Summary'!$C$39),"",IF(AND(F16>'A - Contractor Summary'!$C$39,F16<'A - Contractor Summary'!$C$42),"Yes",IF(F16>'A - Contractor Summary'!$C$42,"No","Needs Review"))) ->  | P16: Needs Review | Q16: 0 | R16: 72.3 | S16: 72.3 | U16: 1
B17: 4 | C17: Receipt | E17: Vendor No.5 | F17: 2018-10-21 | G17: 123731 | H17: Shell | J17: 139.56 | M17: =IF(AND(F17>='A - Contractor Summary'!$C$36,F17<='A - Contractor Summary'!$C$39),"Yes",IF(F17<'A - Contractor Summary'!$C$36,"No",IF(F17>'A - Contractor Summary'!$C$39,"",""))) -> Yes | N17: =IF(OR(M17="Yes",M17="No")*AND(F17<'A - Contractor Summary'!$C$39),"",IF(AND(F17>'A - Contractor Summary'!$C$39,F17<'A - Contractor Summary'!$C$42),"Yes",IF(F17>'A - Contractor Summary'!$C$42,"No","Needs Review"))) ->  | P17: Needs Review | Q17: 0 | R17: 139.56 | S17: 139.56 | U17: 1
B18: 5 | C18: Receipt | E18: Vendor No.5 | F18: 2018-10-21 | G18: 123731 | H18: Flying J | J18: 49.6 | M18: =IF(AND(F18>='A - Contractor Summary'!$C$36,F18<='A - Contractor Summary'!$C$39),"Yes",IF(F18<'A - Contractor Summary'!$C$36,"No",IF(F18>'A - Contractor Summary'!$C$39,"",""))) -> Yes | N18: =IF(OR(M18="Yes",M18="No")*AND(F18<'A - Contractor Summary'!$C$39),"",IF(AND(F18>'A - Contractor Summary'!$C$39,F18<'A - Contractor Summary'!$C$42),"Yes",IF(F18>'A - Contractor Summary'!$C$42,"No","Needs Review"))) ->  | P18: Needs Review | Q18: 0 | R18: 49.6 | S18: 49.6 | U18: 1
B19: 6 | C19: Receipt | E19: Vendor No.5 | F19: 2018-10-21 | G19: 123731 | H19: Shell | J19: 55.9 | M19: =IF(AND(F19>='A - Contractor Summary'!$C$36,F19<='A - Contractor Summary'!$C$39),"Yes",IF(F19<'A - Contractor Summary'!$C$36,"No",IF(F19>'A - Contractor Summary'!$C$39,"",""))) -> Yes | N19: =IF(OR(M19="Yes",M19="No")*AND(F19<'A - Contractor Summary'!$C$39),"",IF(AND(F19>'A - Contractor Summary'!$C$39,F19<'A - Contractor Summary'!$C$42),"Yes",IF(F19>'A - Contractor Summary'!$C$42,"No","Needs Review"))) ->  | P19: Needs Review | Q19: 0 | R19: 55.9 | S19: 55.9 | U19: 1
B20: 7 | C20: Receipt | E20: Vendor No.5 | F20: 2018-10-21 | G20: 123731 | H20: Taters | J20: 56.88 | M20: =IF(AND(F20>='A - Contractor Summary'!$C$36,F20<='A - Contractor Summary'!$C$39),"Yes",IF(F20<'A - Contractor Summary'!$C$36,"No",IF(F20>'A - Contractor Summary'!$C$39,"",""))) -> Yes | N20: =IF(OR(M20="Yes",M20="No")*AND(F20<'A - Contractor Summary'!$C$39),"",IF(AND(F20>'A - Contractor Summary'!$C$39,F20<'A - Contractor Summary'!$C$42),"Yes",IF(F20>'A - Contractor Summary'!$C$42,"No","Needs Review"))) ->  | P20: Needs Review | Q20: 0 | R20: 56.88 | S20: 56.88 | U20: 1
H21: rounding errors | J21: 0.02 | M21: =IF(AND(F21>='A - Contractor Summary'!$C$36,F21<='A - Contractor Summary'!$C$38),"Yes",IF(F21<'A - Contractor Summary'!$C$36,"No",IF(F21>'A - Contractor Summary'!$C$39,"",""))) -> No | N21: =IF(OR(M21="Yes",M21="No")*AND(F21<'A - Contractor Summary'!$C$39),"",IF(AND(F21>'A - Contractor Summary'!$C$39,F21<'A - Contractor Summary'!$C$42),"Yes",IF(F21>'A - Contractor Summary'!$C$42,"No","Needs Review"))) ->  | P21: No | Q21: 0 | R21: 0 | S21: 0.02
M22: =IF(AND(F22>='A - Contractor Summary'!$C$36,F22<='A - Contractor Summary'!$C$38),"Yes",IF(F22<'A - Contractor Summary'!$C$36,"No",IF(F22>'A - Contractor Summary'!$C$39,"",""))) -> No | N22: =IF(OR(M22="Yes",M22="No")*AND(F22<'A - Contractor Summary'!$C$39),"",IF(AND(F22>'A - Contractor Summary'!$C$39,F22<'A - Contractor Summary'!$C$42),"Yes",IF(F22>'A - Contractor Summary'!$C$42,"No","Needs Review"))) ->  | P22: No | Q22: 0 | R22: 0
M23: =IF(AND(F23>='A - Contractor Summary'!$C$36,F23<='A - Contractor Summary'!$C$38),"Yes",IF(F23<'A - Contractor Summary'!$C$36,"No",IF(F23>'A - Contractor Summary'!$C$39,"",""))) -> No | N23: =IF(OR(M23="Yes",M23="No")*AND(F23<'A - Contractor Summary'!$C$39),"",IF(AND(F23>'A - Contractor Summary'!$C$39,F23<'A - Contractor Summary'!$C$42),"Yes",IF(F23>'A - Contractor Summary'!$C$42,"No","Needs Review"))) ->  | P23: No | Q23: 0 | R23: 0
M24: =IF(AND(F24>='A - Contractor Summary'!$C$36,F24<='A - Contractor Summary'!$C$38),"Yes",IF(F24<'A - Contractor Summary'!$C$36,"No",IF(F24>'A - Contractor Summary'!$C$39,"",""))) -> No | N24: =IF(OR(M24="Yes",M24="No")*AND(F24<'A - Contractor Summary'!$C$39),"",IF(AND(F24>'A - Contractor Summary'!$C$39,F24<'A - Contractor Summary'!$C$42),"Yes",IF(F24>'A - Contractor Summary'!$C$42,"No","Needs Review"))) ->  | P24: No | Q24: =IF(P24="Yes",#REF!,0) -> 0 | R24: =IF(P24="ED Review",#REF!,0) -> 0
M25: =IF(AND(F25>='A - Contractor Summary'!$C$36,F25<='A - Contractor Summary'!$C$38),"Yes",IF(F25<'A - Contractor Summary'!$C$36,"No",IF(F25>'A - Contractor Summary'!$C$39,"",""))) -> No | N25: =IF(OR(M25="Yes",M25="No")*AND(F25<'A - Contractor Summary'!$C$39),"",IF(AND(F25>'A - Contractor Summary'!$C$39,F25<'A - Contractor Summary'!$C$42),"Yes",IF(F25>'A - Contractor Summary'!$C$42,"No","Needs Review"))) ->  | P25: No | Q25: =IF(P25="Yes",#REF!,0) -> 0 | R25: =IF(P25="ED Review",#REF!,0) -> 0
M26: =IF(AND(F26>='A - Contractor Summary'!$C$36,F26<='A - Contractor Summary'!$C$38),"Yes",IF(F26<'A - Contractor Summary'!$C$36,"No",IF(F26>'A - Contractor Summary'!$C$39,"",""))) -> No | N26: =IF(OR(M26="Yes",M26="No")*AND(F26<'A - Contractor Summary'!$C$39),"",IF(AND(F26>'A - Contractor Summary'!$C$39,F26<'A - Contractor Summary'!$C$42),"Yes",IF(F26>'A - Contractor Summary'!$C$42,"No","Needs Review"))) ->  | P26: No | Q26: =IF(P26="Yes",#REF!,0) -> 0 | R26: =IF(P26="ED Review",#REF!,0) -> 0
J27: =SUM(J14:J26) -> 513.68 | Q27: =IFERROR(SUM(Q14:Q26),0) -> 0 | R27: =IFERROR(SUM(R14:R26),0) -> 513.66 | S27: =SUM(S14:S26) -> 513.68 | T27: =SUM(T14:T26) -> 0 | U27: =R27-S27-T27 -> -0.02 | V27: check (a)
B33: Tickmark Explanation:
B34: 1 Receipts provided

Sheet F - Meals
B2: Meal Charges
B4: Test Plan: (A) Obtain support of individual charges. (B) Enter Yes/No if receipt is itemized. (C) Enter Yes/No if proof of payment has been provided. (D) Ensure charges fall between the dates the vendor was mobilized and the date they arrived. (E) Ensure charges are prior to the date the vendor arrived home or was released to another utility. (F) Ensure the location of charge was reasonable (G) Determine the amount(s) to be reviewed, allowed and/or disallowed. (H) For charges which required further review, document review and include why it was determined to be allowed/disallowed via a tickmark.
B9: a | C9: Check figure should equal $0. Cell will appear yellow if discrepancies are noted.
C11: A | L11: B | M11: C | N11: D | O11: E | P11: F | Q11: G | T11: H
B12: Support Reviewed | N12: Conclusions
B13: # | C13: Type of Support | D13: Support Identifier | E13: Company | F13: Crew | G13: Date | H13: Person | I13: Restaurant Name | J13: Location | K13: $ Total | L13: Itemized Receipt | M13: Proof of Payment | N13: Reasonable based on Mobilization date(s) | O13: Reasonable based on Demobilization date(s) | P13: Locations Reasonable | Q13: Conclusion | R13: $ Allowable Charge | S13: $ To Be Reviewed | T13: Reviewed - Allowable Charge | U13: Reviewed - Unallowable Charge | V13: Tickmarks
B14: 1 | N14: =IF(AND(G14>='A - Contractor Summary'!$C$36,G14<='A - Contractor Summary'!$C$38),"Yes",IF(G14<'A - Contractor Summary'!$C$36,"No",IF(G14>'A - Contractor Summary'!$C$39,"",""))) -> No | O14: =IF(OR(N14="Yes",N14="No")*AND(G14<'A - Contractor Summary'!$C$39),"",IF(AND(G14>'A - Contractor Summary'!$C$39,G14<'A - Contractor Summary'!$C$42),"Yes",IF(G14>'A - Contractor Summary'!$C$42,"No","Needs Review"))) ->  | P14: Yes | Q14: =IF(AND(P14="Yes",L14="Yes",M14="Yes")*OR(O14="Yes",N14="Yes"),"Yes",IF(OR(L14="No",N14="No",O14="No",P14="No",M14="No"),"No","Needs Review")) -> No | R14: =IF(Q14="Yes",K14,0) -> 0 | S14: =IF(Q14="Needs Review",K14,0) -> 0
B15: 2 | N15: =IF(AND(G15>='A - Contractor Summary'!$C$36,G15<='A - Contractor Summary'!$C$38),"Yes",IF(G15<'A - Contractor Summary'!$C$36,"No",IF(G15>'A - Contractor Summary'!$C$39,"",""))) -> No | O15: =IF(OR(N15="Yes",N15="No")*AND(G15<'A - Contractor Summary'!$C$39),"",IF(AND(G15>'A - Contractor Summary'!$C$39,G15<'A - Contractor Summary'!$C$42),"Yes",IF(G15>'A - Contractor Summary'!$C$42,"No","Needs Review"))) ->  | P15: Yes | Q15: No | R15: 0 | S15: 0
K16: =SUM(K14:K15) -> 0 | R16: =IFERROR(SUM(R14:R15),0) -> 0 | S16: =IFERROR(SUM(S14:S15),0) -> 0 | T16: =SUM(T14:T15) -> 0 | U16: =SUM(U14:U15) -> 0 | V16: =S16-T16-U16 -> 0 | W16: check (a)
B20: Tickmark Explanation:
C21: 1
C22: 2
C23: 3
C24: 4
C25: 5
C26: 6
C27: 7

Sheet I - Other
B2: Other Charges
B4: Test Plan: (A) Obtain support of individual charges. (B) Enter Yes/No if receipt is itemized. (C) Enter Yes/No if proof of payment has been provided. (D) Ensure charges fall between the dates the vendor was mobilized and the date they arrived. (E) Ensure charges are prior to the date the vendor arrived home or was released to another utility. (F) Ensure the expense type is reasonable (G) Determine the amount(s) to be reviewed, allowed and/or disallowed. (H) For charges which required further review, document review and include why it was determined to be allowed/disallowed via a tickmark.
B9: a | C9: Check figure should equal $0. Cell will appear yellow if discrepancies are noted.
C12: A | L12: B | M12: C | N12: D | O12: E | P12: F | Q12: G | T12: H
B13: Support Reviewed | N13: Conclusions
B14: # | C14: Type of Support | D14: Support Identifier | E14: Company | F14: Crew | G14: Date | H14: Person | I14: Vendor Name | J14: Location | K14: $ Total | L14: Itemized Receipt | M14: Proof of Payment | N14: Reasonable based on Mobilization date(s) | O14: Reasonable based on Demobilization date(s) | P14: Expense Type Appropriate | Q14: Conclusion | R14: $ Allowable Charge | S14: $ To Be Reviewed | T14: Reviewed - Allowable Charge | U14: Reviewed - Unallowable Charge | V14: Tickmarks
B15: 1 | N15: =IF(AND(G15>='A - Contractor Summary'!$C$36,G15<='A - Contractor Summary'!$C$38),"Yes",IF(G15<'A - Contractor Summary'!$C$36,"No",IF(G15>'A - Contractor Summary'!$C$39,"",""))) -> No | O15: =IF(OR(N15="Yes",N15="No")*AND(G15<'A - Contractor Summary'!$C$39),"",IF(AND(G15>'A - Contractor Summary'!$C$39,G15<'A - Contractor Summary'!$C$42),"Yes",IF(G15>'A - Contractor Summary'!$C$42,"No","Needs Review"))) ->  | P15: Needs Reviewed | Q15: =IF(AND(P15="YES",L15="Yes",M15="yes")*OR(N15="Yes",O15="Yes"),"Yes",IF(OR(O15="No",P15="No",N15="No",M15="No"),"No","Needs Review")) -> No | R15: =IF(Q15="Yes",K15,0) -> 0 | S15: =IF(Q15="Needs Review",K15,0) -> 0
K16: =SUM(K15:K15) -> 0 | R16: =IFERROR(SUM(R15:R15),0) -> 0 | S16: =IFERROR(SUM(S15:S15),0) -> 0 | T16: =SUM(T15:T15) -> 0 | U16: =SUM(U15:U15) -> 0 | V16: =S16-T16-U16 -> 0 | W16: check (a)
B20: Tickmark Explanation:
C21: 1

Sheet G - Per Diem
B2: Per Diem Charges
B4: Test Plan: (A) Enter per diem charges per invoice. (B) Enter number of crew worked per timecard. (C) Enter the Per Diem Rate charged per person per meal (D) Ensure the number of crew members being charged is appropriate (This is comparing the submitted timecards and the per diem charges invoiced). (E) Ensure charges fall between the dates the vendor was mobilized and the date they arrived. (F) Ensure charges are prior to the date the vendor arrived home or was released to another utility. (G) Determine the amount(s) to be reviewed, allowed and/or disallowed. (H) For charges which required further review, document review and include why it was determined to be allowed/disallowed via a tickmark.
B10: Rx | C10: Recalculated.
B11: a | C11: Check figure should equal $0. Cell will appear yellow if discrepancies are noted.
B14: A | F14: B | G14: Rx | H14: C | I14: Rx | J14: D | K14: E | L14: F | M14: G | P14: H
B15: Support Reviewed | J15: Conclusion
B16: Dates | C16: Company | D16: Per Diem Type | E16: # Crew Worked (per invoice) | F16: # Crew Worked (per timecards) | G16: Difference | H16: Per Diem Rate | I16: Total Per Diem | J16: # Crew Reasonable | K16: Reasonable based on Mobilization date(s) | L16: Reasonable based on Demobilization date(s) | M16: Conclusion | N16: $ Allowable Charge | O16: $ To Be Reviewed | P16: Reviewed - Allowable Charge | Q16: Reviewed - Unallowable Charge | R16: Tickmarks
B17: 2018-10-14 | C17: Vendor No.5 | D17: Breakfast | E17: 1 | F17: 1 | G17: =E17-F17 -> 0 | H17: 10 | I17: =H17*E17 -> 10 | J17: =IF(G17>0,"No",IF(F17=0,"N/A","Yes")) -> Yes | K17: =IF(AND(B17>='A - Contractor Summary'!$C$36,B17<='A - Contractor Summary'!$C$38),"Yes",IF(B17<'A - Contractor Summary'!$C$36,"No",IF(B17>'A - Contractor Summary'!$C$39,"",""))) ->  | M17: =IF(AND(J17="Yes")*OR(K17="Yes",L17="Yes"),"Yes",IF(OR(K17="No",J17="No",L17="No"),"No","Needs Review")) -> Needs Review | N17: =IF(M17="Yes",I17,0) -> 0 | O17: =IF(M17="Needs Review",I17,0) -> 10 | P17: =+I17 -> 10 | R17: 1
B18: 2018-10-14 | C18: Vendor No.5 | D18: Lunch | E18: 1 | F18: 1 | G18: 0 | H18: 15 | I18: =H18*E18 -> 15 | J18: =IF(G18>0,"No",IF(F18=0,"N/A","Yes")) -> Yes | K18: =IF(AND(B18>='A - Contractor Summary'!$C$36,B18<='A - Contractor Summary'!$C$38),"Yes",IF(B18<'A - Contractor Summary'!$C$36,"No",IF(B18>'A - Contractor Summary'!$C$39,"",""))) ->  | M18: =IF(AND(J18="Yes")*OR(K18="Yes",L18="Yes"),"Yes",IF(OR(K18="No",J18="No",L18="No"),"No","Needs Review")) -> Needs Review | N18: =IF(M18="Yes",I18,0) -> 0 | O18: =IF(M18="Needs Review",I18,0) -> 15 | P18: 15 | R18: 1
B19: 2018-10-21 | C19: Vendor No.5 | D19: Laundry | E19: 1 | F19: 1 | G19: 0 | H19: 265.38 | I19: 265.38 | J19: =IF(G19>0,"No",IF(F19=0,"N/A","Yes")) -> Yes | K19: =IF(AND(B19>='A - Contractor Summary'!$C$36,B19<='A - Contractor Summary'!$C$38),"Yes",IF(B19<'A - Contractor Summary'!$C$36,"No",IF(B19>'A - Contractor Summary'!$C$39,"",""))) ->  | M19: Needs Review | N19: 0 | O19: 265.38 | P19: 265.38 | R19: 1
B20: 2018-10-14 | C20: Vendor No.5 | D20: Breakfast | E20: 5 | F20: 5 | G20: 0 | H20: 10 | I20: 50 | J20: Yes | K20: =IF(AND(B20>='A - Contractor Summary'!$C$36,B20<='A - Contractor Summary'!$C$38),"Yes",IF(B20<'A - Contractor Summary'!$C$36,"No",IF(B20>'A - Contractor Summary'!$C$39,"",""))) ->  | M20: Needs Review | N20: 0 | O20: 50 | P20: 50 | R20: 1
B21: 2018-10-14 | C21: Vendor No.5 | D21: Lunch | E21: 5 | F21: 5 | G21: 0 | H21: 15 | I21: 75 | J21: Yes | K21: =IF(AND(B21>='A - Contractor Summary'!$C$36,B21<='A - Contractor Summary'!$C$38),"Yes",IF(B21<'A - Contractor Summary'!$C$36,"No",IF(B21>'A - Contractor Summary'!$C$39,"",""))) ->  | M21: Needs Review | N21: 0 | O21: 75 | P21: 75 | R21: 1
B22: 2018-10-14 | C22: Vendor No.5 | D22: Lodging | E22: 2 | F22: 2 | G22: 0 | H22: 75 | I22: 150 | J22: Yes | K22: =IF(AND(B22>='A - Contractor Summary'!$C$36,B22<='A - Contractor Summary'!$C$38),"Yes",IF(B22<'A - Contractor Summary'!$C$36,"No",IF(B22>'A - Contractor Summary'!$C$39,"",""))) ->  | M22: Needs Review | N22: 0 | O22: 150 | P22: 150 | R22: 1
B23: 2018-10-21 | C23: Vendor No.5 | D23: Lunch | E23: 5 | F23: 5 | G23: 0 | H23: 15 | I23: 75 | J23: Yes | K23: =IF(AND(B23>='A - Contractor Summary'!$C$36,B23<='A - Contractor Summary'!$C$38),"Yes",IF(B23<'A - Contractor Summary'!$C$36,"No",IF(B23>'A - Contractor Summary'!$C$39,"",""))) ->  | M23: Needs Review | N23: 0 | O23: 75 | P23: =+I23 -> 75 | R23: 1
B24: 2018-10-21 | C24: Vendor No.5 | D24: Dinner | E24: 5 | F24: 5 | G24: 0 | H24: 25 | I24: 125 | J24: Yes | K24: =IF(AND(B24>='A - Contractor Summary'!$C$36,B24<='A - Contractor Summary'!$C$38),"Yes",IF(B24<'A - Contractor Summary'!$C$36,"No",IF(B24>'A - Contractor Summary'!$C$39,"",""))) ->  | M24: Needs Review | N24: 0 | O24: 125 | P24: =+I24 -> 125 | R24: 1
B25: 2018-10-14 | C25: Vendor No.5 | D25: Breakfast | E25: 5 | F25: 5 | G25: 0 | H25: 10 | I25: 50 | J25: Yes | K25: =IF(AND(B25>='A - Contractor Summary'!$C$36,B25<='A - Contractor Summary'!$C$38),"Yes",IF(B25<'A - Contractor Summary'!$C$36,"No",IF(B25>'A - Contractor Summary'!$C$39,"",""))) ->  | M25: Needs Review | N25: 0 | O25: 50 | P25: 50 | R25: 1
B26: 2018-10-14 | C26: Vendor No.5 | D26: Lunch | E26: 5 | F26: 5 | G26: 0 | H26: 15 | I26: 75 | J26: Yes | K26: =IF(AND(B26>='A - Contractor Summary'!$C$36,B26<='A - Contractor Summary'!$C$38),"Yes",IF(B26<'A - Contractor Summary'!$C$36,"No",IF(B26>'A - Contractor Summary'!$C$39,"",""))) ->  | M26: Needs Review | N26: 0 | O26: 75 | P26: 75 | R26: 1
B27: 2018-10-14 | C27: Vendor No.5 | D27: Lodging | E27: 1 | F27: 1 | G27: 0 | H27: 75 | I27: 75 | J27: Yes | K27: =IF(AND(B27>='A - Contractor Summary'!$C$36,B27<='A - Contractor Summary'!$C$38),"Yes",IF(B27<'A - Contractor Summary'!$C$36,"No",IF(B27>'A - Contractor Summary'!$C$39,"",""))) ->  | M27: Needs Review | N27: 0 | O27: 75 | P27: 75 | R27: 1
B28: 2018-10-21 | C28: Vendor No.5 | D28: Dinner | E28: 5 | F28: 5 | G28: 0 | H28: 25 | I28: 125 | J28: Yes | K28: =IF(AND(B28>='A - Contractor Summary'!$C$36,B28<='A - Contractor Summary'!$C$38),"Yes",IF(B28<'A - Contractor Summary'!$C$36,"No",IF(B28>'A - Contractor Summary'!$C$39,"",""))) ->  | M28: Needs Review | N28: 0 | O28: 125 | P28: 125 | R28: 1
B29: 2018-10-14 | C29: Vendor No.5 | D29: Breakfast | E29: 4 | F29: 4 | G29: 0 | H29: 10 | I29: 40 | J29: Yes | K29: =IF(AND(B29>='A - Contractor Summary'!$C$36,B29<='A - Contractor Summary'!$C$38),"Yes",IF(B29<'A - Contractor Summary'!$C$36,"No",IF(B29>'A - Contractor Summary'!$C$39,"",""))) ->  | M29: Needs Review | N29: 0 | O29: 40 | P29: 40 | R29: 1
B30: 2018-10-14 | C30: Vendor No.5 | D30: Lunch | E30: 4 | F30: 4 | G30: 0 | H30: 15 | I30: 60 | J30: Yes | K30: =IF(AND(B30>='A - Contractor Summary'!$C$36,B30<='A - Contractor Summary'!$C$38),"Yes",IF(B30<'A - Contractor Summary'!$C$36,"No",IF(B30>'A - Contractor Summary'!$C$39,"",""))) ->  | M30: Needs Review | N30: 0 | O30: 60 | P30: 60 | R30: 1
B31: 2018-10-28 | C31: Vendor No.5 | D31: Breakfast | E31: 4 | F31: 4 | G31: 0 | H31: 10 | I31: 40 | J31: Yes | K31: =IF(AND(B31>='A - Contractor Summary'!$C$36,B31<='A - Contractor Summary'!$C$38),"Yes",IF(B31<'A - Contractor Summary'!$C$36,"No",IF(B31>'A - Contractor Summary'!$C$39,"",""))) ->  | M31: Needs Review | N31: =IF(M31="Yes",I31,0) -> 0 | O31: =IF(M31="Needs Review",I31,0) -> 40 | P31: 40 | R31: 1
B32: 2018-10-28 | C32: Vendor No.5 | D32: Lunch | E32: 4 | F32: 4 | G32: 0 | H32: 15 | I32: 60 | J32: Yes | K32: =IF(AND(B32>='A - Contractor Summary'!$C$36,B32<='A - Contractor Summary'!$C$38),"Yes",IF(B32<'A - Contractor Summary'!$C$36,"No",IF(B32>'A - Contractor Summary'!$C$39,"",""))) ->  | M32: Needs Review | N32: 0 | O32: 60 | P32: 60 | R32: 1
B33: 2018-10-28 | C33: Vendor No.5 | D33: Laundry | E33: 1 | F33: 1 | G33: 0 | H33: 99 | I33: 99 | J33: Yes | K33: =IF(AND(B33>='A - Contractor Summary'!$C$36,B33<='A - Contractor Summary'!$C$38),"Yes",IF(B33<'A - Contractor Summary'!$C$36,"No",IF(B33>'A - Contractor Summary'!$C$39,"",""))) ->  | M33: Needs Review | N33: 0 | O33: 99 | P33: 99 | R33: 1
B34: 2018-10-28 | C34: Vendor No.5 | D34: Breakfast | E34: 5 | F34: 5 | G34: 0 | H34: 10 | I34: 50 | J34: Yes | K34: =IF(AND(B34>='A - Contractor Summary'!$C$36,B34<='A - Contractor Summary'!$C$38),"Yes",IF(B34<'A - Contractor Summary'!$C$36,"No",IF(B34>'A - Contractor Summary'!$C$39,"",""))) ->  | M34: Needs Review | N34: 0 | O34: 50 | P34: 50 | R34: 1
B35: 2018-10-28 | C35: Vendor No.5 | D35: Breakfast | E35: 5 | F35: 5 | G35: 0 | H35: 10 | I35: 50 | J35: Yes | K35: =IF(AND(B35>='A - Contractor Summary'!$C$36,B35<='A - Contractor Summary'!$C$38),"Yes",IF(B35<'A - Contractor Summary'!$C$36,"No",IF(B35>'A - Contractor Summary'!$C$39,"",""))) ->  | M35: Needs Review | N35: 0 | O35: 50 | P35: 50 | R35: 1
B36: 2018-10-28 | C36: Vendor No.5 | D36: Dinner | E36: 5 | F36: 5 | G36: 0 | H36: 25 | I36: 125 | J36: Yes | K36: =IF(AND(B36>='A - Contractor Summary'!$C$36,B36<='A - Contractor Summary'!$C$38),"Yes",IF(B36<'A - Contractor Summary'!$C$36,"No",IF(B36>'A - Contractor Summary'!$C$39,"",""))) ->  | M36: Needs Review | N36: 0 | O36: 125 | P36: 125 | R36: 1
B37: 2018-11-04 | C37: Vendor No.5 | D37: Breakfast | E37: 7 | F37: 7 | G37: 0 | H37: 10 | I37: 70 | J37: Yes | K37: =IF(AND(B37>='A - Contractor Summary'!$C$36,B37<='A - Contractor Summary'!$C$38),"Yes",IF(B37<'A - Contractor Summary'!$C$36,"No",IF(B37>'A - Contractor Summary'!$C$39,"",""))) ->  | M37: Needs Review | N37: 0 | O37: 70 | P37: 70 | R37: 1
B38: 2018-11-04 | C38: Vendor No.5 | D38: Lunch | E38: 7 | F38: 7 | G38: 0 | H38: 15 | I38: 105 | J38: Yes | K38: =IF(AND(B38>='A - Contractor Summary'!$C$36,B38<='A - Contractor Summary'!$C$38),"Yes",IF(B38<'A - Contractor Summary'!$C$36,"No",IF(B38>'A - Contractor Summary'!$C$39,"",""))) ->  | M38: Needs Review | N38: 0 | O38: 105 | P38: 105 | R38: 1
B39: 2018-10-21 | C39: Vendor No.5 | D39: Breakfast | E39: 4 | F39: 4 | G39: 0 | H39: 10 | I39: 40 | J39: Yes | K39: =IF(AND(B39>='A - Contractor Summary'!$C$36,B39<='A - Contractor Summary'!$C$38),"Yes",IF(B39<'A - Contractor Summary'!$C$36,"No",IF(B39>'A - Contractor Summary'!$C$39,"",""))) ->  | M39: Needs Review | N39: 0 | O39: 40 | P39: 40 | R39: 1
B40: 2018-10-21 | C40: Vendor No.5 | D40: Lunch | E40: 4 | F40: 4 | G40: 0 | H40: 15 | I40: 60 | J40: Yes | K40: =IF(AND(B40>='A - Contractor Summary'!$C$36,B40<='A - Contractor Summary'!$C$38),"Yes",IF(B40<'A - Contractor Summary'!$C$36,"No",IF(B40>'A - Contractor Summary'!$C$39,"",""))) ->  | M40: Needs Review | N40: 0 | O40: 60 | P40: 60 | R40: 1
B41: 2018-10-21 | C41: Vendor No.5 | D41: Breakfast | E41: 5 | F41: 5 | G41: 0 | H41: 10 | I41: 50 | J41: Yes | K41: =IF(AND(B41>='A - Contractor Summary'!$C$36,B41<='A - Contractor Summary'!$C$38),"Yes",IF(B41<'A - Contractor Summary'!$C$36,"No",IF(B41>'A - Contractor Summary'!$C$39,"",""))) ->  | M41: Needs Review | N41: 0 | O41: 50 | P41: 50 | R41: 1
B42: 2018-10-21 | C42: Vendor No.5 | D42: Lunch | E42: 5 | F42: 5 | G42: 0 | H42: 15 | I42: 75 | J42: Yes | K42: =IF(AND(B42>='A - Contractor Summary'!$C$36,B42<='A - Contractor Summary'!$C$38),"Yes",IF(B42<'A - Contractor Summary'!$C$36,"No",IF(B42>'A - Contractor Summary'!$C$39,"",""))) ->  | M42: Needs Review | N42: 0 | O42: 75 | P42: 75 | R42: 1
B43: 2018-10-14 | C43: Vendor No.5 | D43: Lunch | E43: 11 | F43: 11 | G43: 0 | H43: 15 | I43: 165 | J43: Yes | K43: =IF(AND(B43>='A - Contractor Summary'!$C$36,B43<='A - Contractor Summary'!$C$38),"Yes",IF(B43<'A - Contractor Summary'!$C$36,"No",IF(B43>'A - Contractor Summary'!$C$39,"",""))) ->  | M43: Needs Review | N43: 0 | O43: 165 | P43: 165 | R43: 1
B44: 2018-10-21 | C44: Vendor No.5 | D44: Laundry | E44: 1 | F44: 1 | G44: 0 | H44: 203.5 | I44: 203.5 | J44: Yes | K44: =IF(AND(B44>='A - Contractor Summary'!$C$36,B44<='A - Contractor Summary'!$C$38),"Yes",IF(B44<'A - Contractor Summary'!$C$36,"No",IF(B44>'A - Contractor Summary'!$C$39,"",""))) ->  | M44: Needs Review | N44: 0 | O44: 203.5 | P44: 203.5 | R44: 1
B45: 2018-10-21 | C45: Vendor No.5 | D45: Dinner | E45: 7 | F45: 7 | G45: 0 | H45: 25 | I45: =H45*E45 -> 175 | J45: Yes | K45: =IF(AND(B45>='A - Contractor Summary'!$C$36,B45<='A - Contractor Summary'!$C$38),"Yes",IF(B45<'A - Contractor Summary'!$C$36,"No",IF(B45>'A - Contractor Summary'!$C$39,"",""))) ->  | M45: Needs Review | N45: 0 | O45: 175 | P45: 175 | R45: 1
B46: 2018-10-28 | C46: Vendor No.5 | D46: Laundry | E46: 1 | F46: 1 | G46: 0 | H46: 286 | I46: 286 | J46: Yes | K46: =IF(AND(B46>='A - Contractor Summary'!$C$36,B46<='A - Contractor Summary'!$C$38),"Yes",IF(B46<'A - Contractor Summary'!$C$36,"No",IF(B46>'A - Contractor Summary'!$C$39,"",""))) ->  | M46: Needs Review | N46: 0 | O46: 286 | P46: 286 | R46: 1
B47: 2018-10-28 | C47: Vendor No.5 | D47: Breakfast | E47: 9 | F47: 9 | G47: 0 | H47: 10 | I47: 90 | J47: Yes | K47: =IF(AND(B47>='A - Contractor Summary'!$C$36,B47<='A - Contractor Summary'!$C$38),"Yes",IF(B47<'A - Contractor Summary'!$C$36,"No",IF(B47>'A - Contractor Summary'!$C$39,"",""))) ->  | M47: Needs Review | N47: 0 | O47: 90 | P47: 90 | R47: 1
B48: 2018-10-28 | C48: Vendor No.5 | D48: Dinner | E48: 4 | F48: 4 | G48: 0 | H48: 25 | I48: 100 | J48: Yes | K48: =IF(AND(B48>='A - Contractor Summary'!$C$36,B48<='A - Contractor Summary'!$C$38),"Yes",IF(B48<'A - Contractor Summary'!$C$36,"No",IF(B48>'A - Contractor Summary'!$C$39,"",""))) ->  | M48: Needs Review | N48: 0 | O48: 100 | P48: 100 | R48: 1
B49: 2018-10-28 | C49: Vendor No.5 | D49: Dinner | E49: 5 | F49: 5 | G49: 0 | H49: 25 | I49: 125 | J49: Yes | K49: =IF(AND(B49>='A - Contractor Summary'!$C$36,B49<='A - Contractor Summary'!$C$38),"Yes",IF(B49<'A - Contractor Summary'!$C$36,"No",IF(B49>'A - Contractor Summary'!$C$39,"",""))) ->  | M49: Needs Review | N49: 0 | O49: 125 | P49: 125 | R49: 1
B50: 2018-11-04 | C50: Vendor No.5 | D50: Laundry | E50: 1 | F50: 1 | G50: 0 | H50: 44 | I50: 44 | J50: Yes | K50: =IF(AND(B50>='A - Contractor Summary'!$C$36,B50<='A - Contractor Summary'!$C$38),"Yes",IF(B50<'A - Contractor Summary'!$C$36,"No",IF(B50>'A - Contractor Summary'!$C$39,"",""))) ->  | M50: Needs Review | N50: 0 | O50: 44 | P50: 44 | R50: 1
B51: 2018-11-04 | C51: Vendor No.5 | D51: Dinner | E51: 5 | F51: 5 | G51: 0 | H51: 25 | I51: 125 | J51: Yes | K51: =IF(AND(B51>='A - Contractor Summary'!$C$36,B51<='A - Contractor Summary'!$C$38),"Yes",IF(B51<'A - Contractor Summary'!$C$36,"No",IF(B51>'A - Contractor Summary'!$C$39,"",""))) ->  | M51: Needs Review | N51: 0 | O51: 125 | P51: 125 | R51: 1
B52: 2018-11-04 | C52: Vendor No.5 | D52: Lunch | E52: 10 | F52: 10 | G52: 0 | H52: 15 | I52: 150 | J52: Yes | K52: =IF(AND(B52>='A - Contractor Summary'!$C$36,B52<='A - Contractor Summary'!$C$38),"Yes",IF(B52<'A - Contractor Summary'!$C$36,"No",IF(B52>'A - Contractor Summary'!$C$39,"",""))) ->  | M52: Needs Review | N52: 0 | O52: 150 | P52: 150 | R52: 1
B53: 2018-11-04 | C53: Vendor No.5 | D53: Breakfast | E53: 5 | F53: 5 | G53: 0 | H53: 10 | I53: 50 | J53: Yes | K53: =IF(AND(B53>='A - Contractor Summary'!$C$36,B53<='A - Contractor Summary'!$C$38),"Yes",IF(B53<'A - Contractor Summary'!$C$36,"No",IF(B53>'A - Contractor Summary'!$C$39,"",""))) ->  | M53: Needs Review | N53: 0 | O53: 50 | P53: 50 | R53: 1
B54: 2018-11-04 | C54: Vendor No.5 | D54: Lunch | E54: 5 | F54: 5 | G54: 0 | H54: 15 | I54: 75 | J54: Yes | K54: =IF(AND(B54>='A - Contractor Summary'!$C$36,B54<='A - Contractor Summary'!$C$38),"Yes",IF(B54<'A - Contractor Summary'!$C$36,"No",IF(B54>'A - Contractor Summary'!$C$39,"",""))) ->  | M54: Needs Review | N54: 0 | O54: 75 | P54: 75 | R54: 1
B55: 2018-11-04 | C55: Vendor No.5 | D55: Breakfast | E55: 5 | F55: 5 | G55: 0 | H55: 10 | I55: 50 | J55: Yes | K55: =IF(AND(B55>='A - Contractor Summary'!$C$36,B55<='A - Contractor Summary'!$C$38),"Yes",IF(B55<'A - Contractor Summary'!$C$36,"No",IF(B55>'A - Contractor Summary'!$C$39,"",""))) ->  | M55: Needs Review | N55: 0 | O55: 50 | P55: 50 | R55: 1
B56: 2018-11-04 | C56: Vendor No.5 | D56: Lunch | E56: 5 | F56: 5 | G56: 0 | H56: 15 | I56: 75 | J56: Yes | K56: =IF(AND(B56>='A - Contractor Summary'!$C$36,B56<='A - Contractor Summary'!$C$38),"Yes",IF(B56<'A - Contractor Summary'!$C$36,"No",IF(B56>'A - Contractor Summary'!$C$39,"",""))) ->  | M56: Needs Review | N56: 0 | O56: 75 | P56: 75 | R56: 1
G57: 0 | I57: 0 | J57: N/A | K57: =IF(AND(B57>='A - Contractor Summary'!$C$36,B57<='A - Contractor Summary'!$C$38),"Yes",IF(B57<'A - Contractor Summary'!$C$36,"No",IF(B57>'A - Contractor Summary'!$C$39,"",""))) -> No | L57: =IF(OR(K57="Yes",K57="No")*AND(B57<'A - Contractor Summary'!$C$39),"",IF(AND(B57>'A - Contractor Summary'!$C$39,B57<'A - Contractor Summary'!$C$42),"Yes",IF(B57>'A - Contractor Summary'!$C$42,"No","Needs Review"))) ->  | M57: No | N57: 0 | O57: 0 | P57: 0
G58: 0 | I58: 0 | J58: N/A | K58: =IF(AND(B58>='A - Contractor Summary'!$C$36,B58<='A - Contractor Summary'!$C$38),"Yes",IF(B58<'A - Contractor Summary'!$C$36,"No",IF(B58>'A - Contractor Summary'!$C$39,"",""))) -> No | L58: =IF(OR(K58="Yes",K58="No")*AND(B58<'A - Contractor Summary'!$C$39),"",IF(AND(B58>'A - Contractor Summary'!$C$39,B58<'A - Contractor Summary'!$C$42),"Yes",IF(B58>'A - Contractor Summary'!$C$42,"No","Needs Review"))) ->  | M58: No | N58: 0 | O58: 0 | P58: 0
G59: =SUM(G17:G58) -> 0 | I59: =SUM(I17:I58) -> 3727.88 | N59: =IFERROR(SUM(N17:N58),0) -> 0 | O59: =IFERROR(SUM(O17:O58),0) -> 3727.88 | P59: =SUM(P17:P58) -> 3727.88 | Q59: =SUM(Q17:Q58) -> 0 | R59: =O59-P59-Q59 -> 0 | S59: check (a)
B62: Tickmark Explanation:
B63: 1 Most meals provided by Florida Public Utilities, others noted

Sheet H - Mileage
B2: Mileage Charges
B4: Test Plan: (A) Obtain support of individual mileage charged (Typically a rate and mileage included on invoice). (B) Ensure charges fall between the dates the vendor was mobilized and the date they arrived. (C) Ensure charges are prior to the date the vendor arrived home or was released to another utility. (D) Ensure number of miles charged deemed reasonable based on vendor location (recalculated per 'A - Contractor Summary' tab). (E) Ensure the location of charge was reasonable (If mobilizing, charges should be related to travelling to TECO Service area, and home, if demobilizing). (F) Determine the amount(s) to be reviewed, allowed and/or disallowed. (G) For charges which required further review, document review and include why it was determined to be allowed/disallowed via a tickmark.
B10: Rx | C10: Recalculated.
B11: a | C11: Check figure should equal $0. Cell will appear yellow if discrepancies are noted.
C13: A | L13: Rx | M13: B | N13: C | O13: D | P13: E | Q13: F | T13: G
B14: Support Reviewed | M14: Conclusions
B15: # | C15: Type of Support | D15: Company | E15: Equipment Name | F15: Equipment ID | G15: Crew | H15: Date | I15: Location | J15: Miles Charged | K15: $ / Mile (Rate) | L15: Total Charge | M15: Reasonable based on Mobilization date(s) | N15: Reasonable based on Demobilization date(s) | O15: Number of Miles Charged Reasonable | P15: Locations Reasonable | Q15: Conclusion | R15: $ Allowable Charge | S15: $ To Be Reviewed | T15: Reviewed - Allowable Charge | U15: Reviewed - Unallowable Charge | V15: Tickmarks
B16: 1 | L16: =J16*K16 -> 0 | M16: =IF(AND(H16>='A - Contractor Summary'!$C$36,H16<='A - Contractor Summary'!$C$38),"Yes",IF(H16<'A - Contractor Summary'!$C$36,"No",IF(H16>'A - Contractor Summary'!$C$39,"",""))) -> No | N16: =IF(OR(M16="Yes",M16="No")*AND(H16<'A - Contractor Summary'!$C$39),"",IF(AND(H16>'A - Contractor Summary'!$C$39,H16<'A - Contractor Summary'!$C$42),"Yes",IF(H16>'A - Contractor Summary'!$C$42,"No","Needs Review"))) ->  | O16: =IF(AND(J16>PRODUCT('A - Contractor Summary'!$C$29,0.85),J16<PRODUCT('A - Contractor Summary'!$C$29,1.15)),"Yes","No") -> No | Q16: =IF(AND(P16="Yes",O16="Yes")*OR(N16="Yes",M16="Yes"),"Yes",IF(OR(M16="No",N16="No",P16="No",O16="No"),"No","Needs Review")) -> No | R16: =IF(Q16="Yes",L16,0) -> 0 | S16: =IF(Q16="Needs Review",L16,0) -> 0
B17: 2 | L17: 0 | M17: =IF(AND(H17>='A - Contractor Summary'!$C$36,H17<='A - Contractor Summary'!$C$38),"Yes",IF(H17<'A - Contractor Summary'!$C$36,"No",IF(H17>'A - Contractor Summary'!$C$39,"",""))) -> No | N17: =IF(OR(M17="Yes",M17="No")*AND(H17<'A - Contractor Summary'!$C$39),"",IF(AND(H17>'A - Contractor Summary'!$C$39,H17<'A - Contractor Summary'!$C$42),"Yes",IF(H17>'A - Contractor Summary'!$C$42,"No","Needs Review"))) ->  | O17: =IF(AND(J17>PRODUCT('A - Contractor Summary'!$C$29,0.85),J17<PRODUCT('A - Contractor Summary'!$C$29,1.15)),"Yes","No") -> No | Q17: No | R17: 0 | S17: 0
B18: 3 | L18: 0 | M18: =IF(AND(H18>='A - Contractor Summary'!$C$36,H18<='A - Contractor Summary'!$C$38),"Yes",IF(H18<'A - Contractor Summary'!$C$36,"No",IF(H18>'A - Contractor Summary'!$C$39,"",""))) -> No | N18: =IF(OR(M18="Yes",M18="No")*AND(H18<'A - Contractor Summary'!$C$39),"",IF(AND(H18>'A - Contractor Summary'!$C$39,H18<'A - Contractor Summary'!$C$42),"Yes",IF(H18>'A - Contractor Summary'!$C$42,"No","Needs Review"))) ->  | O18: =IF(AND(J18>PRODUCT('A - Contractor Summary'!$C$29,0.85),J18<PRODUCT('A - Contractor Summary'!$C$29,1.15)),"Yes","No") -> No | Q18: No | R18: 0 | S18: 0
B19: 4 | L19: 0 | M19: =IF(AND(H19>='A - Contractor Summary'!$C$36,H19<='A - Contractor Summary'!$C$38),"Yes",IF(H19<'A - Contractor Summary'!$C$36,"No",IF(H19>'A - Contractor Summary'!$C$39,"",""))) -> No | N19: =IF(OR(M19="Yes",M19="No")*AND(H19<'A - Contractor Summary'!$C$39),"",IF(AND(H19>'A - Contractor Summary'!$C$39,H19<'A - Contractor Summary'!$C$42),"Yes",IF(H19>'A - Contractor Summary'!$C$42,"No","Needs Review"))) ->  | O19: =IF(AND(J19>PRODUCT('A - Contractor Summary'!$C$29,0.85),J19<PRODUCT('A - Contractor Summary'!$C$29,1.15)),"Yes","No") -> No | Q19: No | R19: 0 | S19: 0
B20: 5 | L20: 0 | M20: =IF(AND(H20>='A - Contractor Summary'!$C$36,H20<='A - Contractor Summary'!$C$38),"Yes",IF(H20<'A - Contractor Summary'!$C$36,"No",IF(H20>'A - Contractor Summary'!$C$39,"",""))) -> No | N20: =IF(OR(M20="Yes",M20="No")*AND(H20<'A - Contractor Summary'!$C$39),"",IF(AND(H20>'A - Contractor Summary'!$C$39,H20<'A - Contractor Summary'!$C$42),"Yes",IF(H20>'A - Contractor Summary'!$C$42,"No","Needs Review"))) ->  | O20: =IF(AND(J20>PRODUCT('A - Contractor Summary'!$C$29,0.85),J20<PRODUCT('A - Contractor Summary'!$C$29,1.15)),"Yes","No") -> No | Q20: No | R20: 0 | S20: 0
B21: 6 | L21: 0 | M21: =IF(AND(H21>='A - Contractor Summary'!$C$36,H21<='A - Contractor Summary'!$C$38),"Yes",IF(H21<'A - Contractor Summary'!$C$36,"No",IF(H21>'A - Contractor Summary'!$C$39,"",""))) -> No | N21: =IF(OR(M21="Yes",M21="No")*AND(H21<'A - Contractor Summary'!$C$39),"",IF(AND(H21>'A - Contractor Summary'!$C$39,H21<'A - Contractor Summary'!$C$42),"Yes",IF(H21>'A - Contractor Summary'!$C$42,"No","Needs Review"))) ->  | O21: =IF(AND(J21>PRODUCT('A - Contractor Summary'!$C$29,0.85),J21<PRODUCT('A - Contractor Summary'!$C$29,1.15)),"Yes","No") -> No | Q21: No | R21: 0 | S21: 0
B22: 7 | L22: 0 | M22: =IF(AND(H22>='A - Contractor Summary'!$C$36,H22<='A - Contractor Summary'!$C$38),"Yes",IF(H22<'A - Contractor Summary'!$C$36,"No",IF(H22>'A - Contractor Summary'!$C$39,"",""))) -> No | N22: =IF(OR(M22="Yes",M22="No")*AND(H22<'A - Contractor Summary'!$C$39),"",IF(AND(H22>'A - Contractor Summary'!$C$39,H22<'A - Contractor Summary'!$C$42),"Yes",IF(H22>'A - Contractor Summary'!$C$42,"No","Needs Review"))) ->  | O22: =IF(AND(J22>PRODUCT('A - Contractor Summary'!$C$29,0.85),J22<PRODUCT('A - Contractor Summary'!$C$29,1.15)),"Yes","No") -> No | Q22: No | R22: 0 | S22: 0
B23: 8 | L23: 0 | M23: =IF(AND(H23>='A - Contractor Summary'!$C$36,H23<='A - Contractor Summary'!$C$38),"Yes",IF(H23<'A - Contractor Summary'!$C$36,"No",IF(H23>'A - Contractor Summary'!$C$39,"",""))) -> No | N23: =IF(OR(M23="Yes",M23="No")*AND(H23<'A - Contractor Summary'!$C$39),"",IF(AND(H23>'A - Contractor Summary'!$C$39,H23<'A - Contractor Summary'!$C$42),"Yes",IF(H23>'A - Contractor Summary'!$C$42,"No","Needs Review"))) ->  | O23: =IF(AND(J23>PRODUCT('A - Contractor Summary'!$C$29,0.85),J23<PRODUCT('A - Contractor Summary'!$C$29,1.15)),"Yes","No") -> No | Q23: No | R23: 0 | S23: 0
B24: 9 | L24: 0 | M24: =IF(AND(H24>='A - Contractor Summary'!$C$36,H24<='A - Contractor Summary'!$C$38),"Yes",IF(H24<'A - Contractor Summary'!$C$36,"No",IF(H24>'A - Contractor Summary'!$C$39,"",""))) -> No | N24: =IF(OR(M24="Yes",M24="No")*AND(H24<'A - Contractor Summary'!$C$39),"",IF(AND(H24>'A - Contractor Summary'!$C$39,H24<'A - Contractor Summary'!$C$42),"Yes",IF(H24>'A - Contractor Summary'!$C$42,"No","Needs Review"))) ->  | O24: =IF(AND(J24>PRODUCT('A - Contractor Summary'!$C$29,0.85),J24<PRODUCT('A - Contractor Summary'!$C$29,1.15)),"Yes","No") -> No | Q24: No | R24: 0 | S24: 0
B25: 10 | L25: 0 | M25: =IF(AND(H25>='A - Contractor Summary'!$C$36,H25<='A - Contractor Summary'!$C$38),"Yes",IF(H25<'A - Contractor Summary'!$C$36,"No",IF(H25>'A - Contractor Summary'!$C$39,"",""))) -> No | N25: =IF(OR(M25="Yes",M25="No")*AND(H25<'A - Contractor Summary'!$C$39),"",IF(AND(H25>'A - Contractor Summary'!$C$39,H25<'A - Contractor Summary'!$C$42),"Yes",IF(H25>'A - Contractor Summary'!$C$42,"No","Needs Review"))) ->  | O25: =IF(AND(J25>PRODUCT('A - Contractor Summary'!$C$29,0.85),J25<PRODUCT('A - Contractor Summary'!$C$29,1.15)),"Yes","No") -> No | Q25: No | R25: 0 | S25: 0
B26: 11 | L26: 0 | M26: =IF(AND(H26>='A - Contractor Summary'!$C$36,H26<='A - Contractor Summary'!$C$38),"Yes",IF(H26<'A - Contractor Summary'!$C$36,"No",IF(H26>'A - Contractor Summary'!$C$39,"",""))) -> No | N26: =IF(OR(M26="Yes",M26="No")*AND(H26<'A - Contractor Summary'!$C$39),"",IF(AND(H26>'A - Contractor Summary'!$C$39,H26<'A - Contractor Summary'!$C$42),"Yes",IF(H26>'A - Contractor Summary'!$C$42,"No","Needs Review"))) ->  | O26: =IF(AND(J26>PRODUCT('A - Contractor Summary'!$C$29,0.85),J26<PRODUCT('A - Contractor Summary'!$C$29,1.15)),"Yes","No") -> No | Q26: No | R26: 0 | S26: 0
B27: 12 | L27: 0 | M27: =IF(AND(H27>='A - Contractor Summary'!$C$36,H27<='A - Contractor Summary'!$C$38),"Yes",IF(H27<'A - Contractor Summary'!$C$36,"No",IF(H27>'A - Contractor Summary'!$C$39,"",""))) -> No | N27: =IF(OR(M27="Yes",M27="No")*AND(H27<'A - Contractor Summary'!$C$39),"",IF(AND(H27>'A - Contractor Summary'!$C$39,H27<'A - Contractor Summary'!$C$42),"Yes",IF(H27>'A - Contractor Summary'!$C$42,"No","Needs Review"))) ->  | O27: =IF(AND(J27>PRODUCT('A - Contractor Summary'!$C$29,0.85),J27<PRODUCT('A - Contractor Summary'!$C$29,1.15)),"Yes","No") -> No | Q27: No | R27: 0 | S27: 0
B28: 13 | L28: 0 | M28: =IF(AND(H28>='A - Contractor Summary'!$C$36,H28<='A - Contractor Summary'!$C$38),"Yes",IF(H28<'A - Contractor Summary'!$C$36,"No",IF(H28>'A - Contractor Summary'!$C$39,"",""))) -> No | N28: =IF(OR(M28="Yes",M28="No")*AND(H28<'A - Contractor Summary'!$C$39),"",IF(AND(H28>'A - Contractor Summary'!$C$39,H28<'A - Contractor Summary'!$C$42),"Yes",IF(H28>'A - Contractor Summary'!$C$42,"No","Needs Review"))) ->  | O28: =IF(AND(J28>PRODUCT('A - Contractor Summary'!$C$29,0.85),J28<PRODUCT('A - Contractor Summary'!$C$29,1.15)),"Yes","No") -> No | Q28: No | R28: 0 | S28: 0
B29: 14 | L29: 0 | M29: =IF(AND(H29>='A - Contractor Summary'!$C$36,H29<='A - Contractor Summary'!$C$38),"Yes",IF(H29<'A - Contractor Summary'!$C$36,"No",IF(H29>'A - Contractor Summary'!$C$39,"",""))) -> No | N29: =IF(OR(M29="Yes",M29="No")*AND(H29<'A - Contractor Summary'!$C$39),"",IF(AND(H29>'A - Contractor Summary'!$C$39,H29<'A - Contractor Summary'!$C$42),"Yes",IF(H29>'A - Contractor Summary'!$C$42,"No","Needs Review"))) ->  | O29: =IF(AND(J29>PRODUCT('A - Contractor Summary'!$C$29,0.85),J29<PRODUCT('A - Contractor Summary'!$C$29,1.15)),"Yes","No") -> No | Q29: No | R29: 0 | S29: 0
B30: 15 | L30: 0 | M30: =IF(AND(H30>='A - Contractor Summary'!$C$36,H30<='A - Contractor Summary'!$C$38),"Yes",IF(H30<'A - Contractor Summary'!$C$36,"No",IF(H30>'A - Contractor Summary'!$C$39,"",""))) -> No | N30: =IF(OR(M30="Yes",M30="No")*AND(H30<'A - Contractor Summary'!$C$39),"",IF(AND(H30>'A - Contractor Summary'!$C$39,H30<'A - Contractor Summary'!$C$42),"Yes",IF(H30>'A - Contractor Summary'!$C$42,"No","Needs Review"))) ->  | O30: =IF(AND(J30>PRODUCT('A - Contractor Summary'!$C$29,0.85),J30<PRODUCT('A - Contractor Summary'!$C$29,1.15)),"Yes","No") -> No | Q30: No | R30: 0 | S30: 0
B31: 16 | L31: 0 | M31: =IF(AND(H31>='A - Contractor Summary'!$C$36,H31<='A - Contractor Summary'!$C$38),"Yes",IF(H31<'A - Contractor Summary'!$C$36,"No",IF(H31>'A - Contractor Summary'!$C$39,"",""))) -> No | N31: =IF(OR(M31="Yes",M31="No")*AND(H31<'A - Contractor Summary'!$C$39),"",IF(AND(H31>'A - Contractor Summary'!$C$39,H31<'A - Contractor Summary'!$C$42),"Yes",IF(H31>'A - Contractor Summary'!$C$42,"No","Needs Review"))) ->  | O31: =IF(AND(J31>PRODUCT('A - Contractor Summary'!$C$29,0.85),J31<PRODUCT('A - Contractor Summary'!$C$29,1.15)),"Yes","No") -> No | Q31: No | R31: 0 | S31: 0
B32: 17 | L32: 0 | M32: =IF(AND(H32>='A - Contractor Summary'!$C$36,H32<='A - Contractor Summary'!$C$38),"Yes",IF(H32<'A - Contractor Summary'!$C$36,"No",IF(H32>'A - Contractor Summary'!$C$39,"",""))) -> No | N32: =IF(OR(M32="Yes",M32="No")*AND(H32<'A - Contractor Summary'!$C$39),"",IF(AND(H32>'A - Contractor Summary'!$C$39,H32<'A - Contractor Summary'!$C$42),"Yes",IF(H32>'A - Contractor Summary'!$C$42,"No","Needs Review"))) ->  | O32: =IF(AND(J32>PRODUCT('A - Contractor Summary'!$C$29,0.85),J32<PRODUCT('A - Contractor Summary'!$C$29,1.15)),"Yes","No") -> No | Q32: No | R32: 0 | S32: 0
B33: 18 | L33: 0 | M33: =IF(AND(H33>='A - Contractor Summary'!$C$36,H33<='A - Contractor Summary'!$C$38),"Yes",IF(H33<'A - Contractor Summary'!$C$36,"No",IF(H33>'A - Contractor Summary'!$C$39,"",""))) -> No | N33: =IF(OR(M33="Yes",M33="No")*AND(H33<'A - Contractor Summary'!$C$39),"",IF(AND(H33>'A - Contractor Summary'!$C$39,H33<'A - Contractor Summary'!$C$42),"Yes",IF(H33>'A - Contractor Summary'!$C$42,"No","Needs Review"))) ->  | O33: =IF(AND(J33>PRODUCT('A - Contractor Summary'!$C$29,0.85),J33<PRODUCT('A - Contractor Summary'!$C$29,1.15)),"Yes","No") -> No | Q33: No | R33: =IF(Q33="Yes",#REF!,0) -> 0 | S33: 0
B34: 19 | L34: 0 | M34: =IF(AND(H34>='A - Contractor Summary'!$C$36,H34<='A - Contractor Summary'!$C$38),"Yes",IF(H34<'A - Contractor Summary'!$C$36,"No",IF(H34>'A - Contractor Summary'!$C$39,"",""))) -> No | N34: =IF(OR(M34="Yes",M34="No")*AND(H34<'A - Contractor Summary'!$C$39),"",IF(AND(H34>'A - Contractor Summary'!$C$39,H34<'A - Contractor Summary'!$C$42),"Yes",IF(H34>'A - Contractor Summary'!$C$42,"No","Needs Review"))) ->  | O34: =IF(AND(J34>PRODUCT('A - Contractor Summary'!$C$29,0.85),J34<PRODUCT('A - Contractor Summary'!$C$29,1.15)),"Yes","No") -> No | Q34: No | R34: =IF(Q34="Yes",#REF!,0) -> 0 | S34: 0
B35: 20 | L35: 0 | M35: =IF(AND(H35>='A - Contractor Summary'!$C$36,H35<='A - Contractor Summary'!$C$38),"Yes",IF(H35<'A - Contractor Summary'!$C$36,"No",IF(H35>'A - Contractor Summary'!$C$39,"",""))) -> No | N35: =IF(OR(M35="Yes",M35="No")*AND(H35<'A - Contractor Summary'!$C$39),"",IF(AND(H35>'A - Contractor Summary'!$C$39,H35<'A - Contractor Summary'!$C$42),"Yes",IF(H35>'A - Contractor Summary'!$C$42,"No","Needs Review"))) ->  | O35: =IF(AND(J35>PRODUCT('A - Contractor Summary'!$C$29,0.85),J35<PRODUCT('A - Contractor Summary'!$C$29,1.15)),"Yes","No") -> No | Q35: No | R35: =IF(Q35="Yes",#REF!,0) -> 0 | S35: =IF(Q35="ED Review",#REF!,0) -> 0
L36: =SUM(L16:L35) -> 0 | R36: =IFERROR(SUM(R16:R35),0) -> 0 | S36: =IFERROR(SUM(S16:S35),0) -> 0 | T36: =SUM(T16:T35) -> 0 | U36: =SUM(U16:U35) -> 0 | V36: =S36-T36-U36 -> 0 | W36: check (a)
B42: Tickmark Explanation:
